{"text_format":"3","workbook":"xlsx","n_sheets":5,"sheets":["PRADŽIA","SUPLANUOTOS IŠLAIDOS","FAKTINĖS IŠLAIDOS","IŠLAIDŲ NUOKRYPIAI","IŠLAIDŲ ANALIZĖ"],"not_rendered":{"charts":3,"images":3,"defined_names":1},"read":"whole","date_system":"1900"}

{"sheet":"PRADŽIA","index":0,"n_rows":8,"n_cols":2,"rows_kept":8}
[null,"APIE ŠĮ ŠABLONĄ"]
[null,"Naudokite šią verslo išlaidų biudžeto darbaknygę norėdami stebėti suplanuotas ir faktines išlaidas bei nuokrypius."]
[null,"Įveskite įmonės pavadinimas ir pridėkite logotipą."]
[null,"Įveskite informaciją į lenteles darbalapiuose Suplanuotos išlaidos ir Faktinės išlaidos."]
[null,"Automatiškai atnaujinamos darbalapio Išlaidų nuokrypiai lentelės ir darbalapio Išlaidų analizė diagramos"]
[null,"Pastaba: "]
[null,"papildomos instrukcijos pateikiamos kiekvieno darbalapio A stulpelyje. Šis tekstas buvo specialiai paslėptas. Norėdami pašalinti tekstą, pasirinkite A stulpelį, tada pasirinkite Naikinti. Norėdami nebeslėpti teksto, pasirinkite A stulpelį, tada pakeiskite šrifto spalvą."]
[null,"Norėdami sužinoti daugiau apie lenteles, lentelėje paspauskite SHIFT, tada – F10, pasirinkite parinktį LENTELĖ, tada pasirinkite ALTERNATYVUS TEKSTAS"]

{"sheet":"SUPLANUOTOS IŠLAIDOS","index":1,"n_rows":37,"n_cols":18,"rows_kept":37,"merged":[[1,1,2,3],[1,10,1,12],[1,13,2,14],[2,10,2,12],[3,17,12,19],[8,1,8,2],[19,1,19,2],[28,1,28,2],[33,1,33,2]]}
["Atitinkamose lentelėse šiame darbalapyje įveskite suplanuotas darbuotojų išlaidos, biuro išlaidos, rinkodaros išlaidos ir mokymo arba kelionių išlaidas. Bendrosios sumos yra apskaičiuojamos automatiškai. Naudingos instrukcijos, kaip naudoti šį darbalapį, pateiktos šio stulpelio langeliuose. Paspauskite rodyklę žemyn, kad pradėtumėte.",{"$nulls":14}," "]
["Įveskite įmonės pavadinimas langelyje dešinėje ir logotipą langelyje N2. Šio darbalapio pavadinimas yra langelyje K2.","Įmonės pavadinimas",{"$nulls":8},"Išsamios apskaičiuotos išlaidos",null,null,"Šiame langelyje yra logotipo vietos rezervavimo ženklas."]
["Patarimas pateikiamas langelyje K3.",{"$nulls":9},"Patamsinti langeliai yra apskaičiuotos vertės."]
["Suplanuotos išlaidos žyma yra langelyje dešinėje, mėnesiai yra langeliuose nuo C4 iki N4, metai žyma yra langelyje O4, o instrukcijos, kaip naudoti šį šabloną, – langelyje R4.","SUPLANUOTOS IŠLAIDOS","SAU","VAS","KOV","BAL","GEG","BIR","LIE","RGP","RGS","SPL","LAP","GRD","METAI",null,null,"Patarimas: KAIP NAUDOTI ŠĮ ŠABLONĄ\nĮveskite duomenis į baltus langelius darbalapiuose SUPLANUOTOS IŠLAIDOS ir FAKTINĖS IŠLAIDOS ir už jus bus apskaičiuotas IŠLAIDŲ NUOKRYPIAI bei IŠLAIDŲ ANALIZĖ. Jei įtraukiate eilutę viename lape, kiti lapai turi atitikti."]
["Įveskite darbuotojų išlaidos suplanuotų darbuotojų išlaidų lentelėje, pradėdami langelyje dešinėje. Kitas nurodymas yra A10 langelyje.","Darbuotojų išlaidos","Sau","Vas","Kov","Bal","Geg","Bir","Lie","Rgp","Rgs","Spl","Lap","Grd","METAI"]
[null,"Darbo užmokesčiai",{"v":85000,"d":"85,000.00 EUR"},{"v":85000,"d":"85,000.00 EUR"},{"v":85000,"d":"85,000.00 EUR"},{"v":87500,"d":"87,500.00 EUR"},{"v":87500,"d":"87,500.00 EUR"},{"v":87500,"d":"87,500.00 EUR"},{"v":87500,"d":"87,500.00 EUR"},{"v":92400,"d":"92,400.00 EUR"},{"v":92400,"d":"92,400.00 EUR"},{"v":92400,"d":"92,400.00 EUR"},{"v":92400,"d":"92,400.00 EUR"},{"v":92400,"d":"92,400.00 EUR"},{"$f":"SUM(C6:N6)","v":{"v":1067000,"d":"1,067,000.00 EUR"}}]
[null,"Išmokos",{"$f":"C6*0.27","v":{"v":22950,"d":"22,950.00 EUR"}},{"v":22950,"d":"22,950.00 EUR"},{"v":22950,"d":"22,950.00 EUR"},{"v":23625,"d":"23,625.00 EUR"},{"v":23625,"d":"23,625.00 EUR"},{"v":23625,"d":"23,625.00 EUR"},{"v":23625,"d":"23,625.00 EUR"},{"v":24948,"d":"24,948.00 EUR"},{"v":24948,"d":"24,948.00 EUR"},{"v":24948,"d":"24,948.00 EUR"},{"v":24948,"d":"24,948.00 EUR"},{"v":24948,"d":"24,948.00 EUR"},{"$f":"SUM(C7:N7)","v":{"v":288090,"d":"288,090.00 EUR"}}]
[null,"Tarpinė suma",{"$f":"SUBTOTAL(109,Darbuotojų_išlaidų[Sau])","v":{"v":107950,"d":"107,950.00 EUR"}},{"$f":"SUBTOTAL(109,Darbuotojų_išlaidų[Vas])","v":{"v":107950,"d":"107,950.00 EUR"}},{"$f":"SUBTOTAL(109,Darbuotojų_išlaidų[Kov])","v":{"v":107950,"d":"107,950.00 EUR"}},{"$f":"SUBTOTAL(109,Darbuotojų_išlaidų[Bal])","v":{"v":111125,"d":"111,125.00 EUR"}},{"$f":"SUBTOTAL(109,Darbuotojų_išlaidų[Geg])","v":{"v":111125,"d":"111,125.00 EUR"}},{"$f":"SUBTOTAL(109,Darbuotojų_išlaidų[Bir])","v":{"v":111125,"d":"111,125.00 EUR"}},{"$f":"SUBTOTAL(109,Darbuotojų_išlaidų[Lie])","v":{"v":111125,"d":"111,125.00 EUR"}},{"$f":"SUBTOTAL(109,Darbuotojų_išlaidų[Rgp])","v":{"v":117348,"d":"117,348.00 EUR"}},{"$f":"SUBTOTAL(109,Darbuotojų_išlaidų[Rgs])","v":{"v":117348,"d":"117,348.00 EUR"}},{"$f":"SUBTOTAL(109,Darbuotojų_išlaidų[Spl])","v":{"v":117348,"d":"117,348.00 EUR"}},{"$f":"SUBTOTAL(109,Darbuotojų_išlaidų[Lap])","v":{"v":117348,"d":"117,348.00 EUR"}},{"$f":"SUBTOTAL(109,Darbuotojų_išlaidų[Grd])","v":{"v":117348,"d":"117,348.00 EUR"}},{"$f":"SUBTOTAL(109,Darbuotojų_išlaidų[METAI])","v":{"v":1355090,"d":"1,355,090.00 EUR"}}]
[]
["Įveskite biuro išlaidos suplanuotų biuro išlaidų lentelėje, pradėdami langelyje dešinėje. Kitas nurodymas yra A21 langelyje.","Biuro išlaidos","Sau","Vas","Kov","Bal","Geg","Bir","Lie","Rgp","Rgs","Spl","Lap","Grd","METAI"]
[null,"Biuro nuoma",{"v":9800,"d":"9,800.00 EUR"},{"v":9800,"d":"9,800.00 EUR"},{"v":9800,"d":"9,800.00 EUR"},{"v":9800,"d":"9,800.00 EUR"},{"v":9800,"d":"9,800.00 EUR"},{"v":9800,"d":"9,800.00 EUR"},{"v":9800,"d":"9,800.00 EUR"},{"v":9800,"d":"9,800.00 EUR"},{"v":9800,"d":"9,800.00 EUR"},{"v":9800,"d":"9,800.00 EUR"},{"v":9800,"d":"9,800.00 EUR"},{"v":9800,"d":"9,800.00 EUR"},{"$f":"SUM(C11:N11)","v":{"v":117600,"d":"117,600.00 EUR"}}]
[null,"Dujos",null,{"v":400,"d":"400.00 EUR"},{"v":400,"d":"400.00 EUR"},{"v":100,"d":"100.00 EUR"},{"v":100,"d":"100.00 EUR"},{"v":100,"d":"100.00 EUR"},{"v":100,"d":"100.00 EUR"},{"v":100,"d":"100.00 EUR"},{"v":100,"d":"100.00 EUR"},{"v":100,"d":"100.00 EUR"},{"v":400,"d":"400.00 EUR"},{"v":400,"d":"400.00 EUR"},{"v":2300,"d":"2,300.00 EUR"}]
[null,"Elektra",{"v":300,"d":"300.00 EUR"},{"v":300,"d":"300.00 EUR"},{"v":300,"d":"300.00 EUR"},{"v":300,"d":"300.00 EUR"},{"v":300,"d":"300.00 EUR"},{"v":300,"d":"300.00 EUR"},{"v":300,"d":"300.00 EUR"},{"v":300,"d":"300.00 EUR"},{"v":300,"d":"300.00 EUR"},{"v":300,"d":"300.00 EUR"},{"v":300,"d":"300.00 EUR"},{"v":300,"d":"300.00 EUR"},{"v":3600,"d":"3,600.00 EUR"}]
[null,"Vanduo",{"v":40,"d":"40.00 EUR"},{"v":40,"d":"40.00 EUR"},{"v":40,"d":"40.00 EUR"},{"v":40,"d":"40.00 EUR"},{"v":40,"d":"40.00 EUR"},{"v":40,"d":"40.00 EUR"},{"v":40,"d":"40.00 EUR"},{"v":40,"d":"40.00 EUR"},{"v":40,"d":"40.00 EUR"},{"v":40,"d":"40.00 EUR"},{"v":40,"d":"40.00 EUR"},{"v":40,"d":"40.00 EUR"},{"v":480,"d":"480.00 EUR"}]
[null,"Telefonas",{"v":250,"d":"250.00 EUR"},{"v":250,"d":"250.00 EUR"},{"v":250,"d":"250.00 EUR"},{"v":250,"d":"250.00 EUR"},{"v":250,"d":"250.00 EUR"},{"v":250,"d":"250.00 EUR"},{"v":250,"d":"250.00 EUR"},{"v":250,"d":"250.00 EUR"},{"v":250,"d":"250.00 EUR"},{"v":250,"d":"250.00 EUR"},{"v":250,"d":"250.00 EUR"},{"v":250,"d":"250.00 EUR"},{"v":3000,"d":"3,000.00 EUR"}]
[null,"Interneto prieiga",{"v":180,"d":"180.00 EUR"},{"v":180,"d":"180.00 EUR"},{"v":180,"d":"180.00 EUR"},{"v":180,"d":"180.00 EUR"},{"v":180,"d":"180.00 EUR"},{"v":180,"d":"180.00 EUR"},{"v":180,"d":"180.00 EUR"},{"v":180,"d":"180.00 EUR"},{"v":180,"d":"180.00 EUR"},{"v":180,"d":"180.00 EUR"},{"v":180,"d":"180.00 EUR"},{"v":180,"d":"180.00 EUR"},{"v":2160,"d":"2,160.00 EUR"}]
[null,"Biuro reikmenys",{"v":200,"d":"200.00 EUR"},{"v":200,"d":"200.00 EUR"},{"v":200,"d":"200.00 EUR"},{"v":200,"d":"200.00 EUR"},{"v":200,"d":"200.00 EUR"},{"v":200,"d":"200.00 EUR"},{"v":200,"d":"200.00 EUR"},{"v":200,"d":"200.00 EUR"},{"v":200,"d":"200.00 EUR"},{"v":200,"d":"200.00 EUR"},{"v":200,"d":"200.00 EUR"},{"v":200,"d":"200.00 EUR"},{"v":2400,"d":"2,400.00 EUR"}]
[null,"Apsauga",{"v":600,"d":"600.00 EUR"},{"v":600,"d":"600.00 EUR"},{"v":600,"d":"600.00 EUR"},{"v":600,"d":"600.00 EUR"},{"v":600,"d":"600.00 EUR"},{"v":600,"d":"600.00 EUR"},{"v":600,"d":"600.00 EUR"},{"v":600,"d":"600.00 EUR"},{"v":600,"d":"600.00 EUR"},{"v":600,"d":"600.00 EUR"},{"v":600,"d":"600.00 EUR"},{"v":600,"d":"600.00 EUR"},{"v":7200,"d":"7,200.00 EUR"}]
[null,"Tarpinė suma",{"$f":"SUBTOTAL(109,Biuro_išlaidų[Sau])","v":{"v":11370,"d":"11,370.00 EUR"}},{"$f":"SUBTOTAL(109,Biuro_išlaidų[Vas])","v":{"v":11770,"d":"11,770.00 EUR"}},{"$f":"SUBTOTAL(109,Biuro_išlaidų[Kov])","v":{"v":11770,"d":"11,770.00 EUR"}},{"$f":"SUBTOTAL(109,Biuro_išlaidų[Bal])","v":{"v":11470,"d":"11,470.00 EUR"}},{"$f":"SUBTOTAL(109,Biuro_išlaidų[Geg])","v":{"v":11470,"d":"11,470.00 EUR"}},{"$f":"SUBTOTAL(109,Biuro_išlaidų[Bir])","v":{"v":11470,"d":"11,470.00 EUR"}},{"$f":"SUBTOTAL(109,Biuro_išlaidų[Lie])","v":{"v":11470,"d":"11,470.00 EUR"}},{"$f":"SUBTOTAL(109,Biuro_išlaidų[Rgp])","v":{"v":11470,"d":"11,470.00 EUR"}},{"$f":"SUBTOTAL(109,Biuro_išlaidų[Rgs])","v":{"v":11470,"d":"11,470.00 EUR"}},{"$f":"SUBTOTAL(109,Biuro_išlaidų[Spl])","v":{"v":11470,"d":"11,470.00 EUR"}},{"$f":"SUBTOTAL(109,Biuro_išlaidų[Lap])","v":{"v":11770,"d":"11,770.00 EUR"}},{"$f":"SUBTOTAL(109,Biuro_išlaidų[Grd])","v":{"v":11770,"d":"11,770.00 EUR"}},{"$f":"SUBTOTAL(109,Biuro_išlaidų[METAI])","v":{"v":138740,"d":"138,740.00 EUR"}}]
[]
["Įveskite rinkodaros išlaidos suplanuotų rinkodaros išlaidų lentelėje, pradėdami langelyje dešinėje. Kitas nurodymas yra A30 langelyje.","Rinkodaros išlaidos","Sau","Vas","Kov","Bal","Geg","Bir","Lie","Rgp","Rgs","Spl","Lap","Grd","METAI"]
[null,"Svetainės išteklių nuoma",{"v":500,"d":"500.00 EUR"},{"v":500,"d":"500.00 EUR"},{"v":500,"d":"500.00 EUR"},{"v":500,"d":"500.00 EUR"},{"v":500,"d":"500.00 EUR"},{"v":500,"d":"500.00 EUR"},{"v":500,"d":"500.00 EUR"},{"v":500,"d":"500.00 EUR"},{"v":500,"d":"500.00 EUR"},{"v":500,"d":"500.00 EUR"},{"v":500,"d":"500.00 EUR"},{"v":500,"d":"500.00 EUR"},{"$f":"SUM(C22:N22)","v":{"v":6000,"d":"6,000.00 EUR"}}]
[null,"Svetainės naujinimai",{"v":200,"d":"200.00 EUR"},{"v":200,"d":"200.00 EUR"},{"v":200,"d":"200.00 EUR"},{"v":200,"d":"200.00 EUR"},{"v":200,"d":"200.00 EUR"},{"v":1000,"d":"1,000.00 EUR"},{"v":200,"d":"200.00 EUR"},{"v":200,"d":"200.00 EUR"},{"v":200,"d":"200.00 EUR"},{"v":200,"d":"200.00 EUR"},{"v":200,"d":"200.00 EUR"},{"v":1000,"d":"1,000.00 EUR"},{"v":4000,"d":"4,000.00 EUR"}]
[null,"Dokumentų parengimas",{"v":5000,"d":"5,000.00 EUR"},{"v":0,"d":"0.00 EUR"},{"v":0,"d":"0.00 EUR"},{"v":5000,"d":"5,000.00 EUR"},{"v":0,"d":"0.00 EUR"},{"v":0,"d":"0.00 EUR"},{"v":5000,"d":"5,000.00 EUR"},{"v":0,"d":"0.00 EUR"},{"v":0,"d":"0.00 EUR"},{"v":5000,"d":"5,000.00 EUR"},{"v":0,"d":"0.00 EUR"},{"v":0,"d":"0.00 EUR"},{"v":20000,"d":"20,000.00 EUR"}]
[null,"Dokumentų spausdinimas",{"v":200,"d":"200.00 EUR"},{"v":200,"d":"200.00 EUR"},{"v":200,"d":"200.00 EUR"},{"v":200,"d":"200.00 EUR"},{"v":200,"d":"200.00 EUR"},{"v":200,"d":"200.00 EUR"},{"v":200,"d":"200.00 EUR"},{"v":200,"d":"200.00 EUR"},{"v":200,"d":"200.00 EUR"},{"v":200,"d":"200.00 EUR"},{"v":200,"d":"200.00 EUR"},{"v":200,"d":"200.00 EUR"},{"v":2400,"d":"2,400.00 EUR"}]
[null,"Rinkodaros įvykiai",{"v":2000,"d":"2,000.00 EUR"},{"v":2000,"d":"2,000.00 EUR"},{"v":2000,"d":"2,000.00 EUR"},{"v":5000,"d":"5,000.00 EUR"},{"v":2000,"d":"2,000.00 EUR"},{"v":2000,"d":"2,000.00 EUR"},{"v":2000,"d":"2,000.00 EUR"},{"v":5000,"d":"5,000.00 EUR"},{"v":2000,"d":"2,000.00 EUR"},{"v":2000,"d":"2,000.00 EUR"},{"v":2000,"d":"2,000.00 EUR"},{"v":5000,"d":"5,000.00 EUR"},{"v":33000,"d":"33,000.00 EUR"}]
[null,"Įvairios išlaidos",{"v":200,"d":"200.00 EUR"},{"v":200,"d":"200.00 EUR"},{"v":200,"d":"200.00 EUR"},{"v":200,"d":"200.00 EUR"},{"v":200,"d":"200.00 EUR"},{"v":200,"d":"200.00 EUR"},{"v":200,"d":"200.00 EUR"},{"v":200,"d":"200.00 EUR"},{"v":200,"d":"200.00 EUR"},{"v":200,"d":"200.00 EUR"},{"v":200,"d":"200.00 EUR"},{"v":200,"d":"200.00 EUR"},{"v":2400,"d":"2,400.00 EUR"}]
[null,"Tarpinė suma",{"$f":"SUBTOTAL(109,Rinkodaros_išlaidų[Sau])","v":{"v":8100,"d":"8,100.00 EUR"}},{"$f":"SUBTOTAL(109,Rinkodaros_išlaidų[Vas])","v":{"v":3100,"d":"3,100.00 EUR"}},{"$f":"SUBTOTAL(109,Rinkodaros_išlaidų[Kov])","v":{"v":3100,"d":"3,100.00 EUR"}},{"$f":"SUBTOTAL(109,Rinkodaros_išlaidų[Bal])","v":{"v":11100,"d":"11,100.00 EUR"}},{"$f":"SUBTOTAL(109,Rinkodaros_išlaidų[Geg])","v":{"v":3100,"d":"3,100.00 EUR"}},{"$f":"SUBTOTAL(109,Rinkodaros_išlaidų[Bir])","v":{"v":3900,"d":"3,900.00 EUR"}},{"$f":"SUBTOTAL(109,Rinkodaros_išlaidų[Lie])","v":{"v":8100,"d":"8,100.00 EUR"}},{"$f":"SUBTOTAL(109,Rinkodaros_išlaidų[Rgp])","v":{"v":6100,"d":"6,100.00 EUR"}},{"$f":"SUBTOTAL(109,Rinkodaros_išlaidų[Rgs])","v":{"v":3100,"d":"3,100.00 EUR"}},{"$f":"SUBTOTAL(109,Rinkodaros_išlaidų[Spl])","v":{"v":8100,"d":"8,100.00 EUR"}},{"$f":"SUBTOTAL(109,Rinkodaros_išlaidų[Lap])","v":{"v":3100,"d":"3,100.00 EUR"}},{"$f":"SUBTOTAL(109,Rinkodaros_išlaidų[Grd])","v":{"v":6900,"d":"6,900.00 EUR"}},{"$f":"SUBTOTAL(109,Rinkodaros_išlaidų[METAI])","v":{"v":67800,"d":"67,800.00 EUR"}}]
[]
["Įveskite mokymo ir kelionių išlaidas suplanuotų mokymo ir kelionių išlaidų lentelėje, pradėdami langelyje dešinėje. Kitas nurodymas yra A35 langelyje.","Mokymas / kelionės","Sau","Vas","Kov","Bal","Geg","Bir","Lie","Rgp","Rgs","Spl","Lap","Grd","METAI"]
[null,"Mokymo klasės",{"v":2000,"d":"2,000.00 EUR"},{"v":2000,"d":"2,000.00 EUR"},{"v":2000,"d":"2,000.00 EUR"},{"v":2000,"d":"2,000.00 EUR"},{"v":2000,"d":"2,000.00 EUR"},{"v":2000,"d":"2,000.00 EUR"},{"v":2000,"d":"2,000.00 EUR"},{"v":2000,"d":"2,000.00 EUR"},{"v":2000,"d":"2,000.00 EUR"},{"v":2000,"d":"2,000.00 EUR"},{"v":2000,"d":"2,000.00 EUR"},{"v":2000,"d":"2,000.00 EUR"},{"$f":"SUM(C31:N31)","v":{"v":24000,"d":"24,000.00 EUR"}}]
[null,"Su mokymu susijusios kelionių išlaidos",{"v":2000,"d":"2,000.00 EUR"},{"v":2000,"d":"2,000.00 EUR"},{"v":2000,"d":"2,000.00 EUR"},{"v":2000,"d":"2,000.00 EUR"},{"v":2000,"d":"2,000.00 EUR"},{"v":2000,"d":"2,000.00 EUR"},{"v":2000,"d":"2,000.00 EUR"},{"v":2000,"d":"2,000.00 EUR"},{"v":2000,"d":"2,000.00 EUR"},{"v":2000,"d":"2,000.00 EUR"},{"v":2000,"d":"2,000.00 EUR"},{"v":2000,"d":"2,000.00 EUR"},{"$f":"SUM(C32:N32)","v":{"v":24000,"d":"24,000.00 EUR"}}]
[null,"Tarpinė suma",{"$f":"SUBTOTAL(109,Kelionių_išlaidų[Sau])","v":{"v":4000,"d":"4,000.00 EUR"}},{"$f":"SUBTOTAL(109,Kelionių_išlaidų[Vas])","v":{"v":4000,"d":"4,000.00 EUR"}},{"$f":"SUBTOTAL(109,Kelionių_išlaidų[Kov])","v":{"v":4000,"d":"4,000.00 EUR"}},{"$f":"SUBTOTAL(109,Kelionių_išlaidų[Bal])","v":{"v":4000,"d":"4,000.00 EUR"}},{"$f":"SUBTOTAL(109,Kelionių_išlaidų[Geg])","v":{"v":4000,"d":"4,000.00 EUR"}},{"$f":"SUBTOTAL(109,Kelionių_išlaidų[Bir])","v":{"v":4000,"d":"4,000.00 EUR"}},{"$f":"SUBTOTAL(109,Kelionių_išlaidų[Lie])","v":{"v":4000,"d":"4,000.00 EUR"}},{"$f":"SUBTOTAL(109,Kelionių_išlaidų[Rgp])","v":{"v":4000,"d":"4,000.00 EUR"}},{"$f":"SUBTOTAL(109,Kelionių_išlaidų[Rgs])","v":{"v":4000,"d":"4,000.00 EUR"}},{"$f":"SUBTOTAL(109,Kelionių_išlaidų[Spl])","v":{"v":4000,"d":"4,000.00 EUR"}},{"$f":"SUBTOTAL(109,Kelionių_išlaidų[Lap])","v":{"v":4000,"d":"4,000.00 EUR"}},{"$f":"SUBTOTAL(109,Kelionių_išlaidų[Grd])","v":{"v":4000,"d":"4,000.00 EUR"}},{"$f":"SUBTOTAL(109,Kelionių_išlaidų[METAI])","v":{"v":48000,"d":"48,000.00 EUR"}}]
[]
["Bendrosios sumos automatiškai apskaičiuojamos suplanuotų išlaidų bendrųjų sumų lentelėje, pradedant langeliu dešinėje.","BENDROSIOS SUMOS","Sau","Vas","Kov","Bal","Geg","Bir","Lie","Rgp","Rgs","Spl","Lap","Grd","Metai"]
[null,"Suplanuotos mėnesio išlaidos",{"$f":"Kelionių_išlaidų[[#Totals],[Sau]]+Rinkodaros_išlaidų[[#Totals],[Sau]]+Biuro_išlaidų[[#Totals],[Sau]]+Darbuotojų_išlaidų[[#Totals],[Sau]]","v":{"v":131420,"d":"131,420.00 EUR"}},{"$f":"Kelionių_išlaidų[[#Totals],[Vas]]+Rinkodaros_išlaidų[[#Totals],[Vas]]+Biuro_išlaidų[[#Totals],[Vas]]+Darbuotojų_išlaidų[[#Totals],[Vas]]","v":{"v":126820,"d":"126,820.00 EUR"}},{"$f":"Kelionių_išlaidų[[#Totals],[Kov]]+Rinkodaros_išlaidų[[#Totals],[Kov]]+Biuro_išlaidų[[#Totals],[Kov]]+Darbuotojų_išlaidų[[#Totals],[Kov]]","v":{"v":126820,"d":"126,820.00 EUR"}},{"$f":"Kelionių_išlaidų[[#Totals],[Bal]]+Rinkodaros_išlaidų[[#Totals],[Bal]]+Biuro_išlaidų[[#Totals],[Bal]]+Darbuotojų_išlaidų[[#Totals],[Bal]]","v":{"v":137695,"d":"137,695.00 EUR"}},{"$f":"Kelionių_išlaidų[[#Totals],[Geg]]+Rinkodaros_išlaidų[[#Totals],[Geg]]+Biuro_išlaidų[[#Totals],[Geg]]+Darbuotojų_išlaidų[[#Totals],[Geg]]","v":{"v":129695,"d":"129,695.00 EUR"}},{"$f":"Kelionių_išlaidų[[#Totals],[Bir]]+Rinkodaros_išlaidų[[#Totals],[Bir]]+Biuro_išlaidų[[#Totals],[Bir]]+Darbuotojų_išlaidų[[#Totals],[Bir]]","v":{"v":130495,"d":"130,495.00 EUR"}},{"$f":"Kelionių_išlaidų[[#Totals],[Lie]]+Rinkodaros_išlaidų[[#Totals],[Lie]]+Biuro_išlaidų[[#Totals],[Lie]]+Darbuotojų_išlaidų[[#Totals],[Lie]]","v":{"v":134695,"d":"134,695.00 EUR"}},{"$f":"Kelionių_išlaidų[[#Totals],[Rgp]]+Rinkodaros_išlaidų[[#Totals],[Rgp]]+Biuro_išlaidų[[#Totals],[Rgp]]+Darbuotojų_išlaidų[[#Totals],[Rgp]]","v":{"v":138918,"d":"138,918.00 EUR"}},{"$f":"Kelionių_išlaidų[[#Totals],[Rgs]]+Rinkodaros_išlaidų[[#Totals],[Rgs]]+Biuro_išlaidų[[#Totals],[Rgs]]+Darbuotojų_išlaidų[[#Totals],[Rgs]]","v":{"v":135918,"d":"135,918.00 EUR"}},{"$f":"Kelionių_išlaidų[[#Totals],[Spl]]+Rinkodaros_išlaidų[[#Totals],[Spl]]+Biuro_išlaidų[[#Totals],[Spl]]+Darbuotojų_išlaidų[[#Totals],[Spl]]","v":{"v":140918,"d":"140,918.00 EUR"}},{"$f":"Kelionių_išlaidų[[#Totals],[Lap]]+Rinkodaros_išlaidų[[#Totals],[Lap]]+Biuro_išlaidų[[#Totals],[Lap]]+Darbuotojų_išlaidų[[#Totals],[Lap]]","v":{"v":136218,"d":"136,218.00 EUR"}},{"$f":"Kelionių_išlaidų[[#Totals],[Grd]]+Rinkodaros_išlaidų[[#Totals],[Grd]]+Biuro_išlaidų[[#Totals],[Grd]]+Darbuotojų_išlaidų[[#Totals],[Grd]]","v":{"v":140018,"d":"140,018.00 EUR"}},{"$f":"Kelionių_išlaidų[[#Totals],[METAI]]+Rinkodaros_išlaidų[[#Totals],[METAI]]+Biuro_išlaidų[[#Totals],[METAI]]+Darbuotojų_išlaidų[[#Totals],[METAI]]","v":{"v":1609630,"d":"1,609,630.00 EUR"}}]
[null,"Suplanuotų išlaidų BENDROJI SUMA",{"$f":"SUM($C$36:C36)","v":{"v":131420,"d":"131,420.00 EUR"}},{"$f":"SUM($C$36:D36)","v":{"v":258240,"d":"258,240.00 EUR"}},{"$f":"SUM($C$36:E36)","v":{"v":385060,"d":"385,060.00 EUR"}},{"$f":"SUM($C$36:F36)","v":{"v":522755,"d":"522,755.00 EUR"}},{"$f":"SUM($C$36:G36)","v":{"v":652450,"d":"652,450.00 EUR"}},{"$f":"SUM($C$36:H36)","v":{"v":782945,"d":"782,945.00 EUR"}},{"$f":"SUM($C$36:I36)","v":{"v":917640,"d":"917,640.00 EUR"}},{"$f":"SUM($C$36:J36)","v":{"v":1056558,"d":"1,056,558.00 EUR"}},{"$f":"SUM($C$36:K36)","v":{"v":1192476,"d":"1,192,476.00 EUR"}},{"$f":"SUM($C$36:L36)","v":{"v":1333394,"d":"1,333,394.00 EUR"}},{"$f":"SUM($C$36:M36)","v":{"v":1469612,"d":"1,469,612.00 EUR"}},{"$f":"SUM($C$36:N36)","v":{"v":1609630,"d":"1,609,630.00 EUR"}}]

{"sheet":"FAKTINĖS IŠLAIDOS","index":2,"n_rows":37,"n_cols":16,"rows_kept":37,"merged":[[1,1,2,3],[1,10,1,12],[1,13,2,14],[2,10,2,12],[8,1,8,2],[19,1,19,2],[28,1,28,2],[33,1,33,2]]}
["Atitinkamose lentelėse šiame darbalapyje įveskite faktines darbuotojų išlaidos, biuro išlaidos, rinkodaros išlaidos ir mokymo arba kelionių išlaidas. Bendrosios sumos yra apskaičiuojamos automatiškai. Naudingos instrukcijos, kaip naudoti šį darbalapį, pateiktos šio stulpelio langeliuose. Paspauskite rodyklę žemyn, kad pradėtumėte.",{"$nulls":14}," "]
["Įmonės pavadinimas automatiškai atnaujinamas langelyje dešinėje. Šio darbalapio pavadinimas yra langelyje K2. Įveskite logotipą langelyje N2.",{"$f":"'SUPLANUOTOS IŠLAIDOS'!B2:D3","v":"Įmonės pavadinimas"},{"$nulls":8},{"$f":"darbalapio_pavadinimas","v":"Išsamios apskaičiuotos išlaidos"},null,null,"Šiame langelyje yra logotipo vietos rezervavimo ženklas."]
["Patarimas pateikiamas langelyje K3.",{"$nulls":9},"Patamsinti langeliai yra apskaičiuotos vertės."]
["Faktinės išlaidos žyma yra langelyje dešinėje, mėnesiai yra langeliuose nuo C4 iki N4, o metai žyma –  langelyje O4.","FAKTINĖS IŠLAIDOS","SAU","VAS","KOV","BAL","GEG","BIR","LIE","RGP","RGS","SPL","LAP","GRD","METAI"]
["Įveskite darbuotojų išlaidos darbuotojų faktinių išlaidų lentelėje, pradėdami langelyje dešinėje. Kitas nurodymas yra A10 langelyje.","Darbuotojų išlaidos","Sau","Vas","Kov","Bal","Geg","Bir","Lie","Rgp","Rgs","Spl","Lap","Grd","METAI"]
[null,"Darbo užmokesčiai",{"v":85000,"d":"85,000.00 EUR"},{"v":85000,"d":"85,000.00 EUR"},{"v":85000,"d":"85,000.00 EUR"},{"v":88000,"d":"88,000.00 EUR"},{"v":88000,"d":"88,000.00 EUR"},{"v":88000,"d":"88,000.00 EUR"},{"$nulls":6},{"$f":"SUM(C6:N6)","v":{"v":519000,"d":"519,000.00 EUR"}}]
[null,"Išmokos",{"$f":"C6*0.27","v":{"v":22950,"d":"22,950.00 EUR"}},{"v":22950,"d":"22,950.00 EUR"},{"v":22950,"d":"22,950.00 EUR"},{"v":23760,"d":"23,760.00 EUR"},{"v":23760,"d":"23,760.00 EUR"},{"v":23760,"d":"23,760.00 EUR"},{"v":0,"d":"0.00 EUR"},{"v":0,"d":"0.00 EUR"},{"v":0,"d":"0.00 EUR"},{"v":0,"d":"0.00 EUR"},{"v":0,"d":"0.00 EUR"},{"v":0,"d":"0.00 EUR"},{"$f":"SUM(C7:N7)","v":{"v":140130,"d":"140,130.00 EUR"}}]
[null,"Tarpinė suma",{"$f":"SUBTOTAL(109,Darbuotojų_faktinių_išlaidų[Sau])","v":{"v":107950,"d":"107,950.00 EUR"}},{"$f":"SUBTOTAL(109,Darbuotojų_faktinių_išlaidų[Vas])","v":{"v":107950,"d":"107,950.00 EUR"}},{"$f":"SUBTOTAL(109,Darbuotojų_faktinių_išlaidų[Kov])","v":{"v":107950,"d":"107,950.00 EUR"}},{"$f":"SUBTOTAL(109,Darbuotojų_faktinių_išlaidų[Bal])","v":{"v":111760,"d":"111,760.00 EUR"}},{"$f":"SUBTOTAL(109,Darbuotojų_faktinių_išlaidų[Geg])","v":{"v":111760,"d":"111,760.00 EUR"}},{"$f":"SUBTOTAL(109,Darbuotojų_faktinių_išlaidų[Bir])","v":{"v":111760,"d":"111,760.00 EUR"}},{"$f":"SUBTOTAL(109,Darbuotojų_faktinių_išlaidų[Lie])","v":{"v":0,"d":"0.00 EUR"}},{"$f":"SUBTOTAL(109,Darbuotojų_faktinių_išlaidų[Rgp])","v":{"v":0,"d":"0.00 EUR"}},{"$f":"SUBTOTAL(109,Darbuotojų_faktinių_išlaidų[Rgs])","v":{"v":0,"d":"0.00 EUR"}},{"$f":"SUBTOTAL(109,Darbuotojų_faktinių_išlaidų[Spl])","v":{"v":0,"d":"0.00 EUR"}},{"$f":"SUBTOTAL(109,Darbuotojų_faktinių_išlaidų[Lap])","v":{"v":0,"d":"0.00 EUR"}},{"$f":"SUBTOTAL(109,Darbuotojų_faktinių_išlaidų[Grd])","v":{"v":0,"d":"0.00 EUR"}},{"$f":"SUBTOTAL(109,Darbuotojų_faktinių_išlaidų[METAI])","v":{"v":659130,"d":"659,130.00 EUR"}}]
[]
["Įveskite biuro išlaidos biuro faktinių išlaidų lentelėje, pradėdami langelyje dešinėje. Kitas nurodymas yra A21 langelyje.","Biuro išlaidos","Sau","Vas","Kov","Bal","Geg","Bir","Lie","Rgp","Rgs","Spl","Lap","Grd","METAI"]
[null,"Biuro nuoma",{"v":9800,"d":"9,800.00 EUR"},{"v":9800,"d":"9,800.00 EUR"},{"v":9800,"d":"9,800.00 EUR"},{"v":9800,"d":"9,800.00 EUR"},{"v":9800,"d":"9,800.00 EUR"},{"v":9800,"d":"9,800.00 EUR"},{"$nulls":6},{"$f":"SUM(C11:N11)","v":{"v":58800,"d":"58,800.00 EUR"}}]
[null,"Dujos",{"v":4,"d":"4.00 EUR"},{"v":430,"d":"430.00 EUR"},{"v":385,"d":"385.00 EUR"},{"v":230,"d":"230.00 EUR"},{"v":87,"d":"87.00 EUR"},{"v":88,"d":"88.00 EUR"},{"$nulls":6},{"v":1224,"d":"1,224.00 EUR"}]
[null,"Elektra",{"v":288,"d":"288.00 EUR"},{"v":278,"d":"278.00 EUR"},{"v":268,"d":"268.00 EUR"},{"v":299,"d":"299.00 EUR"},{"v":306,"d":"306.00 EUR"},{"v":290,"d":"290.00 EUR"},{"$nulls":6},{"v":1729,"d":"1,729.00 EUR"}]
[null,"Vanduo",{"v":35,"d":"35.00 EUR"},{"v":33,"d":"33.00 EUR"},{"v":34,"d":"34.00 EUR"},{"v":36,"d":"36.00 EUR"},{"v":34,"d":"34.00 EUR"},{"v":36,"d":"36.00 EUR"},{"$nulls":6},{"v":208,"d":"208.00 EUR"}]
[null,"Telefonas",{"v":224,"d":"224.00 EUR"},{"v":235,"d":"235.00 EUR"},{"v":265,"d":"265.00 EUR"},{"v":245,"d":"245.00 EUR"},{"v":245,"d":"245.00 EUR"},{"v":220,"d":"220.00 EUR"},{"$nulls":6},{"v":1434,"d":"1,434.00 EUR"}]
[null,"Interneto prieiga",{"v":180,"d":"180.00 EUR"},{"v":180,"d":"180.00 EUR"},{"v":180,"d":"180.00 EUR"},{"v":180,"d":"180.00 EUR"},{"v":180,"d":"180.00 EUR"},{"v":180,"d":"180.00 EUR"},{"$nulls":6},{"v":1080,"d":"1,080.00 EUR"}]
[null,"Biuro reikmenys",{"v":256,"d":"256.00 EUR"},{"v":142,"d":"142.00 EUR"},{"v":160,"d":"160.00 EUR"},{"v":221,"d":"221.00 EUR"},{"v":256,"d":"256.00 EUR"},{"v":240,"d":"240.00 EUR"},{"$nulls":6},{"v":1275,"d":"1,275.00 EUR"}]
[null,"Apsauga",{"v":600,"d":"600.00 EUR"},{"v":600,"d":"600.00 EUR"},{"v":600,"d":"600.00 EUR"},{"v":600,"d":"600.00 EUR"},{"v":600,"d":"600.00 EUR"},{"v":600,"d":"600.00 EUR"},{"$nulls":6},{"v":3600,"d":"3,600.00 EUR"}]
[null,"Tarpinė suma",{"$f":"SUBTOTAL(109,Biuro_faktinių_išlaidų[Sau])","v":{"v":11387,"d":"11,387.00 EUR"}},{"$f":"SUBTOTAL(109,Biuro_faktinių_išlaidų[Vas])","v":{"v":11698,"d":"11,698.00 EUR"}},{"$f":"SUBTOTAL(109,Biuro_faktinių_išlaidų[Kov])","v":{"v":11692,"d":"11,692.00 EUR"}},{"$f":"SUBTOTAL(109,Biuro_faktinių_išlaidų[Bal])","v":{"v":11611,"d":"11,611.00 EUR"}},{"$f":"SUBTOTAL(109,Biuro_faktinių_išlaidų[Geg])","v":{"v":11508,"d":"11,508.00 EUR"}},{"$f":"SUBTOTAL(109,Biuro_faktinių_išlaidų[Bir])","v":{"v":11454,"d":"11,454.00 EUR"}},{"$f":"SUBTOTAL(109,Biuro_faktinių_išlaidų[Lie])","v":{"v":0,"d":"0.00 EUR"}},{"$f":"SUBTOTAL(109,Biuro_faktinių_išlaidų[Rgp])","v":{"v":0,"d":"0.00 EUR"}},{"$f":"SUBTOTAL(109,Biuro_faktinių_išlaidų[Rgs])","v":{"v":0,"d":"0.00 EUR"}},{"$f":"SUBTOTAL(109,Biuro_faktinių_išlaidų[Spl])","v":{"v":0,"d":"0.00 EUR"}},{"$f":"SUBTOTAL(109,Biuro_faktinių_išlaidų[Lap])","v":{"v":0,"d":"0.00 EUR"}},{"$f":"SUBTOTAL(109,Biuro_faktinių_išlaidų[Grd])","v":{"v":0,"d":"0.00 EUR"}},{"$f":"SUBTOTAL(109,Biuro_faktinių_išlaidų[METAI])","v":{"v":69350,"d":"69,350.00 EUR"}}]
[]
["Įveskite rinkodaros išlaidos faktinių rinkodaros išlaidų lentelėje, pradėdami langelyje dešinėje. Kitas nurodymas yra A30 langelyje.","Rinkodaros išlaidos","Sau","Vas","Kov","Bal","Geg","Bir","Lie","Rgp","Rgs","Spl","Lap","Grd","METAI"]
[null,"Svetainės išteklių nuoma",{"v":500,"d":"500.00 EUR"},{"v":500,"d":"500.00 EUR"},{"v":500,"d":"500.00 EUR"},{"v":500,"d":"500.00 EUR"},{"v":500,"d":"500.00 EUR"},{"v":500,"d":"500.00 EUR"},{"$nulls":6},{"$f":"SUM(C22:N22)","v":{"v":3000,"d":"3,000.00 EUR"}}]
[null,"Svetainės naujinimai",{"v":200,"d":"200.00 EUR"},{"v":200,"d":"200.00 EUR"},{"v":200,"d":"200.00 EUR"},{"v":200,"d":"200.00 EUR"},{"v":200,"d":"200.00 EUR"},{"v":1500,"d":"1,500.00 EUR"},{"$nulls":6},{"v":2500,"d":"2,500.00 EUR"}]
[null,"Dokumentų parengimas",{"v":4800,"d":"4,800.00 EUR"},{"v":0,"d":"0.00 EUR"},{"v":0,"d":"0.00 EUR"},{"v":5500,"d":"5,500.00 EUR"},{"v":0,"d":"0.00 EUR"},{"v":0,"d":"0.00 EUR"},{"$nulls":6},{"v":10300,"d":"10,300.00 EUR"}]
[null,"Dokumentų spausdinimas",{"v":100,"d":"100.00 EUR"},{"v":500,"d":"500.00 EUR"},{"v":100,"d":"100.00 EUR"},{"v":100,"d":"100.00 EUR"},{"v":600,"d":"600.00 EUR"},{"v":180,"d":"180.00 EUR"},{"$nulls":6},{"v":1580,"d":"1,580.00 EUR"}]
[null,"Rinkodaros įvykiai",{"v":1800,"d":"1,800.00 EUR"},{"v":2200,"d":"2,200.00 EUR"},{"v":2200,"d":"2,200.00 EUR"},{"v":4700,"d":"4,700.00 EUR"},{"v":1500,"d":"1,500.00 EUR"},{"v":2300,"d":"2,300.00 EUR"},{"$nulls":6},{"v":14700,"d":"14,700.00 EUR"}]
[null,"Įvairios išlaidos",{"v":145,"d":"145.00 EUR"},{"v":156,"d":"156.00 EUR"},{"v":123,"d":"123.00 EUR"},{"v":223,"d":"223.00 EUR"},{"v":187,"d":"187.00 EUR"},{"v":245,"d":"245.00 EUR"},{"$nulls":6},{"v":1079,"d":"1,079.00 EUR"}]
[null,"Tarpinė suma",{"$f":"SUBTOTAL(109,Faktinių_rinkodaros_išlaidų[Sau])","v":{"v":7545,"d":"7,545.00 EUR"}},{"$f":"SUBTOTAL(109,Faktinių_rinkodaros_išlaidų[Vas])","v":{"v":3556,"d":"3,556.00 EUR"}},{"$f":"SUBTOTAL(109,Faktinių_rinkodaros_išlaidų[Kov])","v":{"v":3123,"d":"3,123.00 EUR"}},{"$f":"SUBTOTAL(109,Faktinių_rinkodaros_išlaidų[Bal])","v":{"v":11223,"d":"11,223.00 EUR"}},{"$f":"SUBTOTAL(109,Faktinių_rinkodaros_išlaidų[Geg])","v":{"v":2987,"d":"2,987.00 EUR"}},{"$f":"SUBTOTAL(109,Faktinių_rinkodaros_išlaidų[Bir])","v":{"v":4725,"d":"4,725.00 EUR"}},{"$f":"SUBTOTAL(109,Faktinių_rinkodaros_išlaidų[Lie])","v":{"v":0,"d":"0.00 EUR"}},{"$f":"SUBTOTAL(109,Faktinių_rinkodaros_išlaidų[Rgp])","v":{"v":0,"d":"0.00 EUR"}},{"$f":"SUBTOTAL(109,Faktinių_rinkodaros_išlaidų[Rgs])","v":{"v":0,"d":"0.00 EUR"}},{"$f":"SUBTOTAL(109,Faktinių_rinkodaros_išlaidų[Spl])","v":{"v":0,"d":"0.00 EUR"}},{"$f":"SUBTOTAL(109,Faktinių_rinkodaros_išlaidų[Lap])","v":{"v":0,"d":"0.00 EUR"}},{"$f":"SUBTOTAL(109,Faktinių_rinkodaros_išlaidų[Grd])","v":{"v":0,"d":"0.00 EUR"}},{"$f":"SUBTOTAL(109,Faktinių_rinkodaros_išlaidų[METAI])","v":{"v":33159,"d":"33,159.00 EUR"}}]
[]
["Įveskite mokymo arba kelionių išlaidas faktinių mokymo ir kelionių išlaidų lentelėje, pradėdami langelyje dešinėje. Kitas nurodymas yra A35 langelyje.","Mokymas / kelionės","Sau","Vas","Kov","Bal","Geg","Bir","Lie","Rgp","Rgs","Spl","Lap","Grd","METAI"]
[null,"Mokymo klasės",{"v":1600,"d":"1,600.00 EUR"},{"v":2400,"d":"2,400.00 EUR"},{"v":1400,"d":"1,400.00 EUR"},{"v":1600,"d":"1,600.00 EUR"},{"v":1200,"d":"1,200.00 EUR"},{"v":2800,"d":"2,800.00 EUR"},{"$nulls":6},{"$f":"SUM(C31:N31)","v":{"v":11000,"d":"11,000.00 EUR"}}]
[null,"Su mokymu susijusios kelionių išlaidos",{"v":1200,"d":"1,200.00 EUR"},{"v":2200,"d":"2,200.00 EUR"},{"v":1400,"d":"1,400.00 EUR"},{"v":1200,"d":"1,200.00 EUR"},{"v":800,"d":"800.00 EUR"},{"v":3500,"d":"3,500.00 EUR"},{"$nulls":6},{"$f":"SUM(C32:N32)","v":{"v":10300,"d":"10,300.00 EUR"}}]
[null,"Tarpinė suma",{"$f":"SUBTOTAL(109,Faktinių_mokymo_ir_kelionių_išlaidų[Sau])","v":{"v":2800,"d":"2,800.00 EUR"}},{"$f":"SUBTOTAL(109,Faktinių_mokymo_ir_kelionių_išlaidų[Vas])","v":{"v":4600,"d":"4,600.00 EUR"}},{"$f":"SUBTOTAL(109,Faktinių_mokymo_ir_kelionių_išlaidų[Kov])","v":{"v":2800,"d":"2,800.00 EUR"}},{"$f":"SUBTOTAL(109,Faktinių_mokymo_ir_kelionių_išlaidų[Bal])","v":{"v":2800,"d":"2,800.00 EUR"}},{"$f":"SUBTOTAL(109,Faktinių_mokymo_ir_kelionių_išlaidų[Geg])","v":{"v":2000,"d":"2,000.00 EUR"}},{"$f":"SUBTOTAL(109,Faktinių_mokymo_ir_kelionių_išlaidų[Bir])","v":{"v":6300,"d":"6,300.00 EUR"}},{"$f":"SUBTOTAL(109,Faktinių_mokymo_ir_kelionių_išlaidų[Lie])","v":{"v":0,"d":"0.00 EUR"}},{"$f":"SUBTOTAL(109,Faktinių_mokymo_ir_kelionių_išlaidų[Rgp])","v":{"v":0,"d":"0.00 EUR"}},{"$f":"SUBTOTAL(109,Faktinių_mokymo_ir_kelionių_išlaidų[Rgs])","v":{"v":0,"d":"0.00 EUR"}},{"$f":"SUBTOTAL(109,Faktinių_mokymo_ir_kelionių_išlaidų[Spl])","v":{"v":0,"d":"0.00 EUR"}},{"$f":"SUBTOTAL(109,Faktinių_mokymo_ir_kelionių_išlaidų[Lap])","v":{"v":0,"d":"0.00 EUR"}},{"$f":"SUBTOTAL(109,Faktinių_mokymo_ir_kelionių_išlaidų[Grd])","v":{"v":0,"d":"0.00 EUR"}},{"$f":"SUBTOTAL(109,Faktinių_mokymo_ir_kelionių_išlaidų[METAI])","v":{"v":21300,"d":"21,300.00 EUR"}}]
[]
["Bendrosios faktinių išlaidų sumos automatiškai apskaičiuojamos faktinių išlaidų bendrųjų sumų lentelėje, pradedant langeliu dešinėje.","Suplanuotų išlaidų BENDROJI SUMA","Sau","Vas","Kov","Bal","Geg","Bir","Lie","Rgp","Rgs","Spl","Lap","Grd","Metai"]
[null,"Faktinės mėnesio išlaidos",{"$f":"Faktinių_mokymo_ir_kelionių_išlaidų[[#Totals],[Sau]]+Faktinių_rinkodaros_išlaidų[[#Totals],[Sau]]+Biuro_faktinių_išlaidų[[#Totals],[Sau]]+Darbuotojų_faktinių_išlaidų[[#Totals],[Sau]]","v":{"v":129682,"d":"129,682.00 EUR"}},{"$f":"Faktinių_mokymo_ir_kelionių_išlaidų[[#Totals],[Vas]]+Faktinių_rinkodaros_išlaidų[[#Totals],[Vas]]+Biuro_faktinių_išlaidų[[#Totals],[Vas]]+Darbuotojų_faktinių_išlaidų[[#Totals],[Vas]]","v":{"v":127804,"d":"127,804.00 EUR"}},{"$f":"Faktinių_mokymo_ir_kelionių_išlaidų[[#Totals],[Kov]]+Faktinių_rinkodaros_išlaidų[[#Totals],[Kov]]+Biuro_faktinių_išlaidų[[#Totals],[Kov]]+Darbuotojų_faktinių_išlaidų[[#Totals],[Kov]]","v":{"v":125565,"d":"125,565.00 EUR"}},{"$f":"Faktinių_mokymo_ir_kelionių_išlaidų[[#Totals],[Bal]]+Faktinių_rinkodaros_išlaidų[[#Totals],[Bal]]+Biuro_faktinių_išlaidų[[#Totals],[Bal]]+Darbuotojų_faktinių_išlaidų[[#Totals],[Bal]]","v":{"v":137394,"d":"137,394.00 EUR"}},{"$f":"Faktinių_mokymo_ir_kelionių_išlaidų[[#Totals],[Geg]]+Faktinių_rinkodaros_išlaidų[[#Totals],[Geg]]+Biuro_faktinių_išlaidų[[#Totals],[Geg]]+Darbuotojų_faktinių_išlaidų[[#Totals],[Geg]]","v":{"v":128255,"d":"128,255.00 EUR"}},{"$f":"Faktinių_mokymo_ir_kelionių_išlaidų[[#Totals],[Bir]]+Faktinių_rinkodaros_išlaidų[[#Totals],[Bir]]+Biuro_faktinių_išlaidų[[#Totals],[Bir]]+Darbuotojų_faktinių_išlaidų[[#Totals],[Bir]]","v":{"v":134239,"d":"134,239.00 EUR"}},{"$f":"Faktinių_mokymo_ir_kelionių_išlaidų[[#Totals],[Lie]]+Faktinių_rinkodaros_išlaidų[[#Totals],[Lie]]+Biuro_faktinių_išlaidų[[#Totals],[Lie]]+Darbuotojų_faktinių_išlaidų[[#Totals],[Lie]]","v":{"v":0,"d":"0.00 EUR"}},{"$f":"Faktinių_mokymo_ir_kelionių_išlaidų[[#Totals],[Rgp]]+Faktinių_rinkodaros_išlaidų[[#Totals],[Rgp]]+Biuro_faktinių_išlaidų[[#Totals],[Rgp]]+Darbuotojų_faktinių_išlaidų[[#Totals],[Rgp]]","v":{"v":0,"d":"0.00 EUR"}},{"$f":"Faktinių_mokymo_ir_kelionių_išlaidų[[#Totals],[Rgs]]+Faktinių_rinkodaros_išlaidų[[#Totals],[Rgs]]+Biuro_faktinių_išlaidų[[#Totals],[Rgs]]+Darbuotojų_faktinių_išlaidų[[#Totals],[Rgs]]","v":{"v":0,"d":"0.00 EUR"}},{"$f":"Faktinių_mokymo_ir_kelionių_išlaidų[[#Totals],[Spl]]+Faktinių_rinkodaros_išlaidų[[#Totals],[Spl]]+Biuro_faktinių_išlaidų[[#Totals],[Spl]]+Darbuotojų_faktinių_išlaidų[[#Totals],[Spl]]","v":{"v":0,"d":"0.00 EUR"}},{"$f":"Faktinių_mokymo_ir_kelionių_išlaidų[[#Totals],[Lap]]+Faktinių_rinkodaros_išlaidų[[#Totals],[Lap]]+Biuro_faktinių_išlaidų[[#Totals],[Lap]]+Darbuotojų_faktinių_išlaidų[[#Totals],[Lap]]","v":{"v":0,"d":"0.00 EUR"}},{"$f":"Faktinių_mokymo_ir_kelionių_išlaidų[[#Totals],[Grd]]+Faktinių_rinkodaros_išlaidų[[#Totals],[Grd]]+Biuro_faktinių_išlaidų[[#Totals],[Grd]]+Darbuotojų_faktinių_išlaidų[[#Totals],[Grd]]","v":{"v":0,"d":"0.00 EUR"}},{"$f":"Faktinių_mokymo_ir_kelionių_išlaidų[[#Totals],[METAI]]+Faktinių_rinkodaros_išlaidų[[#Totals],[METAI]]+Biuro_faktinių_išlaidų[[#Totals],[METAI]]+Darbuotojų_faktinių_išlaidų[[#Totals],[METAI]]","v":{"v":782939,"d":"782,939.00 EUR"}}]
[null,"Faktinių išlaidų BENDROJI SUMA",{"$f":"SUM($C$36:C36)","v":{"v":129682,"d":"129,682.00 EUR"}},{"$f":"SUM($C$36:D36)","v":{"v":257486,"d":"257,486.00 EUR"}},{"$f":"SUM($C$36:E36)","v":{"v":383051,"d":"383,051.00 EUR"}},{"$f":"SUM($C$36:F36)","v":{"v":520445,"d":"520,445.00 EUR"}},{"$f":"SUM($C$36:G36)","v":{"v":648700,"d":"648,700.00 EUR"}},{"$f":"SUM($C$36:H36)","v":{"v":782939,"d":"782,939.00 EUR"}},{"$f":"SUM($C$36:I36)","v":{"v":782939,"d":"782,939.00 EUR"}},{"$f":"SUM($C$36:J36)","v":{"v":782939,"d":"782,939.00 EUR"}},{"$f":"SUM($C$36:K36)","v":{"v":782939,"d":"782,939.00 EUR"}},{"$f":"SUM($C$36:L36)","v":{"v":782939,"d":"782,939.00 EUR"}},{"$f":"SUM($C$36:M36)","v":{"v":782939,"d":"782,939.00 EUR"}},{"$f":"SUM($C$36:N36)","v":{"v":782939,"d":"782,939.00 EUR"}}]

{"sheet":"IŠLAIDŲ NUOKRYPIAI","index":3,"n_rows":37,"n_cols":16,"rows_kept":37,"merged":[[1,1,2,3],[1,10,1,12],[1,13,2,14],[2,10,2,12],[8,1,8,2],[19,1,19,2],[28,1,28,2],[33,1,33,2]]}
["Atitinkamose lentelėse šiame darbalapyje darbuotojų išlaidos, biuro išlaidos, rinkodaros išlaidos ir mokymo arba kelionių išlaidų nuokrypiai apskaičiuojami automatiškai. Naudingos instrukcijos, kaip naudoti šį darbalapį, pateiktos šio stulpelio langeliuose. Paspauskite rodyklę žemyn, kad pradėtumėte.",{"$nulls":14}," "]
["Įmonės pavadinimas automatiškai atnaujinamas langelyje dešinėje. Šio darbalapio pavadinimas yra langelyje K2. Įveskite logotipą langelyje N2.",{"$f":"'SUPLANUOTOS IŠLAIDOS'!B2:D3","v":"Įmonės pavadinimas"},{"$nulls":8},{"$f":"darbalapio_pavadinimas","v":"Išsamios apskaičiuotos išlaidos"},null,null,"Šiame langelyje yra logotipo vietos rezervavimo ženklas."]
["Patarimas pateikiamas langelyje K3.",{"$nulls":9},"Patamsinti langeliai yra apskaičiuotos vertės."]
["Išlaidų nuokrypiai žyma yra langelyje dešinėje, mėnesiai yra langeliuose nuo C4 iki N4, o metai žyma –  langelyje O4.","IŠLAIDŲ NUOKRYPIAI","SAU","VAS","KOV","BAL","GEG","BIR","LIE","RGP","RGS","SPL","LAP","GRD","METAI"]
["Darbuotojų išlaidos nuokrypis automatiškai apskaičiuojamas darbuotojų išlaidų nuokrypių lentelėje, pradedant langeliu dešinėje. Kitas nurodymas yra A10 langelyje.","Darbuotojų išlaidos","Sau","Vas","Kov","Bal","Geg","Bir","Lie","Rgp","Rgs","Spl","Lap","Grd","METAI"]
[null,"Darbo užmokesčiai",{"$f":"INDEX(Darbuotojų_išlaidų[],MATCH(INDEX(Darbuotojų_išlaidų_nuokrypių[],ROW()-ROW(Darbuotojų_išlaidų_nuokrypių[[#Headers],[Sau]]),1),INDEX(Darbuotojų_išlaidų[],,1),0),MATCH(Darbuotojų_išlaidų_nuokrypių[[#Headers],[Sau]],Darbuotojų_išlaidų[#Headers],0))-INDEX(Darbuotojų_faktinių_išlaidų[],MATCH(INDEX(Darbuotojų_išlaidų_nuokrypių[],ROW()-ROW(Darbuotojų_išlaidų_nuokrypių[[#Headers],[Sau]]),1),INDEX(Darbuotojų_išlaidų[],,1),0),MATCH(Darbuotojų_išlaidų_nuokrypių[[#Headers],[Sau]],Darbuotojų_faktinių_išlaidų[#Headers],0))","v":{"v":0,"d":"0.00 EUR"}},{"$f":"INDEX(Darbuotojų_išlaidų[],MATCH(INDEX(Darbuotojų_išlaidų_nuokrypių[],ROW()-ROW(Darbuotojų_išlaidų_nuokrypių[[#Headers],[Vas]]),1),INDEX(Darbuotojų_išlaidų[],,1),0),MATCH(Darbuotojų_išlaidų_nuokrypių[[#Headers],[Vas]],Darbuotojų_išlaidų[#Headers],0))-INDEX(Darbuotojų_faktinių_išlaidų[],MATCH(INDEX(Darbuotojų_išlaidų_nuokrypių[],ROW()-ROW(Darbuotojų_išlaidų_nuokrypių[[#Headers],[Vas]]),1),INDEX(Darbuotojų_išlaidų[],,1),0),MATCH(Darbuotojų_išlaidų_nuokrypių[[#Headers],[Vas]],Darbuotojų_faktinių_išlaidų[#Headers],0))","v":{"v":0,"d":"0.00 EUR"}},{"$f":"INDEX(Darbuotojų_išlaidų[],MATCH(INDEX(Darbuotojų_išlaidų_nuokrypių[],ROW()-ROW(Darbuotojų_išlaidų_nuokrypių[[#Headers],[Kov]]),1),INDEX(Darbuotojų_išlaidų[],,1),0),MATCH(Darbuotojų_išlaidų_nuokrypių[[#Headers],[Kov]],Darbuotojų_išlaidų[#Headers],0))-INDEX(Darbuotojų_faktinių_išlaidų[],MATCH(INDEX(Darbuotojų_išlaidų_nuokrypių[],ROW()-ROW(Darbuotojų_išlaidų_nuokrypių[[#Headers],[Kov]]),1),INDEX(Darbuotojų_išlaidų[],,1),0),MATCH(Darbuotojų_išlaidų_nuokrypių[[#Headers],[Kov]],Darbuotojų_faktinių_išlaidų[#Headers],0))","v":{"v":0,"d":"0.00 EUR"}},{"$f":"INDEX(Darbuotojų_išlaidų[],MATCH(INDEX(Darbuotojų_išlaidų_nuokrypių[],ROW()-ROW(Darbuotojų_išlaidų_nuokrypių[[#Headers],[Bal]]),1),INDEX(Darbuotojų_išlaidų[],,1),0),MATCH(Darbuotojų_išlaidų_nuokrypių[[#Headers],[Bal]],Darbuotojų_išlaidų[#Headers],0))-INDEX(Darbuotojų_faktinių_išlaidų[],MATCH(INDEX(Darbuotojų_išlaidų_nuokrypių[],ROW()-ROW(Darbuotojų_išlaidų_nuokrypių[[#Headers],[Bal]]),1),INDEX(Darbuotojų_išlaidų[],,1),0),MATCH(Darbuotojų_išlaidų_nuokrypių[[#Headers],[Bal]],Darbuotojų_faktinių_išlaidų[#Headers],0))","v":{"v":-500,"d":"-500.00 EUR"}},{"$f":"INDEX(Darbuotojų_išlaidų[],MATCH(INDEX(Darbuotojų_išlaidų_nuokrypių[],ROW()-ROW(Darbuotojų_išlaidų_nuokrypių[[#Headers],[Geg]]),1),INDEX(Darbuotojų_išlaidų[],,1),0),MATCH(Darbuotojų_išlaidų_nuokrypių[[#Headers],[Geg]],Darbuotojų_išlaidų[#Headers],0))-INDEX(Darbuotojų_faktinių_išlaidų[],MATCH(INDEX(Darbuotojų_išlaidų_nuokrypių[],ROW()-ROW(Darbuotojų_išlaidų_nuokrypių[[#Headers],[Geg]]),1),INDEX(Darbuotojų_išlaidų[],,1),0),MATCH(Darbuotojų_išlaidų_nuokrypių[[#Headers],[Geg]],Darbuotojų_faktinių_išlaidų[#Headers],0))","v":{"v":-500,"d":"-500.00 EUR"}},{"$f":"INDEX(Darbuotojų_išlaidų[],MATCH(INDEX(Darbuotojų_išlaidų_nuokrypių[],ROW()-ROW(Darbuotojų_išlaidų_nuokrypių[[#Headers],[Bir]]),1),INDEX(Darbuotojų_išlaidų[],,1),0),MATCH(Darbuotojų_išlaidų_nuokrypių[[#Headers],[Bir]],Darbuotojų_išlaidų[#Headers],0))-INDEX(Darbuotojų_faktinių_išlaidų[],MATCH(INDEX(Darbuotojų_išlaidų_nuokrypių[],ROW()-ROW(Darbuotojų_išlaidų_nuokrypių[[#Headers],[Bir]]),1),INDEX(Darbuotojų_išlaidų[],,1),0),MATCH(Darbuotojų_išlaidų_nuokrypių[[#Headers],[Bir]],Darbuotojų_faktinių_išlaidų[#Headers],0))","v":{"v":-500,"d":"-500.00 EUR"}},{"$f":"INDEX(Darbuotojų_išlaidų[],MATCH(INDEX(Darbuotojų_išlaidų_nuokrypių[],ROW()-ROW(Darbuotojų_išlaidų_nuokrypių[[#Headers],[Lie]]),1),INDEX(Darbuotojų_išlaidų[],,1),0),MATCH(Darbuotojų_išlaidų_nuokrypių[[#Headers],[Lie]],Darbuotojų_išlaidų[#Headers],0))-INDEX(Darbuotojų_faktinių_išlaidų[],MATCH(INDEX(Darbuotojų_išlaidų_nuokrypių[],ROW()-ROW(Darbuotojų_išlaidų_nuokrypių[[#Headers],[Lie]]),1),INDEX(Darbuotojų_išlaidų[],,1),0),MATCH(Darbuotojų_išlaidų_nuokrypių[[#Headers],[Lie]],Darbuotojų_faktinių_išlaidų[#Headers],0))","v":{"v":87500,"d":"87,500.00 EUR"}},{"$f":"INDEX(Darbuotojų_išlaidų[],MATCH(INDEX(Darbuotojų_išlaidų_nuokrypių[],ROW()-ROW(Darbuotojų_išlaidų_nuokrypių[[#Headers],[Rgp]]),1),INDEX(Darbuotojų_išlaidų[],,1),0),MATCH(Darbuotojų_išlaidų_nuokrypių[[#Headers],[Rgp]],Darbuotojų_išlaidų[#Headers],0))-INDEX(Darbuotojų_faktinių_išlaidų[],MATCH(INDEX(Darbuotojų_išlaidų_nuokrypių[],ROW()-ROW(Darbuotojų_išlaidų_nuokrypių[[#Headers],[Rgp]]),1),INDEX(Darbuotojų_išlaidų[],,1),0),MATCH(Darbuotojų_išlaidų_nuokrypių[[#Headers],[Rgp]],Darbuotojų_faktinių_išlaidų[#Headers],0))","v":{"v":92400,"d":"92,400.00 EUR"}},{"$f":"INDEX(Darbuotojų_išlaidų[],MATCH(INDEX(Darbuotojų_išlaidų_nuokrypių[],ROW()-ROW(Darbuotojų_išlaidų_nuokrypių[[#Headers],[Rgs]]),1),INDEX(Darbuotojų_išlaidų[],,1),0),MATCH(Darbuotojų_išlaidų_nuokrypių[[#Headers],[Rgs]],Darbuotojų_išlaidų[#Headers],0))-INDEX(Darbuotojų_faktinių_išlaidų[],MATCH(INDEX(Darbuotojų_išlaidų_nuokrypių[],ROW()-ROW(Darbuotojų_išlaidų_nuokrypių[[#Headers],[Rgs]]),1),INDEX(Darbuotojų_išlaidų[],,1),0),MATCH(Darbuotojų_išlaidų_nuokrypių[[#Headers],[Rgs]],Darbuotojų_faktinių_išlaidų[#Headers],0))","v":{"v":92400,"d":"92,400.00 EUR"}},{"$f":"INDEX(Darbuotojų_išlaidų[],MATCH(INDEX(Darbuotojų_išlaidų_nuokrypių[],ROW()-ROW(Darbuotojų_išlaidų_nuokrypių[[#Headers],[Spl]]),1),INDEX(Darbuotojų_išlaidų[],,1),0),MATCH(Darbuotojų_išlaidų_nuokrypių[[#Headers],[Spl]],Darbuotojų_išlaidų[#Headers],0))-INDEX(Darbuotojų_faktinių_išlaidų[],MATCH(INDEX(Darbuotojų_išlaidų_nuokrypių[],ROW()-ROW(Darbuotojų_išlaidų_nuokrypių[[#Headers],[Spl]]),1),INDEX(Darbuotojų_išlaidų[],,1),0),MATCH(Darbuotojų_išlaidų_nuokrypių[[#Headers],[Spl]],Darbuotojų_faktinių_išlaidų[#Headers],0))","v":{"v":92400,"d":"92,400.00 EUR"}},{"$f":"INDEX(Darbuotojų_išlaidų[],MATCH(INDEX(Darbuotojų_išlaidų_nuokrypių[],ROW()-ROW(Darbuotojų_išlaidų_nuokrypių[[#Headers],[Lap]]),1),INDEX(Darbuotojų_išlaidų[],,1),0),MATCH(Darbuotojų_išlaidų_nuokrypių[[#Headers],[Lap]],Darbuotojų_išlaidų[#Headers],0))-INDEX(Darbuotojų_faktinių_išlaidų[],MATCH(INDEX(Darbuotojų_išlaidų_nuokrypių[],ROW()-ROW(Darbuotojų_išlaidų_nuokrypių[[#Headers],[Lap]]),1),INDEX(Darbuotojų_išlaidų[],,1),0),MATCH(Darbuotojų_išlaidų_nuokrypių[[#Headers],[Lap]],Darbuotojų_faktinių_išlaidų[#Headers],0))","v":{"v":92400,"d":"92,400.00 EUR"}},{"$f":"INDEX(Darbuotojų_išlaidų[],MATCH(INDEX(Darbuotojų_išlaidų_nuokrypių[],ROW()-ROW(Darbuotojų_išlaidų_nuokrypių[[#Headers],[Grd]]),1),INDEX(Darbuotojų_išlaidų[],,1),0),MATCH(Darbuotojų_išlaidų_nuokrypių[[#Headers],[Grd]],Darbuotojų_išlaidų[#Headers],0))-INDEX(Darbuotojų_faktinių_išlaidų[],MATCH(INDEX(Darbuotojų_išlaidų_nuokrypių[],ROW()-ROW(Darbuotojų_išlaidų_nuokrypių[[#Headers],[Grd]]),1),INDEX(Darbuotojų_išlaidų[],,1),0),MATCH(Darbuotojų_išlaidų_nuokrypių[[#Headers],[Grd]],Darbuotojų_faktinių_išlaidų[#Headers],0))","v":{"v":92400,"d":"92,400.00 EUR"}},{"$f":"SUM(Darbuotojų_išlaidų_nuokrypių[[#This Row],[Sau]:[Grd]])","v":{"v":548000,"d":"548,000.00 EUR"}}]
[null,"Išmokos",{"$f":"INDEX(Darbuotojų_išlaidų[],MATCH(INDEX(Darbuotojų_išlaidų_nuokrypių[],ROW()-ROW(Darbuotojų_išlaidų_nuokrypių[[#Headers],[Sau]]),1),INDEX(Darbuotojų_išlaidų[],,1),0),MATCH(Darbuotojų_išlaidų_nuokrypių[[#Headers],[Sau]],Darbuotojų_išlaidų[#Headers],0))-INDEX(Darbuotojų_faktinių_išlaidų[],MATCH(INDEX(Darbuotojų_išlaidų_nuokrypių[],ROW()-ROW(Darbuotojų_išlaidų_nuokrypių[[#Headers],[Sau]]),1),INDEX(Darbuotojų_išlaidų[],,1),0),MATCH(Darbuotojų_išlaidų_nuokrypių[[#Headers],[Sau]],Darbuotojų_faktinių_išlaidų[#Headers],0))","v":{"v":0,"d":"0.00 EUR"}},{"$f":"INDEX(Darbuotojų_išlaidų[],MATCH(INDEX(Darbuotojų_išlaidų_nuokrypių[],ROW()-ROW(Darbuotojų_išlaidų_nuokrypių[[#Headers],[Vas]]),1),INDEX(Darbuotojų_išlaidų[],,1),0),MATCH(Darbuotojų_išlaidų_nuokrypių[[#Headers],[Vas]],Darbuotojų_išlaidų[#Headers],0))-INDEX(Darbuotojų_faktinių_išlaidų[],MATCH(INDEX(Darbuotojų_išlaidų_nuokrypių[],ROW()-ROW(Darbuotojų_išlaidų_nuokrypių[[#Headers],[Vas]]),1),INDEX(Darbuotojų_išlaidų[],,1),0),MATCH(Darbuotojų_išlaidų_nuokrypių[[#Headers],[Vas]],Darbuotojų_faktinių_išlaidų[#Headers],0))","v":{"v":0,"d":"0.00 EUR"}},{"$f":"INDEX(Darbuotojų_išlaidų[],MATCH(INDEX(Darbuotojų_išlaidų_nuokrypių[],ROW()-ROW(Darbuotojų_išlaidų_nuokrypių[[#Headers],[Kov]]),1),INDEX(Darbuotojų_išlaidų[],,1),0),MATCH(Darbuotojų_išlaidų_nuokrypių[[#Headers],[Kov]],Darbuotojų_išlaidų[#Headers],0))-INDEX(Darbuotojų_faktinių_išlaidų[],MATCH(INDEX(Darbuotojų_išlaidų_nuokrypių[],ROW()-ROW(Darbuotojų_išlaidų_nuokrypių[[#Headers],[Kov]]),1),INDEX(Darbuotojų_išlaidų[],,1),0),MATCH(Darbuotojų_išlaidų_nuokrypių[[#Headers],[Kov]],Darbuotojų_faktinių_išlaidų[#Headers],0))","v":{"v":0,"d":"0.00 EUR"}},{"$f":"INDEX(Darbuotojų_išlaidų[],MATCH(INDEX(Darbuotojų_išlaidų_nuokrypių[],ROW()-ROW(Darbuotojų_išlaidų_nuokrypių[[#Headers],[Bal]]),1),INDEX(Darbuotojų_išlaidų[],,1),0),MATCH(Darbuotojų_išlaidų_nuokrypių[[#Headers],[Bal]],Darbuotojų_išlaidų[#Headers],0))-INDEX(Darbuotojų_faktinių_išlaidų[],MATCH(INDEX(Darbuotojų_išlaidų_nuokrypių[],ROW()-ROW(Darbuotojų_išlaidų_nuokrypių[[#Headers],[Bal]]),1),INDEX(Darbuotojų_išlaidų[],,1),0),MATCH(Darbuotojų_išlaidų_nuokrypių[[#Headers],[Bal]],Darbuotojų_faktinių_išlaidų[#Headers],0))","v":{"v":-135,"d":"-135.00 EUR"}},{"$f":"INDEX(Darbuotojų_išlaidų[],MATCH(INDEX(Darbuotojų_išlaidų_nuokrypių[],ROW()-ROW(Darbuotojų_išlaidų_nuokrypių[[#Headers],[Geg]]),1),INDEX(Darbuotojų_išlaidų[],,1),0),MATCH(Darbuotojų_išlaidų_nuokrypių[[#Headers],[Geg]],Darbuotojų_išlaidų[#Headers],0))-INDEX(Darbuotojų_faktinių_išlaidų[],MATCH(INDEX(Darbuotojų_išlaidų_nuokrypių[],ROW()-ROW(Darbuotojų_išlaidų_nuokrypių[[#Headers],[Geg]]),1),INDEX(Darbuotojų_išlaidų[],,1),0),MATCH(Darbuotojų_išlaidų_nuokrypių[[#Headers],[Geg]],Darbuotojų_faktinių_išlaidų[#Headers],0))","v":{"v":-135,"d":"-135.00 EUR"}},{"$f":"INDEX(Darbuotojų_išlaidų[],MATCH(INDEX(Darbuotojų_išlaidų_nuokrypių[],ROW()-ROW(Darbuotojų_išlaidų_nuokrypių[[#Headers],[Bir]]),1),INDEX(Darbuotojų_išlaidų[],,1),0),MATCH(Darbuotojų_išlaidų_nuokrypių[[#Headers],[Bir]],Darbuotojų_išlaidų[#Headers],0))-INDEX(Darbuotojų_faktinių_išlaidų[],MATCH(INDEX(Darbuotojų_išlaidų_nuokrypių[],ROW()-ROW(Darbuotojų_išlaidų_nuokrypių[[#Headers],[Bir]]),1),INDEX(Darbuotojų_išlaidų[],,1),0),MATCH(Darbuotojų_išlaidų_nuokrypių[[#Headers],[Bir]],Darbuotojų_faktinių_išlaidų[#Headers],0))","v":{"v":-135,"d":"-135.00 EUR"}},{"$f":"INDEX(Darbuotojų_išlaidų[],MATCH(INDEX(Darbuotojų_išlaidų_nuokrypių[],ROW()-ROW(Darbuotojų_išlaidų_nuokrypių[[#Headers],[Lie]]),1),INDEX(Darbuotojų_išlaidų[],,1),0),MATCH(Darbuotojų_išlaidų_nuokrypių[[#Headers],[Lie]],Darbuotojų_išlaidų[#Headers],0))-INDEX(Darbuotojų_faktinių_išlaidų[],MATCH(INDEX(Darbuotojų_išlaidų_nuokrypių[],ROW()-ROW(Darbuotojų_išlaidų_nuokrypių[[#Headers],[Lie]]),1),INDEX(Darbuotojų_išlaidų[],,1),0),MATCH(Darbuotojų_išlaidų_nuokrypių[[#Headers],[Lie]],Darbuotojų_faktinių_išlaidų[#Headers],0))","v":{"v":23625,"d":"23,625.00 EUR"}},{"$f":"INDEX(Darbuotojų_išlaidų[],MATCH(INDEX(Darbuotojų_išlaidų_nuokrypių[],ROW()-ROW(Darbuotojų_išlaidų_nuokrypių[[#Headers],[Rgp]]),1),INDEX(Darbuotojų_išlaidų[],,1),0),MATCH(Darbuotojų_išlaidų_nuokrypių[[#Headers],[Rgp]],Darbuotojų_išlaidų[#Headers],0))-INDEX(Darbuotojų_faktinių_išlaidų[],MATCH(INDEX(Darbuotojų_išlaidų_nuokrypių[],ROW()-ROW(Darbuotojų_išlaidų_nuokrypių[[#Headers],[Rgp]]),1),INDEX(Darbuotojų_išlaidų[],,1),0),MATCH(Darbuotojų_išlaidų_nuokrypių[[#Headers],[Rgp]],Darbuotojų_faktinių_išlaidų[#Headers],0))","v":{"v":24948,"d":"24,948.00 EUR"}},{"$f":"INDEX(Darbuotojų_išlaidų[],MATCH(INDEX(Darbuotojų_išlaidų_nuokrypių[],ROW()-ROW(Darbuotojų_išlaidų_nuokrypių[[#Headers],[Rgs]]),1),INDEX(Darbuotojų_išlaidų[],,1),0),MATCH(Darbuotojų_išlaidų_nuokrypių[[#Headers],[Rgs]],Darbuotojų_išlaidų[#Headers],0))-INDEX(Darbuotojų_faktinių_išlaidų[],MATCH(INDEX(Darbuotojų_išlaidų_nuokrypių[],ROW()-ROW(Darbuotojų_išlaidų_nuokrypių[[#Headers],[Rgs]]),1),INDEX(Darbuotojų_išlaidų[],,1),0),MATCH(Darbuotojų_išlaidų_nuokrypių[[#Headers],[Rgs]],Darbuotojų_faktinių_išlaidų[#Headers],0))","v":{"v":24948,"d":"24,948.00 EUR"}},{"$f":"INDEX(Darbuotojų_išlaidų[],MATCH(INDEX(Darbuotojų_išlaidų_nuokrypių[],ROW()-ROW(Darbuotojų_išlaidų_nuokrypių[[#Headers],[Spl]]),1),INDEX(Darbuotojų_išlaidų[],,1),0),MATCH(Darbuotojų_išlaidų_nuokrypių[[#Headers],[Spl]],Darbuotojų_išlaidų[#Headers],0))-INDEX(Darbuotojų_faktinių_išlaidų[],MATCH(INDEX(Darbuotojų_išlaidų_nuokrypių[],ROW()-ROW(Darbuotojų_išlaidų_nuokrypių[[#Headers],[Spl]]),1),INDEX(Darbuotojų_išlaidų[],,1),0),MATCH(Darbuotojų_išlaidų_nuokrypių[[#Headers],[Spl]],Darbuotojų_faktinių_išlaidų[#Headers],0))","v":{"v":24948,"d":"24,948.00 EUR"}},{"$f":"INDEX(Darbuotojų_išlaidų[],MATCH(INDEX(Darbuotojų_išlaidų_nuokrypių[],ROW()-ROW(Darbuotojų_išlaidų_nuokrypių[[#Headers],[Lap]]),1),INDEX(Darbuotojų_išlaidų[],,1),0),MATCH(Darbuotojų_išlaidų_nuokrypių[[#Headers],[Lap]],Darbuotojų_išlaidų[#Headers],0))-INDEX(Darbuotojų_faktinių_išlaidų[],MATCH(INDEX(Darbuotojų_išlaidų_nuokrypių[],ROW()-ROW(Darbuotojų_išlaidų_nuokrypių[[#Headers],[Lap]]),1),INDEX(Darbuotojų_išlaidų[],,1),0),MATCH(Darbuotojų_išlaidų_nuokrypių[[#Headers],[Lap]],Darbuotojų_faktinių_išlaidų[#Headers],0))","v":{"v":24948,"d":"24,948.00 EUR"}},{"$f":"INDEX(Darbuotojų_išlaidų[],MATCH(INDEX(Darbuotojų_išlaidų_nuokrypių[],ROW()-ROW(Darbuotojų_išlaidų_nuokrypių[[#Headers],[Grd]]),1),INDEX(Darbuotojų_išlaidų[],,1),0),MATCH(Darbuotojų_išlaidų_nuokrypių[[#Headers],[Grd]],Darbuotojų_išlaidų[#Headers],0))-INDEX(Darbuotojų_faktinių_išlaidų[],MATCH(INDEX(Darbuotojų_išlaidų_nuokrypių[],ROW()-ROW(Darbuotojų_išlaidų_nuokrypių[[#Headers],[Grd]]),1),INDEX(Darbuotojų_išlaidų[],,1),0),MATCH(Darbuotojų_išlaidų_nuokrypių[[#Headers],[Grd]],Darbuotojų_faktinių_išlaidų[#Headers],0))","v":{"v":24948,"d":"24,948.00 EUR"}},{"$f":"SUM(Darbuotojų_išlaidų_nuokrypių[[#This Row],[Sau]:[Grd]])","v":{"v":147960,"d":"147,960.00 EUR"}}]
[null,"Tarpinė suma",{"$f":"SUBTOTAL(109,Darbuotojų_išlaidų_nuokrypių[Sau])","v":{"v":0,"d":"0.00 EUR"}},{"$f":"SUBTOTAL(109,Darbuotojų_išlaidų_nuokrypių[Vas])","v":{"v":0,"d":"0.00 EUR"}},{"$f":"SUBTOTAL(109,Darbuotojų_išlaidų_nuokrypių[Kov])","v":{"v":0,"d":"0.00 EUR"}},{"$f":"SUBTOTAL(109,Darbuotojų_išlaidų_nuokrypių[Bal])","v":{"v":-635,"d":"-635.00 EUR"}},{"$f":"SUBTOTAL(109,Darbuotojų_išlaidų_nuokrypių[Geg])","v":{"v":-635,"d":"-635.00 EUR"}},{"$f":"SUBTOTAL(109,Darbuotojų_išlaidų_nuokrypių[Bir])","v":{"v":-635,"d":"-635.00 EUR"}},{"$f":"SUBTOTAL(109,Darbuotojų_išlaidų_nuokrypių[Lie])","v":{"v":111125,"d":"111,125.00 EUR"}},{"$f":"SUBTOTAL(109,Darbuotojų_išlaidų_nuokrypių[Rgp])","v":{"v":117348,"d":"117,348.00 EUR"}},{"$f":"SUBTOTAL(109,Darbuotojų_išlaidų_nuokrypių[Rgs])","v":{"v":117348,"d":"117,348.00 EUR"}},{"$f":"SUBTOTAL(109,Darbuotojų_išlaidų_nuokrypių[Spl])","v":{"v":117348,"d":"117,348.00 EUR"}},{"$f":"SUBTOTAL(109,Darbuotojų_išlaidų_nuokrypių[Lap])","v":{"v":117348,"d":"117,348.00 EUR"}},{"$f":"SUBTOTAL(109,Darbuotojų_išlaidų_nuokrypių[Grd])","v":{"v":117348,"d":"117,348.00 EUR"}},{"$f":"SUBTOTAL(109,Darbuotojų_išlaidų_nuokrypių[METAI])","v":{"v":695960,"d":"695,960.00 EUR"}}]
[]
["Biuro išlaidos nuokrypis automatiškai apskaičiuojamas biuro išlaidų nuokrypių lentelėje, pradedant langeliu dešinėje. Kitas nurodymas yra A21 langelyje.","Biuro išlaidos","Sau","Vas","Kov","Bal","Geg","Bir","Lie","Rgp","Rgs","Spl","Lap","Grd","METAI"]
[null,"Biuro nuoma",{"$f":"INDEX(Biuro_išlaidų[],MATCH(INDEX(Biuro_išlaidų_nuokrypių[],ROW()-ROW(Biuro_išlaidų_nuokrypių[[#Headers],[Sau]]),1),INDEX(Biuro_išlaidų[],,1),0),MATCH(Biuro_išlaidų_nuokrypių[[#Headers],[Sau]],Biuro_išlaidų[#Headers],0))-INDEX(Biuro_faktinių_išlaidų[],MATCH(INDEX(Biuro_išlaidų_nuokrypių[],ROW()-ROW(Biuro_išlaidų_nuokrypių[[#Headers],[Sau]]),1),INDEX(Biuro_išlaidų[],,1),0),MATCH(Biuro_išlaidų_nuokrypių[[#Headers],[Sau]],Biuro_faktinių_išlaidų[#Headers],0))","v":{"v":0,"d":"0.00 EUR"}},{"$f":"INDEX(Biuro_išlaidų[],MATCH(INDEX(Biuro_išlaidų_nuokrypių[],ROW()-ROW(Biuro_išlaidų_nuokrypių[[#Headers],[Vas]]),1),INDEX(Biuro_išlaidų[],,1),0),MATCH(Biuro_išlaidų_nuokrypių[[#Headers],[Vas]],Biuro_išlaidų[#Headers],0))-INDEX(Biuro_faktinių_išlaidų[],MATCH(INDEX(Biuro_išlaidų_nuokrypių[],ROW()-ROW(Biuro_išlaidų_nuokrypių[[#Headers],[Vas]]),1),INDEX(Biuro_išlaidų[],,1),0),MATCH(Biuro_išlaidų_nuokrypių[[#Headers],[Vas]],Biuro_faktinių_išlaidų[#Headers],0))","v":{"v":0,"d":"0.00 EUR"}},{"$f":"INDEX(Biuro_išlaidų[],MATCH(INDEX(Biuro_išlaidų_nuokrypių[],ROW()-ROW(Biuro_išlaidų_nuokrypių[[#Headers],[Kov]]),1),INDEX(Biuro_išlaidų[],,1),0),MATCH(Biuro_išlaidų_nuokrypių[[#Headers],[Kov]],Biuro_išlaidų[#Headers],0))-INDEX(Biuro_faktinių_išlaidų[],MATCH(INDEX(Biuro_išlaidų_nuokrypių[],ROW()-ROW(Biuro_išlaidų_nuokrypių[[#Headers],[Kov]]),1),INDEX(Biuro_išlaidų[],,1),0),MATCH(Biuro_išlaidų_nuokrypių[[#Headers],[Kov]],Biuro_faktinių_išlaidų[#Headers],0))","v":{"v":0,"d":"0.00 EUR"}},{"$f":"INDEX(Biuro_išlaidų[],MATCH(INDEX(Biuro_išlaidų_nuokrypių[],ROW()-ROW(Biuro_išlaidų_nuokrypių[[#Headers],[Bal]]),1),INDEX(Biuro_išlaidų[],,1),0),MATCH(Biuro_išlaidų_nuokrypių[[#Headers],[Bal]],Biuro_išlaidų[#Headers],0))-INDEX(Biuro_faktinių_išlaidų[],MATCH(INDEX(Biuro_išlaidų_nuokrypių[],ROW()-ROW(Biuro_išlaidų_nuokrypių[[#Headers],[Bal]]),1),INDEX(Biuro_išlaidų[],,1),0),MATCH(Biuro_išlaidų_nuokrypių[[#Headers],[Bal]],Biuro_faktinių_išlaidų[#Headers],0))","v":{"v":0,"d":"0.00 EUR"}},{"$f":"INDEX(Biuro_išlaidų[],MATCH(INDEX(Biuro_išlaidų_nuokrypių[],ROW()-ROW(Biuro_išlaidų_nuokrypių[[#Headers],[Geg]]),1),INDEX(Biuro_išlaidų[],,1),0),MATCH(Biuro_išlaidų_nuokrypių[[#Headers],[Geg]],Biuro_išlaidų[#Headers],0))-INDEX(Biuro_faktinių_išlaidų[],MATCH(INDEX(Biuro_išlaidų_nuokrypių[],ROW()-ROW(Biuro_išlaidų_nuokrypių[[#Headers],[Geg]]),1),INDEX(Biuro_išlaidų[],,1),0),MATCH(Biuro_išlaidų_nuokrypių[[#Headers],[Geg]],Biuro_faktinių_išlaidų[#Headers],0))","v":{"v":0,"d":"0.00 EUR"}},{"$f":"INDEX(Biuro_išlaidų[],MATCH(INDEX(Biuro_išlaidų_nuokrypių[],ROW()-ROW(Biuro_išlaidų_nuokrypių[[#Headers],[Bir]]),1),INDEX(Biuro_išlaidų[],,1),0),MATCH(Biuro_išlaidų_nuokrypių[[#Headers],[Bir]],Biuro_išlaidų[#Headers],0))-INDEX(Biuro_faktinių_išlaidų[],MATCH(INDEX(Biuro_išlaidų_nuokrypių[],ROW()-ROW(Biuro_išlaidų_nuokrypių[[#Headers],[Bir]]),1),INDEX(Biuro_išlaidų[],,1),0),MATCH(Biuro_išlaidų_nuokrypių[[#Headers],[Bir]],Biuro_faktinių_išlaidų[#Headers],0))","v":{"v":0,"d":"0.00 EUR"}},{"$f":"INDEX(Biuro_išlaidų[],MATCH(INDEX(Biuro_išlaidų_nuokrypių[],ROW()-ROW(Biuro_išlaidų_nuokrypių[[#Headers],[Lie]]),1),INDEX(Biuro_išlaidų[],,1),0),MATCH(Biuro_išlaidų_nuokrypių[[#Headers],[Lie]],Biuro_išlaidų[#Headers],0))-INDEX(Biuro_faktinių_išlaidų[],MATCH(INDEX(Biuro_išlaidų_nuokrypių[],ROW()-ROW(Biuro_išlaidų_nuokrypių[[#Headers],[Lie]]),1),INDEX(Biuro_išlaidų[],,1),0),MATCH(Biuro_išlaidų_nuokrypių[[#Headers],[Lie]],Biuro_faktinių_išlaidų[#Headers],0))","v":{"v":9800,"d":"9,800.00 EUR"}},{"$f":"INDEX(Biuro_išlaidų[],MATCH(INDEX(Biuro_išlaidų_nuokrypių[],ROW()-ROW(Biuro_išlaidų_nuokrypių[[#Headers],[Rgp]]),1),INDEX(Biuro_išlaidų[],,1),0),MATCH(Biuro_išlaidų_nuokrypių[[#Headers],[Rgp]],Biuro_išlaidų[#Headers],0))-INDEX(Biuro_faktinių_išlaidų[],MATCH(INDEX(Biuro_išlaidų_nuokrypių[],ROW()-ROW(Biuro_išlaidų_nuokrypių[[#Headers],[Rgp]]),1),INDEX(Biuro_išlaidų[],,1),0),MATCH(Biuro_išlaidų_nuokrypių[[#Headers],[Rgp]],Biuro_faktinių_išlaidų[#Headers],0))","v":{"v":9800,"d":"9,800.00 EUR"}},{"$f":"INDEX(Biuro_išlaidų[],MATCH(INDEX(Biuro_išlaidų_nuokrypių[],ROW()-ROW(Biuro_išlaidų_nuokrypių[[#Headers],[Rgs]]),1),INDEX(Biuro_išlaidų[],,1),0),MATCH(Biuro_išlaidų_nuokrypių[[#Headers],[Rgs]],Biuro_išlaidų[#Headers],0))-INDEX(Biuro_faktinių_išlaidų[],MATCH(INDEX(Biuro_išlaidų_nuokrypių[],ROW()-ROW(Biuro_išlaidų_nuokrypių[[#Headers],[Rgs]]),1),INDEX(Biuro_išlaidų[],,1),0),MATCH(Biuro_išlaidų_nuokrypių[[#Headers],[Rgs]],Biuro_faktinių_išlaidų[#Headers],0))","v":{"v":9800,"d":"9,800.00 EUR"}},{"$f":"INDEX(Biuro_išlaidų[],MATCH(INDEX(Biuro_išlaidų_nuokrypių[],ROW()-ROW(Biuro_išlaidų_nuokrypių[[#Headers],[Spl]]),1),INDEX(Biuro_išlaidų[],,1),0),MATCH(Biuro_išlaidų_nuokrypių[[#Headers],[Spl]],Biuro_išlaidų[#Headers],0))-INDEX(Biuro_faktinių_išlaidų[],MATCH(INDEX(Biuro_išlaidų_nuokrypių[],ROW()-ROW(Biuro_išlaidų_nuokrypių[[#Headers],[Spl]]),1),INDEX(Biuro_išlaidų[],,1),0),MATCH(Biuro_išlaidų_nuokrypių[[#Headers],[Spl]],Biuro_faktinių_išlaidų[#Headers],0))","v":{"v":9800,"d":"9,800.00 EUR"}},{"$f":"INDEX(Biuro_išlaidų[],MATCH(INDEX(Biuro_išlaidų_nuokrypių[],ROW()-ROW(Biuro_išlaidų_nuokrypių[[#Headers],[Lap]]),1),INDEX(Biuro_išlaidų[],,1),0),MATCH(Biuro_išlaidų_nuokrypių[[#Headers],[Lap]],Biuro_išlaidų[#Headers],0))-INDEX(Biuro_faktinių_išlaidų[],MATCH(INDEX(Biuro_išlaidų_nuokrypių[],ROW()-ROW(Biuro_išlaidų_nuokrypių[[#Headers],[Lap]]),1),INDEX(Biuro_išlaidų[],,1),0),MATCH(Biuro_išlaidų_nuokrypių[[#Headers],[Lap]],Biuro_faktinių_išlaidų[#Headers],0))","v":{"v":9800,"d":"9,800.00 EUR"}},{"$f":"INDEX(Biuro_išlaidų[],MATCH(INDEX(Biuro_išlaidų_nuokrypių[],ROW()-ROW(Biuro_išlaidų_nuokrypių[[#Headers],[Grd]]),1),INDEX(Biuro_išlaidų[],,1),0),MATCH(Biuro_išlaidų_nuokrypių[[#Headers],[Grd]],Biuro_išlaidų[#Headers],0))-INDEX(Biuro_faktinių_išlaidų[],MATCH(INDEX(Biuro_išlaidų_nuokrypių[],ROW()-ROW(Biuro_išlaidų_nuokrypių[[#Headers],[Grd]]),1),INDEX(Biuro_išlaidų[],,1),0),MATCH(Biuro_išlaidų_nuokrypių[[#Headers],[Grd]],Biuro_faktinių_išlaidų[#Headers],0))","v":{"v":9800,"d":"9,800.00 EUR"}},{"$f":"SUM(Biuro_išlaidų_nuokrypių[[#This Row],[Sau]:[Grd]])","v":{"v":58800,"d":"58,800.00 EUR"}}]
[null,"Dujos",{"$f":"INDEX(Biuro_išlaidų[],MATCH(INDEX(Biuro_išlaidų_nuokrypių[],ROW()-ROW(Biuro_išlaidų_nuokrypių[[#Headers],[Sau]]),1),INDEX(Biuro_išlaidų[],,1),0),MATCH(Biuro_išlaidų_nuokrypių[[#Headers],[Sau]],Biuro_išlaidų[#Headers],0))-INDEX(Biuro_faktinių_išlaidų[],MATCH(INDEX(Biuro_išlaidų_nuokrypių[],ROW()-ROW(Biuro_išlaidų_nuokrypių[[#Headers],[Sau]]),1),INDEX(Biuro_išlaidų[],,1),0),MATCH(Biuro_išlaidų_nuokrypių[[#Headers],[Sau]],Biuro_faktinių_išlaidų[#Headers],0))","v":{"v":-4,"d":"-4.00 EUR"}},{"$f":"INDEX(Biuro_išlaidų[],MATCH(INDEX(Biuro_išlaidų_nuokrypių[],ROW()-ROW(Biuro_išlaidų_nuokrypių[[#Headers],[Vas]]),1),INDEX(Biuro_išlaidų[],,1),0),MATCH(Biuro_išlaidų_nuokrypių[[#Headers],[Vas]],Biuro_išlaidų[#Headers],0))-INDEX(Biuro_faktinių_išlaidų[],MATCH(INDEX(Biuro_išlaidų_nuokrypių[],ROW()-ROW(Biuro_išlaidų_nuokrypių[[#Headers],[Vas]]),1),INDEX(Biuro_išlaidų[],,1),0),MATCH(Biuro_išlaidų_nuokrypių[[#Headers],[Vas]],Biuro_faktinių_išlaidų[#Headers],0))","v":{"v":-30,"d":"-30.00 EUR"}},{"$f":"INDEX(Biuro_išlaidų[],MATCH(INDEX(Biuro_išlaidų_nuokrypių[],ROW()-ROW(Biuro_išlaidų_nuokrypių[[#Headers],[Kov]]),1),INDEX(Biuro_išlaidų[],,1),0),MATCH(Biuro_išlaidų_nuokrypių[[#Headers],[Kov]],Biuro_išlaidų[#Headers],0))-INDEX(Biuro_faktinių_išlaidų[],MATCH(INDEX(Biuro_išlaidų_nuokrypių[],ROW()-ROW(Biuro_išlaidų_nuokrypių[[#Headers],[Kov]]),1),INDEX(Biuro_išlaidų[],,1),0),MATCH(Biuro_išlaidų_nuokrypių[[#Headers],[Kov]],Biuro_faktinių_išlaidų[#Headers],0))","v":{"v":15,"d":"15.00 EUR"}},{"$f":"INDEX(Biuro_išlaidų[],MATCH(INDEX(Biuro_išlaidų_nuokrypių[],ROW()-ROW(Biuro_išlaidų_nuokrypių[[#Headers],[Bal]]),1),INDEX(Biuro_išlaidų[],,1),0),MATCH(Biuro_išlaidų_nuokrypių[[#Headers],[Bal]],Biuro_išlaidų[#Headers],0))-INDEX(Biuro_faktinių_išlaidų[],MATCH(INDEX(Biuro_išlaidų_nuokrypių[],ROW()-ROW(Biuro_išlaidų_nuokrypių[[#Headers],[Bal]]),1),INDEX(Biuro_išlaidų[],,1),0),MATCH(Biuro_išlaidų_nuokrypių[[#Headers],[Bal]],Biuro_faktinių_išlaidų[#Headers],0))","v":{"v":-130,"d":"-130.00 EUR"}},{"$f":"INDEX(Biuro_išlaidų[],MATCH(INDEX(Biuro_išlaidų_nuokrypių[],ROW()-ROW(Biuro_išlaidų_nuokrypių[[#Headers],[Geg]]),1),INDEX(Biuro_išlaidų[],,1),0),MATCH(Biuro_išlaidų_nuokrypių[[#Headers],[Geg]],Biuro_išlaidų[#Headers],0))-INDEX(Biuro_faktinių_išlaidų[],MATCH(INDEX(Biuro_išlaidų_nuokrypių[],ROW()-ROW(Biuro_išlaidų_nuokrypių[[#Headers],[Geg]]),1),INDEX(Biuro_išlaidų[],,1),0),MATCH(Biuro_išlaidų_nuokrypių[[#Headers],[Geg]],Biuro_faktinių_išlaidų[#Headers],0))","v":{"v":13,"d":"13.00 EUR"}},{"$f":"INDEX(Biuro_išlaidų[],MATCH(INDEX(Biuro_išlaidų_nuokrypių[],ROW()-ROW(Biuro_išlaidų_nuokrypių[[#Headers],[Bir]]),1),INDEX(Biuro_išlaidų[],,1),0),MATCH(Biuro_išlaidų_nuokrypių[[#Headers],[Bir]],Biuro_išlaidų[#Headers],0))-INDEX(Biuro_faktinių_išlaidų[],MATCH(INDEX(Biuro_išlaidų_nuokrypių[],ROW()-ROW(Biuro_išlaidų_nuokrypių[[#Headers],[Bir]]),1),INDEX(Biuro_išlaidų[],,1),0),MATCH(Biuro_išlaidų_nuokrypių[[#Headers],[Bir]],Biuro_faktinių_išlaidų[#Headers],0))","v":{"v":12,"d":"12.00 EUR"}},{"$f":"INDEX(Biuro_išlaidų[],MATCH(INDEX(Biuro_išlaidų_nuokrypių[],ROW()-ROW(Biuro_išlaidų_nuokrypių[[#Headers],[Lie]]),1),INDEX(Biuro_išlaidų[],,1),0),MATCH(Biuro_išlaidų_nuokrypių[[#Headers],[Lie]],Biuro_išlaidų[#Headers],0))-INDEX(Biuro_faktinių_išlaidų[],MATCH(INDEX(Biuro_išlaidų_nuokrypių[],ROW()-ROW(Biuro_išlaidų_nuokrypių[[#Headers],[Lie]]),1),INDEX(Biuro_išlaidų[],,1),0),MATCH(Biuro_išlaidų_nuokrypių[[#Headers],[Lie]],Biuro_faktinių_išlaidų[#Headers],0))","v":{"v":100,"d":"100.00 EUR"}},{"$f":"INDEX(Biuro_išlaidų[],MATCH(INDEX(Biuro_išlaidų_nuokrypių[],ROW()-ROW(Biuro_išlaidų_nuokrypių[[#Headers],[Rgp]]),1),INDEX(Biuro_išlaidų[],,1),0),MATCH(Biuro_išlaidų_nuokrypių[[#Headers],[Rgp]],Biuro_išlaidų[#Headers],0))-INDEX(Biuro_faktinių_išlaidų[],MATCH(INDEX(Biuro_išlaidų_nuokrypių[],ROW()-ROW(Biuro_išlaidų_nuokrypių[[#Headers],[Rgp]]),1),INDEX(Biuro_išlaidų[],,1),0),MATCH(Biuro_išlaidų_nuokrypių[[#Headers],[Rgp]],Biuro_faktinių_išlaidų[#Headers],0))","v":{"v":100,"d":"100.00 EUR"}},{"$f":"INDEX(Biuro_išlaidų[],MATCH(INDEX(Biuro_išlaidų_nuokrypių[],ROW()-ROW(Biuro_išlaidų_nuokrypių[[#Headers],[Rgs]]),1),INDEX(Biuro_išlaidų[],,1),0),MATCH(Biuro_išlaidų_nuokrypių[[#Headers],[Rgs]],Biuro_išlaidų[#Headers],0))-INDEX(Biuro_faktinių_išlaidų[],MATCH(INDEX(Biuro_išlaidų_nuokrypių[],ROW()-ROW(Biuro_išlaidų_nuokrypių[[#Headers],[Rgs]]),1),INDEX(Biuro_išlaidų[],,1),0),MATCH(Biuro_išlaidų_nuokrypių[[#Headers],[Rgs]],Biuro_faktinių_išlaidų[#Headers],0))","v":{"v":100,"d":"100.00 EUR"}},{"$f":"INDEX(Biuro_išlaidų[],MATCH(INDEX(Biuro_išlaidų_nuokrypių[],ROW()-ROW(Biuro_išlaidų_nuokrypių[[#Headers],[Spl]]),1),INDEX(Biuro_išlaidų[],,1),0),MATCH(Biuro_išlaidų_nuokrypių[[#Headers],[Spl]],Biuro_išlaidų[#Headers],0))-INDEX(Biuro_faktinių_išlaidų[],MATCH(INDEX(Biuro_išlaidų_nuokrypių[],ROW()-ROW(Biuro_išlaidų_nuokrypių[[#Headers],[Spl]]),1),INDEX(Biuro_išlaidų[],,1),0),MATCH(Biuro_išlaidų_nuokrypių[[#Headers],[Spl]],Biuro_faktinių_išlaidų[#Headers],0))","v":{"v":100,"d":"100.00 EUR"}},{"$f":"INDEX(Biuro_išlaidų[],MATCH(INDEX(Biuro_išlaidų_nuokrypių[],ROW()-ROW(Biuro_išlaidų_nuokrypių[[#Headers],[Lap]]),1),INDEX(Biuro_išlaidų[],,1),0),MATCH(Biuro_išlaidų_nuokrypių[[#Headers],[Lap]],Biuro_išlaidų[#Headers],0))-INDEX(Biuro_faktinių_išlaidų[],MATCH(INDEX(Biuro_išlaidų_nuokrypių[],ROW()-ROW(Biuro_išlaidų_nuokrypių[[#Headers],[Lap]]),1),INDEX(Biuro_išlaidų[],,1),0),MATCH(Biuro_išlaidų_nuokrypių[[#Headers],[Lap]],Biuro_faktinių_išlaidų[#Headers],0))","v":{"v":400,"d":"400.00 EUR"}},{"$f":"INDEX(Biuro_išlaidų[],MATCH(INDEX(Biuro_išlaidų_nuokrypių[],ROW()-ROW(Biuro_išlaidų_nuokrypių[[#Headers],[Grd]]),1),INDEX(Biuro_išlaidų[],,1),0),MATCH(Biuro_išlaidų_nuokrypių[[#Headers],[Grd]],Biuro_išlaidų[#Headers],0))-INDEX(Biuro_faktinių_išlaidų[],MATCH(INDEX(Biuro_išlaidų_nuokrypių[],ROW()-ROW(Biuro_išlaidų_nuokrypių[[#Headers],[Grd]]),1),INDEX(Biuro_išlaidų[],,1),0),MATCH(Biuro_išlaidų_nuokrypių[[#Headers],[Grd]],Biuro_faktinių_išlaidų[#Headers],0))","v":{"v":400,"d":"400.00 EUR"}},{"$f":"SUM(Biuro_išlaidų_nuokrypių[[#This Row],[Sau]:[Grd]])","v":{"v":1076,"d":"1,076.00 EUR"}}]
[null,"Elektra",{"$f":"INDEX(Biuro_išlaidų[],MATCH(INDEX(Biuro_išlaidų_nuokrypių[],ROW()-ROW(Biuro_išlaidų_nuokrypių[[#Headers],[Sau]]),1),INDEX(Biuro_išlaidų[],,1),0),MATCH(Biuro_išlaidų_nuokrypių[[#Headers],[Sau]],Biuro_išlaidų[#Headers],0))-INDEX(Biuro_faktinių_išlaidų[],MATCH(INDEX(Biuro_išlaidų_nuokrypių[],ROW()-ROW(Biuro_išlaidų_nuokrypių[[#Headers],[Sau]]),1),INDEX(Biuro_išlaidų[],,1),0),MATCH(Biuro_išlaidų_nuokrypių[[#Headers],[Sau]],Biuro_faktinių_išlaidų[#Headers],0))","v":{"v":12,"d":"12.00 EUR"}},{"$f":"INDEX(Biuro_išlaidų[],MATCH(INDEX(Biuro_išlaidų_nuokrypių[],ROW()-ROW(Biuro_išlaidų_nuokrypių[[#Headers],[Vas]]),1),INDEX(Biuro_išlaidų[],,1),0),MATCH(Biuro_išlaidų_nuokrypių[[#Headers],[Vas]],Biuro_išlaidų[#Headers],0))-INDEX(Biuro_faktinių_išlaidų[],MATCH(INDEX(Biuro_išlaidų_nuokrypių[],ROW()-ROW(Biuro_išlaidų_nuokrypių[[#Headers],[Vas]]),1),INDEX(Biuro_išlaidų[],,1),0),MATCH(Biuro_išlaidų_nuokrypių[[#Headers],[Vas]],Biuro_faktinių_išlaidų[#Headers],0))","v":{"v":22,"d":"22.00 EUR"}},{"$f":"INDEX(Biuro_išlaidų[],MATCH(INDEX(Biuro_išlaidų_nuokrypių[],ROW()-ROW(Biuro_išlaidų_nuokrypių[[#Headers],[Kov]]),1),INDEX(Biuro_išlaidų[],,1),0),MATCH(Biuro_išlaidų_nuokrypių[[#Headers],[Kov]],Biuro_išlaidų[#Headers],0))-INDEX(Biuro_faktinių_išlaidų[],MATCH(INDEX(Biuro_išlaidų_nuokrypių[],ROW()-ROW(Biuro_išlaidų_nuokrypių[[#Headers],[Kov]]),1),INDEX(Biuro_išlaidų[],,1),0),MATCH(Biuro_išlaidų_nuokrypių[[#Headers],[Kov]],Biuro_faktinių_išlaidų[#Headers],0))","v":{"v":32,"d":"32.00 EUR"}},{"$f":"INDEX(Biuro_išlaidų[],MATCH(INDEX(Biuro_išlaidų_nuokrypių[],ROW()-ROW(Biuro_išlaidų_nuokrypių[[#Headers],[Bal]]),1),INDEX(Biuro_išlaidų[],,1),0),MATCH(Biuro_išlaidų_nuokrypių[[#Headers],[Bal]],Biuro_išlaidų[#Headers],0))-INDEX(Biuro_faktinių_išlaidų[],MATCH(INDEX(Biuro_išlaidų_nuokrypių[],ROW()-ROW(Biuro_išlaidų_nuokrypių[[#Headers],[Bal]]),1),INDEX(Biuro_išlaidų[],,1),0),MATCH(Biuro_išlaidų_nuokrypių[[#Headers],[Bal]],Biuro_faktinių_išlaidų[#Headers],0))","v":{"v":1,"d":"1.00 EUR"}},{"$f":"INDEX(Biuro_išlaidų[],MATCH(INDEX(Biuro_išlaidų_nuokrypių[],ROW()-ROW(Biuro_išlaidų_nuokrypių[[#Headers],[Geg]]),1),INDEX(Biuro_išlaidų[],,1),0),MATCH(Biuro_išlaidų_nuokrypių[[#Headers],[Geg]],Biuro_išlaidų[#Headers],0))-INDEX(Biuro_faktinių_išlaidų[],MATCH(INDEX(Biuro_išlaidų_nuokrypių[],ROW()-ROW(Biuro_išlaidų_nuokrypių[[#Headers],[Geg]]),1),INDEX(Biuro_išlaidų[],,1),0),MATCH(Biuro_išlaidų_nuokrypių[[#Headers],[Geg]],Biuro_faktinių_išlaidų[#Headers],0))","v":{"v":-6,"d":"-6.00 EUR"}},{"$f":"INDEX(Biuro_išlaidų[],MATCH(INDEX(Biuro_išlaidų_nuokrypių[],ROW()-ROW(Biuro_išlaidų_nuokrypių[[#Headers],[Bir]]),1),INDEX(Biuro_išlaidų[],,1),0),MATCH(Biuro_išlaidų_nuokrypių[[#Headers],[Bir]],Biuro_išlaidų[#Headers],0))-INDEX(Biuro_faktinių_išlaidų[],MATCH(INDEX(Biuro_išlaidų_nuokrypių[],ROW()-ROW(Biuro_išlaidų_nuokrypių[[#Headers],[Bir]]),1),INDEX(Biuro_išlaidų[],,1),0),MATCH(Biuro_išlaidų_nuokrypių[[#Headers],[Bir]],Biuro_faktinių_išlaidų[#Headers],0))","v":{"v":10,"d":"10.00 EUR"}},{"$f":"INDEX(Biuro_išlaidų[],MATCH(INDEX(Biuro_išlaidų_nuokrypių[],ROW()-ROW(Biuro_išlaidų_nuokrypių[[#Headers],[Lie]]),1),INDEX(Biuro_išlaidų[],,1),0),MATCH(Biuro_išlaidų_nuokrypių[[#Headers],[Lie]],Biuro_išlaidų[#Headers],0))-INDEX(Biuro_faktinių_išlaidų[],MATCH(INDEX(Biuro_išlaidų_nuokrypių[],ROW()-ROW(Biuro_išlaidų_nuokrypių[[#Headers],[Lie]]),1),INDEX(Biuro_išlaidų[],,1),0),MATCH(Biuro_išlaidų_nuokrypių[[#Headers],[Lie]],Biuro_faktinių_išlaidų[#Headers],0))","v":{"v":300,"d":"300.00 EUR"}},{"$f":"INDEX(Biuro_išlaidų[],MATCH(INDEX(Biuro_išlaidų_nuokrypių[],ROW()-ROW(Biuro_išlaidų_nuokrypių[[#Headers],[Rgp]]),1),INDEX(Biuro_išlaidų[],,1),0),MATCH(Biuro_išlaidų_nuokrypių[[#Headers],[Rgp]],Biuro_išlaidų[#Headers],0))-INDEX(Biuro_faktinių_išlaidų[],MATCH(INDEX(Biuro_išlaidų_nuokrypių[],ROW()-ROW(Biuro_išlaidų_nuokrypių[[#Headers],[Rgp]]),1),INDEX(Biuro_išlaidų[],,1),0),MATCH(Biuro_išlaidų_nuokrypių[[#Headers],[Rgp]],Biuro_faktinių_išlaidų[#Headers],0))","v":{"v":300,"d":"300.00 EUR"}},{"$f":"INDEX(Biuro_išlaidų[],MATCH(INDEX(Biuro_išlaidų_nuokrypių[],ROW()-ROW(Biuro_išlaidų_nuokrypių[[#Headers],[Rgs]]),1),INDEX(Biuro_išlaidų[],,1),0),MATCH(Biuro_išlaidų_nuokrypių[[#Headers],[Rgs]],Biuro_išlaidų[#Headers],0))-INDEX(Biuro_faktinių_išlaidų[],MATCH(INDEX(Biuro_išlaidų_nuokrypių[],ROW()-ROW(Biuro_išlaidų_nuokrypių[[#Headers],[Rgs]]),1),INDEX(Biuro_išlaidų[],,1),0),MATCH(Biuro_išlaidų_nuokrypių[[#Headers],[Rgs]],Biuro_faktinių_išlaidų[#Headers],0))","v":{"v":300,"d":"300.00 EUR"}},{"$f":"INDEX(Biuro_išlaidų[],MATCH(INDEX(Biuro_išlaidų_nuokrypių[],ROW()-ROW(Biuro_išlaidų_nuokrypių[[#Headers],[Spl]]),1),INDEX(Biuro_išlaidų[],,1),0),MATCH(Biuro_išlaidų_nuokrypių[[#Headers],[Spl]],Biuro_išlaidų[#Headers],0))-INDEX(Biuro_faktinių_išlaidų[],MATCH(INDEX(Biuro_išlaidų_nuokrypių[],ROW()-ROW(Biuro_išlaidų_nuokrypių[[#Headers],[Spl]]),1),INDEX(Biuro_išlaidų[],,1),0),MATCH(Biuro_išlaidų_nuokrypių[[#Headers],[Spl]],Biuro_faktinių_išlaidų[#Headers],0))","v":{"v":300,"d":"300.00 EUR"}},{"$f":"INDEX(Biuro_išlaidų[],MATCH(INDEX(Biuro_išlaidų_nuokrypių[],ROW()-ROW(Biuro_išlaidų_nuokrypių[[#Headers],[Lap]]),1),INDEX(Biuro_išlaidų[],,1),0),MATCH(Biuro_išlaidų_nuokrypių[[#Headers],[Lap]],Biuro_išlaidų[#Headers],0))-INDEX(Biuro_faktinių_išlaidų[],MATCH(INDEX(Biuro_išlaidų_nuokrypių[],ROW()-ROW(Biuro_išlaidų_nuokrypių[[#Headers],[Lap]]),1),INDEX(Biuro_išlaidų[],,1),0),MATCH(Biuro_išlaidų_nuokrypių[[#Headers],[Lap]],Biuro_faktinių_išlaidų[#Headers],0))","v":{"v":300,"d":"300.00 EUR"}},{"$f":"INDEX(Biuro_išlaidų[],MATCH(INDEX(Biuro_išlaidų_nuokrypių[],ROW()-ROW(Biuro_išlaidų_nuokrypių[[#Headers],[Grd]]),1),INDEX(Biuro_išlaidų[],,1),0),MATCH(Biuro_išlaidų_nuokrypių[[#Headers],[Grd]],Biuro_išlaidų[#Headers],0))-INDEX(Biuro_faktinių_išlaidų[],MATCH(INDEX(Biuro_išlaidų_nuokrypių[],ROW()-ROW(Biuro_išlaidų_nuokrypių[[#Headers],[Grd]]),1),INDEX(Biuro_išlaidų[],,1),0),MATCH(Biuro_išlaidų_nuokrypių[[#Headers],[Grd]],Biuro_faktinių_išlaidų[#Headers],0))","v":{"v":300,"d":"300.00 EUR"}},{"$f":"SUM(Biuro_išlaidų_nuokrypių[[#This Row],[Sau]:[Grd]])","v":{"v":1871,"d":"1,871.00 EUR"}}]
[null,"Vanduo",{"$f":"INDEX(Biuro_išlaidų[],MATCH(INDEX(Biuro_išlaidų_nuokrypių[],ROW()-ROW(Biuro_išlaidų_nuokrypių[[#Headers],[Sau]]),1),INDEX(Biuro_išlaidų[],,1),0),MATCH(Biuro_išlaidų_nuokrypių[[#Headers],[Sau]],Biuro_išlaidų[#Headers],0))-INDEX(Biuro_faktinių_išlaidų[],MATCH(INDEX(Biuro_išlaidų_nuokrypių[],ROW()-ROW(Biuro_išlaidų_nuokrypių[[#Headers],[Sau]]),1),INDEX(Biuro_išlaidų[],,1),0),MATCH(Biuro_išlaidų_nuokrypių[[#Headers],[Sau]],Biuro_faktinių_išlaidų[#Headers],0))","v":{"v":5,"d":"5.00 EUR"}},{"$f":"INDEX(Biuro_išlaidų[],MATCH(INDEX(Biuro_išlaidų_nuokrypių[],ROW()-ROW(Biuro_išlaidų_nuokrypių[[#Headers],[Vas]]),1),INDEX(Biuro_išlaidų[],,1),0),MATCH(Biuro_išlaidų_nuokrypių[[#Headers],[Vas]],Biuro_išlaidų[#Headers],0))-INDEX(Biuro_faktinių_išlaidų[],MATCH(INDEX(Biuro_išlaidų_nuokrypių[],ROW()-ROW(Biuro_išlaidų_nuokrypių[[#Headers],[Vas]]),1),INDEX(Biuro_išlaidų[],,1),0),MATCH(Biuro_išlaidų_nuokrypių[[#Headers],[Vas]],Biuro_faktinių_išlaidų[#Headers],0))","v":{"v":7,"d":"7.00 EUR"}},{"$f":"INDEX(Biuro_išlaidų[],MATCH(INDEX(Biuro_išlaidų_nuokrypių[],ROW()-ROW(Biuro_išlaidų_nuokrypių[[#Headers],[Kov]]),1),INDEX(Biuro_išlaidų[],,1),0),MATCH(Biuro_išlaidų_nuokrypių[[#Headers],[Kov]],Biuro_išlaidų[#Headers],0))-INDEX(Biuro_faktinių_išlaidų[],MATCH(INDEX(Biuro_išlaidų_nuokrypių[],ROW()-ROW(Biuro_išlaidų_nuokrypių[[#Headers],[Kov]]),1),INDEX(Biuro_išlaidų[],,1),0),MATCH(Biuro_išlaidų_nuokrypių[[#Headers],[Kov]],Biuro_faktinių_išlaidų[#Headers],0))","v":{"v":6,"d":"6.00 EUR"}},{"$f":"INDEX(Biuro_išlaidų[],MATCH(INDEX(Biuro_išlaidų_nuokrypių[],ROW()-ROW(Biuro_išlaidų_nuokrypių[[#Headers],[Bal]]),1),INDEX(Biuro_išlaidų[],,1),0),MATCH(Biuro_išlaidų_nuokrypių[[#Headers],[Bal]],Biuro_išlaidų[#Headers],0))-INDEX(Biuro_faktinių_išlaidų[],MATCH(INDEX(Biuro_išlaidų_nuokrypių[],ROW()-ROW(Biuro_išlaidų_nuokrypių[[#Headers],[Bal]]),1),INDEX(Biuro_išlaidų[],,1),0),MATCH(Biuro_išlaidų_nuokrypių[[#Headers],[Bal]],Biuro_faktinių_išlaidų[#Headers],0))","v":{"v":4,"d":"4.00 EUR"}},{"$f":"INDEX(Biuro_išlaidų[],MATCH(INDEX(Biuro_išlaidų_nuokrypių[],ROW()-ROW(Biuro_išlaidų_nuokrypių[[#Headers],[Geg]]),1),INDEX(Biuro_išlaidų[],,1),0),MATCH(Biuro_išlaidų_nuokrypių[[#Headers],[Geg]],Biuro_išlaidų[#Headers],0))-INDEX(Biuro_faktinių_išlaidų[],MATCH(INDEX(Biuro_išlaidų_nuokrypių[],ROW()-ROW(Biuro_išlaidų_nuokrypių[[#Headers],[Geg]]),1),INDEX(Biuro_išlaidų[],,1),0),MATCH(Biuro_išlaidų_nuokrypių[[#Headers],[Geg]],Biuro_faktinių_išlaidų[#Headers],0))","v":{"v":6,"d":"6.00 EUR"}},{"$f":"INDEX(Biuro_išlaidų[],MATCH(INDEX(Biuro_išlaidų_nuokrypių[],ROW()-ROW(Biuro_išlaidų_nuokrypių[[#Headers],[Bir]]),1),INDEX(Biuro_išlaidų[],,1),0),MATCH(Biuro_išlaidų_nuokrypių[[#Headers],[Bir]],Biuro_išlaidų[#Headers],0))-INDEX(Biuro_faktinių_išlaidų[],MATCH(INDEX(Biuro_išlaidų_nuokrypių[],ROW()-ROW(Biuro_išlaidų_nuokrypių[[#Headers],[Bir]]),1),INDEX(Biuro_išlaidų[],,1),0),MATCH(Biuro_išlaidų_nuokrypių[[#Headers],[Bir]],Biuro_faktinių_išlaidų[#Headers],0))","v":{"v":4,"d":"4.00 EUR"}},{"$f":"INDEX(Biuro_išlaidų[],MATCH(INDEX(Biuro_išlaidų_nuokrypių[],ROW()-ROW(Biuro_išlaidų_nuokrypių[[#Headers],[Lie]]),1),INDEX(Biuro_išlaidų[],,1),0),MATCH(Biuro_išlaidų_nuokrypių[[#Headers],[Lie]],Biuro_išlaidų[#Headers],0))-INDEX(Biuro_faktinių_išlaidų[],MATCH(INDEX(Biuro_išlaidų_nuokrypių[],ROW()-ROW(Biuro_išlaidų_nuokrypių[[#Headers],[Lie]]),1),INDEX(Biuro_išlaidų[],,1),0),MATCH(Biuro_išlaidų_nuokrypių[[#Headers],[Lie]],Biuro_faktinių_išlaidų[#Headers],0))","v":{"v":40,"d":"40.00 EUR"}},{"$f":"INDEX(Biuro_išlaidų[],MATCH(INDEX(Biuro_išlaidų_nuokrypių[],ROW()-ROW(Biuro_išlaidų_nuokrypių[[#Headers],[Rgp]]),1),INDEX(Biuro_išlaidų[],,1),0),MATCH(Biuro_išlaidų_nuokrypių[[#Headers],[Rgp]],Biuro_išlaidų[#Headers],0))-INDEX(Biuro_faktinių_išlaidų[],MATCH(INDEX(Biuro_išlaidų_nuokrypių[],ROW()-ROW(Biuro_išlaidų_nuokrypių[[#Headers],[Rgp]]),1),INDEX(Biuro_išlaidų[],,1),0),MATCH(Biuro_išlaidų_nuokrypių[[#Headers],[Rgp]],Biuro_faktinių_išlaidų[#Headers],0))","v":{"v":40,"d":"40.00 EUR"}},{"$f":"INDEX(Biuro_išlaidų[],MATCH(INDEX(Biuro_išlaidų_nuokrypių[],ROW()-ROW(Biuro_išlaidų_nuokrypių[[#Headers],[Rgs]]),1),INDEX(Biuro_išlaidų[],,1),0),MATCH(Biuro_išlaidų_nuokrypių[[#Headers],[Rgs]],Biuro_išlaidų[#Headers],0))-INDEX(Biuro_faktinių_išlaidų[],MATCH(INDEX(Biuro_išlaidų_nuokrypių[],ROW()-ROW(Biuro_išlaidų_nuokrypių[[#Headers],[Rgs]]),1),INDEX(Biuro_išlaidų[],,1),0),MATCH(Biuro_išlaidų_nuokrypių[[#Headers],[Rgs]],Biuro_faktinių_išlaidų[#Headers],0))","v":{"v":40,"d":"40.00 EUR"}},{"$f":"INDEX(Biuro_išlaidų[],MATCH(INDEX(Biuro_išlaidų_nuokrypių[],ROW()-ROW(Biuro_išlaidų_nuokrypių[[#Headers],[Spl]]),1),INDEX(Biuro_išlaidų[],,1),0),MATCH(Biuro_išlaidų_nuokrypių[[#Headers],[Spl]],Biuro_išlaidų[#Headers],0))-INDEX(Biuro_faktinių_išlaidų[],MATCH(INDEX(Biuro_išlaidų_nuokrypių[],ROW()-ROW(Biuro_išlaidų_nuokrypių[[#Headers],[Spl]]),1),INDEX(Biuro_išlaidų[],,1),0),MATCH(Biuro_išlaidų_nuokrypių[[#Headers],[Spl]],Biuro_faktinių_išlaidų[#Headers],0))","v":{"v":40,"d":"40.00 EUR"}},{"$f":"INDEX(Biuro_išlaidų[],MATCH(INDEX(Biuro_išlaidų_nuokrypių[],ROW()-ROW(Biuro_išlaidų_nuokrypių[[#Headers],[Lap]]),1),INDEX(Biuro_išlaidų[],,1),0),MATCH(Biuro_išlaidų_nuokrypių[[#Headers],[Lap]],Biuro_išlaidų[#Headers],0))-INDEX(Biuro_faktinių_išlaidų[],MATCH(INDEX(Biuro_išlaidų_nuokrypių[],ROW()-ROW(Biuro_išlaidų_nuokrypių[[#Headers],[Lap]]),1),INDEX(Biuro_išlaidų[],,1),0),MATCH(Biuro_išlaidų_nuokrypių[[#Headers],[Lap]],Biuro_faktinių_išlaidų[#Headers],0))","v":{"v":40,"d":"40.00 EUR"}},{"$f":"INDEX(Biuro_išlaidų[],MATCH(INDEX(Biuro_išlaidų_nuokrypių[],ROW()-ROW(Biuro_išlaidų_nuokrypių[[#Headers],[Grd]]),1),INDEX(Biuro_išlaidų[],,1),0),MATCH(Biuro_išlaidų_nuokrypių[[#Headers],[Grd]],Biuro_išlaidų[#Headers],0))-INDEX(Biuro_faktinių_išlaidų[],MATCH(INDEX(Biuro_išlaidų_nuokrypių[],ROW()-ROW(Biuro_išlaidų_nuokrypių[[#Headers],[Grd]]),1),INDEX(Biuro_išlaidų[],,1),0),MATCH(Biuro_išlaidų_nuokrypių[[#Headers],[Grd]],Biuro_faktinių_išlaidų[#Headers],0))","v":{"v":40,"d":"40.00 EUR"}},{"$f":"SUM(Biuro_išlaidų_nuokrypių[[#This Row],[Sau]:[Grd]])","v":{"v":272,"d":"272.00 EUR"}}]
[null,"Telefonas",{"$f":"INDEX(Biuro_išlaidų[],MATCH(INDEX(Biuro_išlaidų_nuokrypių[],ROW()-ROW(Biuro_išlaidų_nuokrypių[[#Headers],[Sau]]),1),INDEX(Biuro_išlaidų[],,1),0),MATCH(Biuro_išlaidų_nuokrypių[[#Headers],[Sau]],Biuro_išlaidų[#Headers],0))-INDEX(Biuro_faktinių_išlaidų[],MATCH(INDEX(Biuro_išlaidų_nuokrypių[],ROW()-ROW(Biuro_išlaidų_nuokrypių[[#Headers],[Sau]]),1),INDEX(Biuro_išlaidų[],,1),0),MATCH(Biuro_išlaidų_nuokrypių[[#Headers],[Sau]],Biuro_faktinių_išlaidų[#Headers],0))","v":{"v":26,"d":"26.00 EUR"}},{"$f":"INDEX(Biuro_išlaidų[],MATCH(INDEX(Biuro_išlaidų_nuokrypių[],ROW()-ROW(Biuro_išlaidų_nuokrypių[[#Headers],[Vas]]),1),INDEX(Biuro_išlaidų[],,1),0),MATCH(Biuro_išlaidų_nuokrypių[[#Headers],[Vas]],Biuro_išlaidų[#Headers],0))-INDEX(Biuro_faktinių_išlaidų[],MATCH(INDEX(Biuro_išlaidų_nuokrypių[],ROW()-ROW(Biuro_išlaidų_nuokrypių[[#Headers],[Vas]]),1),INDEX(Biuro_išlaidų[],,1),0),MATCH(Biuro_išlaidų_nuokrypių[[#Headers],[Vas]],Biuro_faktinių_išlaidų[#Headers],0))","v":{"v":15,"d":"15.00 EUR"}},{"$f":"INDEX(Biuro_išlaidų[],MATCH(INDEX(Biuro_išlaidų_nuokrypių[],ROW()-ROW(Biuro_išlaidų_nuokrypių[[#Headers],[Kov]]),1),INDEX(Biuro_išlaidų[],,1),0),MATCH(Biuro_išlaidų_nuokrypių[[#Headers],[Kov]],Biuro_išlaidų[#Headers],0))-INDEX(Biuro_faktinių_išlaidų[],MATCH(INDEX(Biuro_išlaidų_nuokrypių[],ROW()-ROW(Biuro_išlaidų_nuokrypių[[#Headers],[Kov]]),1),INDEX(Biuro_išlaidų[],,1),0),MATCH(Biuro_išlaidų_nuokrypių[[#Headers],[Kov]],Biuro_faktinių_išlaidų[#Headers],0))","v":{"v":-15,"d":"-15.00 EUR"}},{"$f":"INDEX(Biuro_išlaidų[],MATCH(INDEX(Biuro_išlaidų_nuokrypių[],ROW()-ROW(Biuro_išlaidų_nuokrypių[[#Headers],[Bal]]),1),INDEX(Biuro_išlaidų[],,1),0),MATCH(Biuro_išlaidų_nuokrypių[[#Headers],[Bal]],Biuro_išlaidų[#Headers],0))-INDEX(Biuro_faktinių_išlaidų[],MATCH(INDEX(Biuro_išlaidų_nuokrypių[],ROW()-ROW(Biuro_išlaidų_nuokrypių[[#Headers],[Bal]]),1),INDEX(Biuro_išlaidų[],,1),0),MATCH(Biuro_išlaidų_nuokrypių[[#Headers],[Bal]],Biuro_faktinių_išlaidų[#Headers],0))","v":{"v":5,"d":"5.00 EUR"}},{"$f":"INDEX(Biuro_išlaidų[],MATCH(INDEX(Biuro_išlaidų_nuokrypių[],ROW()-ROW(Biuro_išlaidų_nuokrypių[[#Headers],[Geg]]),1),INDEX(Biuro_išlaidų[],,1),0),MATCH(Biuro_išlaidų_nuokrypių[[#Headers],[Geg]],Biuro_išlaidų[#Headers],0))-INDEX(Biuro_faktinių_išlaidų[],MATCH(INDEX(Biuro_išlaidų_nuokrypių[],ROW()-ROW(Biuro_išlaidų_nuokrypių[[#Headers],[Geg]]),1),INDEX(Biuro_išlaidų[],,1),0),MATCH(Biuro_išlaidų_nuokrypių[[#Headers],[Geg]],Biuro_faktinių_išlaidų[#Headers],0))","v":{"v":5,"d":"5.00 EUR"}},{"$f":"INDEX(Biuro_išlaidų[],MATCH(INDEX(Biuro_išlaidų_nuokrypių[],ROW()-ROW(Biuro_išlaidų_nuokrypių[[#Headers],[Bir]]),1),INDEX(Biuro_išlaidų[],,1),0),MATCH(Biuro_išlaidų_nuokrypių[[#Headers],[Bir]],Biuro_išlaidų[#Headers],0))-INDEX(Biuro_faktinių_išlaidų[],MATCH(INDEX(Biuro_išlaidų_nuokrypių[],ROW()-ROW(Biuro_išlaidų_nuokrypių[[#Headers],[Bir]]),1),INDEX(Biuro_išlaidų[],,1),0),MATCH(Biuro_išlaidų_nuokrypių[[#Headers],[Bir]],Biuro_faktinių_išlaidų[#Headers],0))","v":{"v":30,"d":"30.00 EUR"}},{"$f":"INDEX(Biuro_išlaidų[],MATCH(INDEX(Biuro_išlaidų_nuokrypių[],ROW()-ROW(Biuro_išlaidų_nuokrypių[[#Headers],[Lie]]),1),INDEX(Biuro_išlaidų[],,1),0),MATCH(Biuro_išlaidų_nuokrypių[[#Headers],[Lie]],Biuro_išlaidų[#Headers],0))-INDEX(Biuro_faktinių_išlaidų[],MATCH(INDEX(Biuro_išlaidų_nuokrypių[],ROW()-ROW(Biuro_išlaidų_nuokrypių[[#Headers],[Lie]]),1),INDEX(Biuro_išlaidų[],,1),0),MATCH(Biuro_išlaidų_nuokrypių[[#Headers],[Lie]],Biuro_faktinių_išlaidų[#Headers],0))","v":{"v":250,"d":"250.00 EUR"}},{"$f":"INDEX(Biuro_išlaidų[],MATCH(INDEX(Biuro_išlaidų_nuokrypių[],ROW()-ROW(Biuro_išlaidų_nuokrypių[[#Headers],[Rgp]]),1),INDEX(Biuro_išlaidų[],,1),0),MATCH(Biuro_išlaidų_nuokrypių[[#Headers],[Rgp]],Biuro_išlaidų[#Headers],0))-INDEX(Biuro_faktinių_išlaidų[],MATCH(INDEX(Biuro_išlaidų_nuokrypių[],ROW()-ROW(Biuro_išlaidų_nuokrypių[[#Headers],[Rgp]]),1),INDEX(Biuro_išlaidų[],,1),0),MATCH(Biuro_išlaidų_nuokrypių[[#Headers],[Rgp]],Biuro_faktinių_išlaidų[#Headers],0))","v":{"v":250,"d":"250.00 EUR"}},{"$f":"INDEX(Biuro_išlaidų[],MATCH(INDEX(Biuro_išlaidų_nuokrypių[],ROW()-ROW(Biuro_išlaidų_nuokrypių[[#Headers],[Rgs]]),1),INDEX(Biuro_išlaidų[],,1),0),MATCH(Biuro_išlaidų_nuokrypių[[#Headers],[Rgs]],Biuro_išlaidų[#Headers],0))-INDEX(Biuro_faktinių_išlaidų[],MATCH(INDEX(Biuro_išlaidų_nuokrypių[],ROW()-ROW(Biuro_išlaidų_nuokrypių[[#Headers],[Rgs]]),1),INDEX(Biuro_išlaidų[],,1),0),MATCH(Biuro_išlaidų_nuokrypių[[#Headers],[Rgs]],Biuro_faktinių_išlaidų[#Headers],0))","v":{"v":250,"d":"250.00 EUR"}},{"$f":"INDEX(Biuro_išlaidų[],MATCH(INDEX(Biuro_išlaidų_nuokrypių[],ROW()-ROW(Biuro_išlaidų_nuokrypių[[#Headers],[Spl]]),1),INDEX(Biuro_išlaidų[],,1),0),MATCH(Biuro_išlaidų_nuokrypių[[#Headers],[Spl]],Biuro_išlaidų[#Headers],0))-INDEX(Biuro_faktinių_išlaidų[],MATCH(INDEX(Biuro_išlaidų_nuokrypių[],ROW()-ROW(Biuro_išlaidų_nuokrypių[[#Headers],[Spl]]),1),INDEX(Biuro_išlaidų[],,1),0),MATCH(Biuro_išlaidų_nuokrypių[[#Headers],[Spl]],Biuro_faktinių_išlaidų[#Headers],0))","v":{"v":250,"d":"250.00 EUR"}},{"$f":"INDEX(Biuro_išlaidų[],MATCH(INDEX(Biuro_išlaidų_nuokrypių[],ROW()-ROW(Biuro_išlaidų_nuokrypių[[#Headers],[Lap]]),1),INDEX(Biuro_išlaidų[],,1),0),MATCH(Biuro_išlaidų_nuokrypių[[#Headers],[Lap]],Biuro_išlaidų[#Headers],0))-INDEX(Biuro_faktinių_išlaidų[],MATCH(INDEX(Biuro_išlaidų_nuokrypių[],ROW()-ROW(Biuro_išlaidų_nuokrypių[[#Headers],[Lap]]),1),INDEX(Biuro_išlaidų[],,1),0),MATCH(Biuro_išlaidų_nuokrypių[[#Headers],[Lap]],Biuro_faktinių_išlaidų[#Headers],0))","v":{"v":250,"d":"250.00 EUR"}},{"$f":"INDEX(Biuro_išlaidų[],MATCH(INDEX(Biuro_išlaidų_nuokrypių[],ROW()-ROW(Biuro_išlaidų_nuokrypių[[#Headers],[Grd]]),1),INDEX(Biuro_išlaidų[],,1),0),MATCH(Biuro_išlaidų_nuokrypių[[#Headers],[Grd]],Biuro_išlaidų[#Headers],0))-INDEX(Biuro_faktinių_išlaidų[],MATCH(INDEX(Biuro_išlaidų_nuokrypių[],ROW()-ROW(Biuro_išlaidų_nuokrypių[[#Headers],[Grd]]),1),INDEX(Biuro_išlaidų[],,1),0),MATCH(Biuro_išlaidų_nuokrypių[[#Headers],[Grd]],Biuro_faktinių_išlaidų[#Headers],0))","v":{"v":250,"d":"250.00 EUR"}},{"$f":"SUM(Biuro_išlaidų_nuokrypių[[#This Row],[Sau]:[Grd]])","v":{"v":1566,"d":"1,566.00 EUR"}}]
[null,"Interneto prieiga",{"$f":"INDEX(Biuro_išlaidų[],MATCH(INDEX(Biuro_išlaidų_nuokrypių[],ROW()-ROW(Biuro_išlaidų_nuokrypių[[#Headers],[Sau]]),1),INDEX(Biuro_išlaidų[],,1),0),MATCH(Biuro_išlaidų_nuokrypių[[#Headers],[Sau]],Biuro_išlaidų[#Headers],0))-INDEX(Biuro_faktinių_išlaidų[],MATCH(INDEX(Biuro_išlaidų_nuokrypių[],ROW()-ROW(Biuro_išlaidų_nuokrypių[[#Headers],[Sau]]),1),INDEX(Biuro_išlaidų[],,1),0),MATCH(Biuro_išlaidų_nuokrypių[[#Headers],[Sau]],Biuro_faktinių_išlaidų[#Headers],0))","v":{"v":0,"d":"0.00 EUR"}},{"$f":"INDEX(Biuro_išlaidų[],MATCH(INDEX(Biuro_išlaidų_nuokrypių[],ROW()-ROW(Biuro_išlaidų_nuokrypių[[#Headers],[Vas]]),1),INDEX(Biuro_išlaidų[],,1),0),MATCH(Biuro_išlaidų_nuokrypių[[#Headers],[Vas]],Biuro_išlaidų[#Headers],0))-INDEX(Biuro_faktinių_išlaidų[],MATCH(INDEX(Biuro_išlaidų_nuokrypių[],ROW()-ROW(Biuro_išlaidų_nuokrypių[[#Headers],[Vas]]),1),INDEX(Biuro_išlaidų[],,1),0),MATCH(Biuro_išlaidų_nuokrypių[[#Headers],[Vas]],Biuro_faktinių_išlaidų[#Headers],0))","v":{"v":0,"d":"0.00 EUR"}},{"$f":"INDEX(Biuro_išlaidų[],MATCH(INDEX(Biuro_išlaidų_nuokrypių[],ROW()-ROW(Biuro_išlaidų_nuokrypių[[#Headers],[Kov]]),1),INDEX(Biuro_išlaidų[],,1),0),MATCH(Biuro_išlaidų_nuokrypių[[#Headers],[Kov]],Biuro_išlaidų[#Headers],0))-INDEX(Biuro_faktinių_išlaidų[],MATCH(INDEX(Biuro_išlaidų_nuokrypių[],ROW()-ROW(Biuro_išlaidų_nuokrypių[[#Headers],[Kov]]),1),INDEX(Biuro_išlaidų[],,1),0),MATCH(Biuro_išlaidų_nuokrypių[[#Headers],[Kov]],Biuro_faktinių_išlaidų[#Headers],0))","v":{"v":0,"d":"0.00 EUR"}},{"$f":"INDEX(Biuro_išlaidų[],MATCH(INDEX(Biuro_išlaidų_nuokrypių[],ROW()-ROW(Biuro_išlaidų_nuokrypių[[#Headers],[Bal]]),1),INDEX(Biuro_išlaidų[],,1),0),MATCH(Biuro_išlaidų_nuokrypių[[#Headers],[Bal]],Biuro_išlaidų[#Headers],0))-INDEX(Biuro_faktinių_išlaidų[],MATCH(INDEX(Biuro_išlaidų_nuokrypių[],ROW()-ROW(Biuro_išlaidų_nuokrypių[[#Headers],[Bal]]),1),INDEX(Biuro_išlaidų[],,1),0),MATCH(Biuro_išlaidų_nuokrypių[[#Headers],[Bal]],Biuro_faktinių_išlaidų[#Headers],0))","v":{"v":0,"d":"0.00 EUR"}},{"$f":"INDEX(Biuro_išlaidų[],MATCH(INDEX(Biuro_išlaidų_nuokrypių[],ROW()-ROW(Biuro_išlaidų_nuokrypių[[#Headers],[Geg]]),1),INDEX(Biuro_išlaidų[],,1),0),MATCH(Biuro_išlaidų_nuokrypių[[#Headers],[Geg]],Biuro_išlaidų[#Headers],0))-INDEX(Biuro_faktinių_išlaidų[],MATCH(INDEX(Biuro_išlaidų_nuokrypių[],ROW()-ROW(Biuro_išlaidų_nuokrypių[[#Headers],[Geg]]),1),INDEX(Biuro_išlaidų[],,1),0),MATCH(Biuro_išlaidų_nuokrypių[[#Headers],[Geg]],Biuro_faktinių_išlaidų[#Headers],0))","v":{"v":0,"d":"0.00 EUR"}},{"$f":"INDEX(Biuro_išlaidų[],MATCH(INDEX(Biuro_išlaidų_nuokrypių[],ROW()-ROW(Biuro_išlaidų_nuokrypių[[#Headers],[Bir]]),1),INDEX(Biuro_išlaidų[],,1),0),MATCH(Biuro_išlaidų_nuokrypių[[#Headers],[Bir]],Biuro_išlaidų[#Headers],0))-INDEX(Biuro_faktinių_išlaidų[],MATCH(INDEX(Biuro_išlaidų_nuokrypių[],ROW()-ROW(Biuro_išlaidų_nuokrypių[[#Headers],[Bir]]),1),INDEX(Biuro_išlaidų[],,1),0),MATCH(Biuro_išlaidų_nuokrypių[[#Headers],[Bir]],Biuro_faktinių_išlaidų[#Headers],0))","v":{"v":0,"d":"0.00 EUR"}},{"$f":"INDEX(Biuro_išlaidų[],MATCH(INDEX(Biuro_išlaidų_nuokrypių[],ROW()-ROW(Biuro_išlaidų_nuokrypių[[#Headers],[Lie]]),1),INDEX(Biuro_išlaidų[],,1),0),MATCH(Biuro_išlaidų_nuokrypių[[#Headers],[Lie]],Biuro_išlaidų[#Headers],0))-INDEX(Biuro_faktinių_išlaidų[],MATCH(INDEX(Biuro_išlaidų_nuokrypių[],ROW()-ROW(Biuro_išlaidų_nuokrypių[[#Headers],[Lie]]),1),INDEX(Biuro_išlaidų[],,1),0),MATCH(Biuro_išlaidų_nuokrypių[[#Headers],[Lie]],Biuro_faktinių_išlaidų[#Headers],0))","v":{"v":180,"d":"180.00 EUR"}},{"$f":"INDEX(Biuro_išlaidų[],MATCH(INDEX(Biuro_išlaidų_nuokrypių[],ROW()-ROW(Biuro_išlaidų_nuokrypių[[#Headers],[Rgp]]),1),INDEX(Biuro_išlaidų[],,1),0),MATCH(Biuro_išlaidų_nuokrypių[[#Headers],[Rgp]],Biuro_išlaidų[#Headers],0))-INDEX(Biuro_faktinių_išlaidų[],MATCH(INDEX(Biuro_išlaidų_nuokrypių[],ROW()-ROW(Biuro_išlaidų_nuokrypių[[#Headers],[Rgp]]),1),INDEX(Biuro_išlaidų[],,1),0),MATCH(Biuro_išlaidų_nuokrypių[[#Headers],[Rgp]],Biuro_faktinių_išlaidų[#Headers],0))","v":{"v":180,"d":"180.00 EUR"}},{"$f":"INDEX(Biuro_išlaidų[],MATCH(INDEX(Biuro_išlaidų_nuokrypių[],ROW()-ROW(Biuro_išlaidų_nuokrypių[[#Headers],[Rgs]]),1),INDEX(Biuro_išlaidų[],,1),0),MATCH(Biuro_išlaidų_nuokrypių[[#Headers],[Rgs]],Biuro_išlaidų[#Headers],0))-INDEX(Biuro_faktinių_išlaidų[],MATCH(INDEX(Biuro_išlaidų_nuokrypių[],ROW()-ROW(Biuro_išlaidų_nuokrypių[[#Headers],[Rgs]]),1),INDEX(Biuro_išlaidų[],,1),0),MATCH(Biuro_išlaidų_nuokrypių[[#Headers],[Rgs]],Biuro_faktinių_išlaidų[#Headers],0))","v":{"v":180,"d":"180.00 EUR"}},{"$f":"INDEX(Biuro_išlaidų[],MATCH(INDEX(Biuro_išlaidų_nuokrypių[],ROW()-ROW(Biuro_išlaidų_nuokrypių[[#Headers],[Spl]]),1),INDEX(Biuro_išlaidų[],,1),0),MATCH(Biuro_išlaidų_nuokrypių[[#Headers],[Spl]],Biuro_išlaidų[#Headers],0))-INDEX(Biuro_faktinių_išlaidų[],MATCH(INDEX(Biuro_išlaidų_nuokrypių[],ROW()-ROW(Biuro_išlaidų_nuokrypių[[#Headers],[Spl]]),1),INDEX(Biuro_išlaidų[],,1),0),MATCH(Biuro_išlaidų_nuokrypių[[#Headers],[Spl]],Biuro_faktinių_išlaidų[#Headers],0))","v":{"v":180,"d":"180.00 EUR"}},{"$f":"INDEX(Biuro_išlaidų[],MATCH(INDEX(Biuro_išlaidų_nuokrypių[],ROW()-ROW(Biuro_išlaidų_nuokrypių[[#Headers],[Lap]]),1),INDEX(Biuro_išlaidų[],,1),0),MATCH(Biuro_išlaidų_nuokrypių[[#Headers],[Lap]],Biuro_išlaidų[#Headers],0))-INDEX(Biuro_faktinių_išlaidų[],MATCH(INDEX(Biuro_išlaidų_nuokrypių[],ROW()-ROW(Biuro_išlaidų_nuokrypių[[#Headers],[Lap]]),1),INDEX(Biuro_išlaidų[],,1),0),MATCH(Biuro_išlaidų_nuokrypių[[#Headers],[Lap]],Biuro_faktinių_išlaidų[#Headers],0))","v":{"v":180,"d":"180.00 EUR"}},{"$f":"INDEX(Biuro_išlaidų[],MATCH(INDEX(Biuro_išlaidų_nuokrypių[],ROW()-ROW(Biuro_išlaidų_nuokrypių[[#Headers],[Grd]]),1),INDEX(Biuro_išlaidų[],,1),0),MATCH(Biuro_išlaidų_nuokrypių[[#Headers],[Grd]],Biuro_išlaidų[#Headers],0))-INDEX(Biuro_faktinių_išlaidų[],MATCH(INDEX(Biuro_išlaidų_nuokrypių[],ROW()-ROW(Biuro_išlaidų_nuokrypių[[#Headers],[Grd]]),1),INDEX(Biuro_išlaidų[],,1),0),MATCH(Biuro_išlaidų_nuokrypių[[#Headers],[Grd]],Biuro_faktinių_išlaidų[#Headers],0))","v":{"v":180,"d":"180.00 EUR"}},{"$f":"SUM(Biuro_išlaidų_nuokrypių[[#This Row],[Sau]:[Grd]])","v":{"v":1080,"d":"1,080.00 EUR"}}]
[null,"Biuro reikmenys",{"$f":"INDEX(Biuro_išlaidų[],MATCH(INDEX(Biuro_išlaidų_nuokrypių[],ROW()-ROW(Biuro_išlaidų_nuokrypių[[#Headers],[Sau]]),1),INDEX(Biuro_išlaidų[],,1),0),MATCH(Biuro_išlaidų_nuokrypių[[#Headers],[Sau]],Biuro_išlaidų[#Headers],0))-INDEX(Biuro_faktinių_išlaidų[],MATCH(INDEX(Biuro_išlaidų_nuokrypių[],ROW()-ROW(Biuro_išlaidų_nuokrypių[[#Headers],[Sau]]),1),INDEX(Biuro_išlaidų[],,1),0),MATCH(Biuro_išlaidų_nuokrypių[[#Headers],[Sau]],Biuro_faktinių_išlaidų[#Headers],0))","v":{"v":-56,"d":"-56.00 EUR"}},{"$f":"INDEX(Biuro_išlaidų[],MATCH(INDEX(Biuro_išlaidų_nuokrypių[],ROW()-ROW(Biuro_išlaidų_nuokrypių[[#Headers],[Vas]]),1),INDEX(Biuro_išlaidų[],,1),0),MATCH(Biuro_išlaidų_nuokrypių[[#Headers],[Vas]],Biuro_išlaidų[#Headers],0))-INDEX(Biuro_faktinių_išlaidų[],MATCH(INDEX(Biuro_išlaidų_nuokrypių[],ROW()-ROW(Biuro_išlaidų_nuokrypių[[#Headers],[Vas]]),1),INDEX(Biuro_išlaidų[],,1),0),MATCH(Biuro_išlaidų_nuokrypių[[#Headers],[Vas]],Biuro_faktinių_išlaidų[#Headers],0))","v":{"v":58,"d":"58.00 EUR"}},{"$f":"INDEX(Biuro_išlaidų[],MATCH(INDEX(Biuro_išlaidų_nuokrypių[],ROW()-ROW(Biuro_išlaidų_nuokrypių[[#Headers],[Kov]]),1),INDEX(Biuro_išlaidų[],,1),0),MATCH(Biuro_išlaidų_nuokrypių[[#Headers],[Kov]],Biuro_išlaidų[#Headers],0))-INDEX(Biuro_faktinių_išlaidų[],MATCH(INDEX(Biuro_išlaidų_nuokrypių[],ROW()-ROW(Biuro_išlaidų_nuokrypių[[#Headers],[Kov]]),1),INDEX(Biuro_išlaidų[],,1),0),MATCH(Biuro_išlaidų_nuokrypių[[#Headers],[Kov]],Biuro_faktinių_išlaidų[#Headers],0))","v":{"v":40,"d":"40.00 EUR"}},{"$f":"INDEX(Biuro_išlaidų[],MATCH(INDEX(Biuro_išlaidų_nuokrypių[],ROW()-ROW(Biuro_išlaidų_nuokrypių[[#Headers],[Bal]]),1),INDEX(Biuro_išlaidų[],,1),0),MATCH(Biuro_išlaidų_nuokrypių[[#Headers],[Bal]],Biuro_išlaidų[#Headers],0))-INDEX(Biuro_faktinių_išlaidų[],MATCH(INDEX(Biuro_išlaidų_nuokrypių[],ROW()-ROW(Biuro_išlaidų_nuokrypių[[#Headers],[Bal]]),1),INDEX(Biuro_išlaidų[],,1),0),MATCH(Biuro_išlaidų_nuokrypių[[#Headers],[Bal]],Biuro_faktinių_išlaidų[#Headers],0))","v":{"v":-21,"d":"-21.00 EUR"}},{"$f":"INDEX(Biuro_išlaidų[],MATCH(INDEX(Biuro_išlaidų_nuokrypių[],ROW()-ROW(Biuro_išlaidų_nuokrypių[[#Headers],[Geg]]),1),INDEX(Biuro_išlaidų[],,1),0),MATCH(Biuro_išlaidų_nuokrypių[[#Headers],[Geg]],Biuro_išlaidų[#Headers],0))-INDEX(Biuro_faktinių_išlaidų[],MATCH(INDEX(Biuro_išlaidų_nuokrypių[],ROW()-ROW(Biuro_išlaidų_nuokrypių[[#Headers],[Geg]]),1),INDEX(Biuro_išlaidų[],,1),0),MATCH(Biuro_išlaidų_nuokrypių[[#Headers],[Geg]],Biuro_faktinių_išlaidų[#Headers],0))","v":{"v":-56,"d":"-56.00 EUR"}},{"$f":"INDEX(Biuro_išlaidų[],MATCH(INDEX(Biuro_išlaidų_nuokrypių[],ROW()-ROW(Biuro_išlaidų_nuokrypių[[#Headers],[Bir]]),1),INDEX(Biuro_išlaidų[],,1),0),MATCH(Biuro_išlaidų_nuokrypių[[#Headers],[Bir]],Biuro_išlaidų[#Headers],0))-INDEX(Biuro_faktinių_išlaidų[],MATCH(INDEX(Biuro_išlaidų_nuokrypių[],ROW()-ROW(Biuro_išlaidų_nuokrypių[[#Headers],[Bir]]),1),INDEX(Biuro_išlaidų[],,1),0),MATCH(Biuro_išlaidų_nuokrypių[[#Headers],[Bir]],Biuro_faktinių_išlaidų[#Headers],0))","v":{"v":-40,"d":"-40.00 EUR"}},{"$f":"INDEX(Biuro_išlaidų[],MATCH(INDEX(Biuro_išlaidų_nuokrypių[],ROW()-ROW(Biuro_išlaidų_nuokrypių[[#Headers],[Lie]]),1),INDEX(Biuro_išlaidų[],,1),0),MATCH(Biuro_išlaidų_nuokrypių[[#Headers],[Lie]],Biuro_išlaidų[#Headers],0))-INDEX(Biuro_faktinių_išlaidų[],MATCH(INDEX(Biuro_išlaidų_nuokrypių[],ROW()-ROW(Biuro_išlaidų_nuokrypių[[#Headers],[Lie]]),1),INDEX(Biuro_išlaidų[],,1),0),MATCH(Biuro_išlaidų_nuokrypių[[#Headers],[Lie]],Biuro_faktinių_išlaidų[#Headers],0))","v":{"v":200,"d":"200.00 EUR"}},{"$f":"INDEX(Biuro_išlaidų[],MATCH(INDEX(Biuro_išlaidų_nuokrypių[],ROW()-ROW(Biuro_išlaidų_nuokrypių[[#Headers],[Rgp]]),1),INDEX(Biuro_išlaidų[],,1),0),MATCH(Biuro_išlaidų_nuokrypių[[#Headers],[Rgp]],Biuro_išlaidų[#Headers],0))-INDEX(Biuro_faktinių_išlaidų[],MATCH(INDEX(Biuro_išlaidų_nuokrypių[],ROW()-ROW(Biuro_išlaidų_nuokrypių[[#Headers],[Rgp]]),1),INDEX(Biuro_išlaidų[],,1),0),MATCH(Biuro_išlaidų_nuokrypių[[#Headers],[Rgp]],Biuro_faktinių_išlaidų[#Headers],0))","v":{"v":200,"d":"200.00 EUR"}},{"$f":"INDEX(Biuro_išlaidų[],MATCH(INDEX(Biuro_išlaidų_nuokrypių[],ROW()-ROW(Biuro_išlaidų_nuokrypių[[#Headers],[Rgs]]),1),INDEX(Biuro_išlaidų[],,1),0),MATCH(Biuro_išlaidų_nuokrypių[[#Headers],[Rgs]],Biuro_išlaidų[#Headers],0))-INDEX(Biuro_faktinių_išlaidų[],MATCH(INDEX(Biuro_išlaidų_nuokrypių[],ROW()-ROW(Biuro_išlaidų_nuokrypių[[#Headers],[Rgs]]),1),INDEX(Biuro_išlaidų[],,1),0),MATCH(Biuro_išlaidų_nuokrypių[[#Headers],[Rgs]],Biuro_faktinių_išlaidų[#Headers],0))","v":{"v":200,"d":"200.00 EUR"}},{"$f":"INDEX(Biuro_išlaidų[],MATCH(INDEX(Biuro_išlaidų_nuokrypių[],ROW()-ROW(Biuro_išlaidų_nuokrypių[[#Headers],[Spl]]),1),INDEX(Biuro_išlaidų[],,1),0),MATCH(Biuro_išlaidų_nuokrypių[[#Headers],[Spl]],Biuro_išlaidų[#Headers],0))-INDEX(Biuro_faktinių_išlaidų[],MATCH(INDEX(Biuro_išlaidų_nuokrypių[],ROW()-ROW(Biuro_išlaidų_nuokrypių[[#Headers],[Spl]]),1),INDEX(Biuro_išlaidų[],,1),0),MATCH(Biuro_išlaidų_nuokrypių[[#Headers],[Spl]],Biuro_faktinių_išlaidų[#Headers],0))","v":{"v":200,"d":"200.00 EUR"}},{"$f":"INDEX(Biuro_išlaidų[],MATCH(INDEX(Biuro_išlaidų_nuokrypių[],ROW()-ROW(Biuro_išlaidų_nuokrypių[[#Headers],[Lap]]),1),INDEX(Biuro_išlaidų[],,1),0),MATCH(Biuro_išlaidų_nuokrypių[[#Headers],[Lap]],Biuro_išlaidų[#Headers],0))-INDEX(Biuro_faktinių_išlaidų[],MATCH(INDEX(Biuro_išlaidų_nuokrypių[],ROW()-ROW(Biuro_išlaidų_nuokrypių[[#Headers],[Lap]]),1),INDEX(Biuro_išlaidų[],,1),0),MATCH(Biuro_išlaidų_nuokrypių[[#Headers],[Lap]],Biuro_faktinių_išlaidų[#Headers],0))","v":{"v":200,"d":"200.00 EUR"}},{"$f":"INDEX(Biuro_išlaidų[],MATCH(INDEX(Biuro_išlaidų_nuokrypių[],ROW()-ROW(Biuro_išlaidų_nuokrypių[[#Headers],[Grd]]),1),INDEX(Biuro_išlaidų[],,1),0),MATCH(Biuro_išlaidų_nuokrypių[[#Headers],[Grd]],Biuro_išlaidų[#Headers],0))-INDEX(Biuro_faktinių_išlaidų[],MATCH(INDEX(Biuro_išlaidų_nuokrypių[],ROW()-ROW(Biuro_išlaidų_nuokrypių[[#Headers],[Grd]]),1),INDEX(Biuro_išlaidų[],,1),0),MATCH(Biuro_išlaidų_nuokrypių[[#Headers],[Grd]],Biuro_faktinių_išlaidų[#Headers],0))","v":{"v":200,"d":"200.00 EUR"}},{"$f":"SUM(Biuro_išlaidų_nuokrypių[[#This Row],[Sau]:[Grd]])","v":{"v":1125,"d":"1,125.00 EUR"}}]
[null,"Apsauga",{"$f":"INDEX(Biuro_išlaidų[],MATCH(INDEX(Biuro_išlaidų_nuokrypių[],ROW()-ROW(Biuro_išlaidų_nuokrypių[[#Headers],[Sau]]),1),INDEX(Biuro_išlaidų[],,1),0),MATCH(Biuro_išlaidų_nuokrypių[[#Headers],[Sau]],Biuro_išlaidų[#Headers],0))-INDEX(Biuro_faktinių_išlaidų[],MATCH(INDEX(Biuro_išlaidų_nuokrypių[],ROW()-ROW(Biuro_išlaidų_nuokrypių[[#Headers],[Sau]]),1),INDEX(Biuro_išlaidų[],,1),0),MATCH(Biuro_išlaidų_nuokrypių[[#Headers],[Sau]],Biuro_faktinių_išlaidų[#Headers],0))","v":{"v":0,"d":"0.00 EUR"}},{"$f":"INDEX(Biuro_išlaidų[],MATCH(INDEX(Biuro_išlaidų_nuokrypių[],ROW()-ROW(Biuro_išlaidų_nuokrypių[[#Headers],[Vas]]),1),INDEX(Biuro_išlaidų[],,1),0),MATCH(Biuro_išlaidų_nuokrypių[[#Headers],[Vas]],Biuro_išlaidų[#Headers],0))-INDEX(Biuro_faktinių_išlaidų[],MATCH(INDEX(Biuro_išlaidų_nuokrypių[],ROW()-ROW(Biuro_išlaidų_nuokrypių[[#Headers],[Vas]]),1),INDEX(Biuro_išlaidų[],,1),0),MATCH(Biuro_išlaidų_nuokrypių[[#Headers],[Vas]],Biuro_faktinių_išlaidų[#Headers],0))","v":{"v":0,"d":"0.00 EUR"}},{"$f":"INDEX(Biuro_išlaidų[],MATCH(INDEX(Biuro_išlaidų_nuokrypių[],ROW()-ROW(Biuro_išlaidų_nuokrypių[[#Headers],[Kov]]),1),INDEX(Biuro_išlaidų[],,1),0),MATCH(Biuro_išlaidų_nuokrypių[[#Headers],[Kov]],Biuro_išlaidų[#Headers],0))-INDEX(Biuro_faktinių_išlaidų[],MATCH(INDEX(Biuro_išlaidų_nuokrypių[],ROW()-ROW(Biuro_išlaidų_nuokrypių[[#Headers],[Kov]]),1),INDEX(Biuro_išlaidų[],,1),0),MATCH(Biuro_išlaidų_nuokrypių[[#Headers],[Kov]],Biuro_faktinių_išlaidų[#Headers],0))","v":{"v":0,"d":"0.00 EUR"}},{"$f":"INDEX(Biuro_išlaidų[],MATCH(INDEX(Biuro_išlaidų_nuokrypių[],ROW()-ROW(Biuro_išlaidų_nuokrypių[[#Headers],[Bal]]),1),INDEX(Biuro_išlaidų[],,1),0),MATCH(Biuro_išlaidų_nuokrypių[[#Headers],[Bal]],Biuro_išlaidų[#Headers],0))-INDEX(Biuro_faktinių_išlaidų[],MATCH(INDEX(Biuro_išlaidų_nuokrypių[],ROW()-ROW(Biuro_išlaidų_nuokrypių[[#Headers],[Bal]]),1),INDEX(Biuro_išlaidų[],,1),0),MATCH(Biuro_išlaidų_nuokrypių[[#Headers],[Bal]],Biuro_faktinių_išlaidų[#Headers],0))","v":{"v":0,"d":"0.00 EUR"}},{"$f":"INDEX(Biuro_išlaidų[],MATCH(INDEX(Biuro_išlaidų_nuokrypių[],ROW()-ROW(Biuro_išlaidų_nuokrypių[[#Headers],[Geg]]),1),INDEX(Biuro_išlaidų[],,1),0),MATCH(Biuro_išlaidų_nuokrypių[[#Headers],[Geg]],Biuro_išlaidų[#Headers],0))-INDEX(Biuro_faktinių_išlaidų[],MATCH(INDEX(Biuro_išlaidų_nuokrypių[],ROW()-ROW(Biuro_išlaidų_nuokrypių[[#Headers],[Geg]]),1),INDEX(Biuro_išlaidų[],,1),0),MATCH(Biuro_išlaidų_nuokrypių[[#Headers],[Geg]],Biuro_faktinių_išlaidų[#Headers],0))","v":{"v":0,"d":"0.00 EUR"}},{"$f":"INDEX(Biuro_išlaidų[],MATCH(INDEX(Biuro_išlaidų_nuokrypių[],ROW()-ROW(Biuro_išlaidų_nuokrypių[[#Headers],[Bir]]),1),INDEX(Biuro_išlaidų[],,1),0),MATCH(Biuro_išlaidų_nuokrypių[[#Headers],[Bir]],Biuro_išlaidų[#Headers],0))-INDEX(Biuro_faktinių_išlaidų[],MATCH(INDEX(Biuro_išlaidų_nuokrypių[],ROW()-ROW(Biuro_išlaidų_nuokrypių[[#Headers],[Bir]]),1),INDEX(Biuro_išlaidų[],,1),0),MATCH(Biuro_išlaidų_nuokrypių[[#Headers],[Bir]],Biuro_faktinių_išlaidų[#Headers],0))","v":{"v":0,"d":"0.00 EUR"}},{"$f":"INDEX(Biuro_išlaidų[],MATCH(INDEX(Biuro_išlaidų_nuokrypių[],ROW()-ROW(Biuro_išlaidų_nuokrypių[[#Headers],[Lie]]),1),INDEX(Biuro_išlaidų[],,1),0),MATCH(Biuro_išlaidų_nuokrypių[[#Headers],[Lie]],Biuro_išlaidų[#Headers],0))-INDEX(Biuro_faktinių_išlaidų[],MATCH(INDEX(Biuro_išlaidų_nuokrypių[],ROW()-ROW(Biuro_išlaidų_nuokrypių[[#Headers],[Lie]]),1),INDEX(Biuro_išlaidų[],,1),0),MATCH(Biuro_išlaidų_nuokrypių[[#Headers],[Lie]],Biuro_faktinių_išlaidų[#Headers],0))","v":{"v":600,"d":"600.00 EUR"}},{"$f":"INDEX(Biuro_išlaidų[],MATCH(INDEX(Biuro_išlaidų_nuokrypių[],ROW()-ROW(Biuro_išlaidų_nuokrypių[[#Headers],[Rgp]]),1),INDEX(Biuro_išlaidų[],,1),0),MATCH(Biuro_išlaidų_nuokrypių[[#Headers],[Rgp]],Biuro_išlaidų[#Headers],0))-INDEX(Biuro_faktinių_išlaidų[],MATCH(INDEX(Biuro_išlaidų_nuokrypių[],ROW()-ROW(Biuro_išlaidų_nuokrypių[[#Headers],[Rgp]]),1),INDEX(Biuro_išlaidų[],,1),0),MATCH(Biuro_išlaidų_nuokrypių[[#Headers],[Rgp]],Biuro_faktinių_išlaidų[#Headers],0))","v":{"v":600,"d":"600.00 EUR"}},{"$f":"INDEX(Biuro_išlaidų[],MATCH(INDEX(Biuro_išlaidų_nuokrypių[],ROW()-ROW(Biuro_išlaidų_nuokrypių[[#Headers],[Rgs]]),1),INDEX(Biuro_išlaidų[],,1),0),MATCH(Biuro_išlaidų_nuokrypių[[#Headers],[Rgs]],Biuro_išlaidų[#Headers],0))-INDEX(Biuro_faktinių_išlaidų[],MATCH(INDEX(Biuro_išlaidų_nuokrypių[],ROW()-ROW(Biuro_išlaidų_nuokrypių[[#Headers],[Rgs]]),1),INDEX(Biuro_išlaidų[],,1),0),MATCH(Biuro_išlaidų_nuokrypių[[#Headers],[Rgs]],Biuro_faktinių_išlaidų[#Headers],0))","v":{"v":600,"d":"600.00 EUR"}},{"$f":"INDEX(Biuro_išlaidų[],MATCH(INDEX(Biuro_išlaidų_nuokrypių[],ROW()-ROW(Biuro_išlaidų_nuokrypių[[#Headers],[Spl]]),1),INDEX(Biuro_išlaidų[],,1),0),MATCH(Biuro_išlaidų_nuokrypių[[#Headers],[Spl]],Biuro_išlaidų[#Headers],0))-INDEX(Biuro_faktinių_išlaidų[],MATCH(INDEX(Biuro_išlaidų_nuokrypių[],ROW()-ROW(Biuro_išlaidų_nuokrypių[[#Headers],[Spl]]),1),INDEX(Biuro_išlaidų[],,1),0),MATCH(Biuro_išlaidų_nuokrypių[[#Headers],[Spl]],Biuro_faktinių_išlaidų[#Headers],0))","v":{"v":600,"d":"600.00 EUR"}},{"$f":"INDEX(Biuro_išlaidų[],MATCH(INDEX(Biuro_išlaidų_nuokrypių[],ROW()-ROW(Biuro_išlaidų_nuokrypių[[#Headers],[Lap]]),1),INDEX(Biuro_išlaidų[],,1),0),MATCH(Biuro_išlaidų_nuokrypių[[#Headers],[Lap]],Biuro_išlaidų[#Headers],0))-INDEX(Biuro_faktinių_išlaidų[],MATCH(INDEX(Biuro_išlaidų_nuokrypių[],ROW()-ROW(Biuro_išlaidų_nuokrypių[[#Headers],[Lap]]),1),INDEX(Biuro_išlaidų[],,1),0),MATCH(Biuro_išlaidų_nuokrypių[[#Headers],[Lap]],Biuro_faktinių_išlaidų[#Headers],0))","v":{"v":600,"d":"600.00 EUR"}},{"$f":"INDEX(Biuro_išlaidų[],MATCH(INDEX(Biuro_išlaidų_nuokrypių[],ROW()-ROW(Biuro_išlaidų_nuokrypių[[#Headers],[Grd]]),1),INDEX(Biuro_išlaidų[],,1),0),MATCH(Biuro_išlaidų_nuokrypių[[#Headers],[Grd]],Biuro_išlaidų[#Headers],0))-INDEX(Biuro_faktinių_išlaidų[],MATCH(INDEX(Biuro_išlaidų_nuokrypių[],ROW()-ROW(Biuro_išlaidų_nuokrypių[[#Headers],[Grd]]),1),INDEX(Biuro_išlaidų[],,1),0),MATCH(Biuro_išlaidų_nuokrypių[[#Headers],[Grd]],Biuro_faktinių_išlaidų[#Headers],0))","v":{"v":600,"d":"600.00 EUR"}},{"$f":"SUM(Biuro_išlaidų_nuokrypių[[#This Row],[Sau]:[Grd]])","v":{"v":3600,"d":"3,600.00 EUR"}}]
[null,"Tarpinė suma",{"$f":"SUBTOTAL(109,Biuro_išlaidų_nuokrypių[Sau])","v":{"v":-17,"d":"-17.00 EUR"}},{"$f":"SUBTOTAL(109,Biuro_išlaidų_nuokrypių[Vas])","v":{"v":72,"d":"72.00 EUR"}},{"$f":"SUBTOTAL(109,Biuro_išlaidų_nuokrypių[Kov])","v":{"v":78,"d":"78.00 EUR"}},{"$f":"SUBTOTAL(109,Biuro_išlaidų_nuokrypių[Bal])","v":{"v":-141,"d":"-141.00 EUR"}},{"$f":"SUBTOTAL(109,Biuro_išlaidų_nuokrypių[Geg])","v":{"v":-38,"d":"-38.00 EUR"}},{"$f":"SUBTOTAL(109,Biuro_išlaidų_nuokrypių[Bir])","v":{"v":16,"d":"16.00 EUR"}},{"$f":"SUBTOTAL(109,Biuro_išlaidų_nuokrypių[Lie])","v":{"v":11470,"d":"11,470.00 EUR"}},{"$f":"SUBTOTAL(109,Biuro_išlaidų_nuokrypių[Rgp])","v":{"v":11470,"d":"11,470.00 EUR"}},{"$f":"SUBTOTAL(109,Biuro_išlaidų_nuokrypių[Rgs])","v":{"v":11470,"d":"11,470.00 EUR"}},{"$f":"SUBTOTAL(109,Biuro_išlaidų_nuokrypių[Spl])","v":{"v":11470,"d":"11,470.00 EUR"}},{"$f":"SUBTOTAL(109,Biuro_išlaidų_nuokrypių[Lap])","v":{"v":11770,"d":"11,770.00 EUR"}},{"$f":"SUBTOTAL(109,Biuro_išlaidų_nuokrypių[Grd])","v":{"v":11770,"d":"11,770.00 EUR"}},{"$f":"SUBTOTAL(109,Biuro_išlaidų_nuokrypių[METAI])","v":{"v":69390,"d":"69,390.00 EUR"}}]
[]
["Rinkodaros išlaidos nuokrypis automatiškai apskaičiuojamas rinkodaros išlaidų nuokrypių lentelėje, pradedant langeliu dešinėje. Kitas nurodymas yra A30 langelyje.","Rinkodaros išlaidos","Sau","Vas","Kov","Bal","Geg","Bir","Lie","Rgp","Rgs","Spl","Lap","Grd","METAI"]
[null,"Svetainės išteklių nuoma",{"$f":"INDEX(Rinkodaros_išlaidų[],MATCH(INDEX(Rinkodaros_išlaidų_nuokrypių[],ROW()-ROW(Rinkodaros_išlaidų_nuokrypių[[#Headers],[Sau]]),1),INDEX(Rinkodaros_išlaidų[],,1),0),MATCH(Rinkodaros_išlaidų_nuokrypių[[#Headers],[Sau]],Rinkodaros_išlaidų[#Headers],0))-INDEX(Faktinių_rinkodaros_išlaidų[],MATCH(INDEX(Rinkodaros_išlaidų_nuokrypių[],ROW()-ROW(Rinkodaros_išlaidų_nuokrypių[[#Headers],[Sau]]),1),INDEX(Rinkodaros_išlaidų[],,1),0),MATCH(Rinkodaros_išlaidų_nuokrypių[[#Headers],[Sau]],Faktinių_rinkodaros_išlaidų[#Headers],0))","v":{"v":0,"d":"0.00 EUR"}},{"$f":"INDEX(Rinkodaros_išlaidų[],MATCH(INDEX(Rinkodaros_išlaidų_nuokrypių[],ROW()-ROW(Rinkodaros_išlaidų_nuokrypių[[#Headers],[Vas]]),1),INDEX(Rinkodaros_išlaidų[],,1),0),MATCH(Rinkodaros_išlaidų_nuokrypių[[#Headers],[Vas]],Rinkodaros_išlaidų[#Headers],0))-INDEX(Faktinių_rinkodaros_išlaidų[],MATCH(INDEX(Rinkodaros_išlaidų_nuokrypių[],ROW()-ROW(Rinkodaros_išlaidų_nuokrypių[[#Headers],[Vas]]),1),INDEX(Rinkodaros_išlaidų[],,1),0),MATCH(Rinkodaros_išlaidų_nuokrypių[[#Headers],[Vas]],Faktinių_rinkodaros_išlaidų[#Headers],0))","v":{"v":0,"d":"0.00 EUR"}},{"$f":"INDEX(Rinkodaros_išlaidų[],MATCH(INDEX(Rinkodaros_išlaidų_nuokrypių[],ROW()-ROW(Rinkodaros_išlaidų_nuokrypių[[#Headers],[Kov]]),1),INDEX(Rinkodaros_išlaidų[],,1),0),MATCH(Rinkodaros_išlaidų_nuokrypių[[#Headers],[Kov]],Rinkodaros_išlaidų[#Headers],0))-INDEX(Faktinių_rinkodaros_išlaidų[],MATCH(INDEX(Rinkodaros_išlaidų_nuokrypių[],ROW()-ROW(Rinkodaros_išlaidų_nuokrypių[[#Headers],[Kov]]),1),INDEX(Rinkodaros_išlaidų[],,1),0),MATCH(Rinkodaros_išlaidų_nuokrypių[[#Headers],[Kov]],Faktinių_rinkodaros_išlaidų[#Headers],0))","v":{"v":0,"d":"0.00 EUR"}},{"$f":"INDEX(Rinkodaros_išlaidų[],MATCH(INDEX(Rinkodaros_išlaidų_nuokrypių[],ROW()-ROW(Rinkodaros_išlaidų_nuokrypių[[#Headers],[Bal]]),1),INDEX(Rinkodaros_išlaidų[],,1),0),MATCH(Rinkodaros_išlaidų_nuokrypių[[#Headers],[Bal]],Rinkodaros_išlaidų[#Headers],0))-INDEX(Faktinių_rinkodaros_išlaidų[],MATCH(INDEX(Rinkodaros_išlaidų_nuokrypių[],ROW()-ROW(Rinkodaros_išlaidų_nuokrypių[[#Headers],[Bal]]),1),INDEX(Rinkodaros_išlaidų[],,1),0),MATCH(Rinkodaros_išlaidų_nuokrypių[[#Headers],[Bal]],Faktinių_rinkodaros_išlaidų[#Headers],0))","v":{"v":0,"d":"0.00 EUR"}},{"$f":"INDEX(Rinkodaros_išlaidų[],MATCH(INDEX(Rinkodaros_išlaidų_nuokrypių[],ROW()-ROW(Rinkodaros_išlaidų_nuokrypių[[#Headers],[Geg]]),1),INDEX(Rinkodaros_išlaidų[],,1),0),MATCH(Rinkodaros_išlaidų_nuokrypių[[#Headers],[Geg]],Rinkodaros_išlaidų[#Headers],0))-INDEX(Faktinių_rinkodaros_išlaidų[],MATCH(INDEX(Rinkodaros_išlaidų_nuokrypių[],ROW()-ROW(Rinkodaros_išlaidų_nuokrypių[[#Headers],[Geg]]),1),INDEX(Rinkodaros_išlaidų[],,1),0),MATCH(Rinkodaros_išlaidų_nuokrypių[[#Headers],[Geg]],Faktinių_rinkodaros_išlaidų[#Headers],0))","v":{"v":0,"d":"0.00 EUR"}},{"$f":"INDEX(Rinkodaros_išlaidų[],MATCH(INDEX(Rinkodaros_išlaidų_nuokrypių[],ROW()-ROW(Rinkodaros_išlaidų_nuokrypių[[#Headers],[Bir]]),1),INDEX(Rinkodaros_išlaidų[],,1),0),MATCH(Rinkodaros_išlaidų_nuokrypių[[#Headers],[Bir]],Rinkodaros_išlaidų[#Headers],0))-INDEX(Faktinių_rinkodaros_išlaidų[],MATCH(INDEX(Rinkodaros_išlaidų_nuokrypių[],ROW()-ROW(Rinkodaros_išlaidų_nuokrypių[[#Headers],[Bir]]),1),INDEX(Rinkodaros_išlaidų[],,1),0),MATCH(Rinkodaros_išlaidų_nuokrypių[[#Headers],[Bir]],Faktinių_rinkodaros_išlaidų[#Headers],0))","v":{"v":0,"d":"0.00 EUR"}},{"$f":"INDEX(Rinkodaros_išlaidų[],MATCH(INDEX(Rinkodaros_išlaidų_nuokrypių[],ROW()-ROW(Rinkodaros_išlaidų_nuokrypių[[#Headers],[Lie]]),1),INDEX(Rinkodaros_išlaidų[],,1),0),MATCH(Rinkodaros_išlaidų_nuokrypių[[#Headers],[Lie]],Rinkodaros_išlaidų[#Headers],0))-INDEX(Faktinių_rinkodaros_išlaidų[],MATCH(INDEX(Rinkodaros_išlaidų_nuokrypių[],ROW()-ROW(Rinkodaros_išlaidų_nuokrypių[[#Headers],[Lie]]),1),INDEX(Rinkodaros_išlaidų[],,1),0),MATCH(Rinkodaros_išlaidų_nuokrypių[[#Headers],[Lie]],Faktinių_rinkodaros_išlaidų[#Headers],0))","v":{"v":500,"d":"500.00 EUR"}},{"$f":"INDEX(Rinkodaros_išlaidų[],MATCH(INDEX(Rinkodaros_išlaidų_nuokrypių[],ROW()-ROW(Rinkodaros_išlaidų_nuokrypių[[#Headers],[Rgp]]),1),INDEX(Rinkodaros_išlaidų[],,1),0),MATCH(Rinkodaros_išlaidų_nuokrypių[[#Headers],[Rgp]],Rinkodaros_išlaidų[#Headers],0))-INDEX(Faktinių_rinkodaros_išlaidų[],MATCH(INDEX(Rinkodaros_išlaidų_nuokrypių[],ROW()-ROW(Rinkodaros_išlaidų_nuokrypių[[#Headers],[Rgp]]),1),INDEX(Rinkodaros_išlaidų[],,1),0),MATCH(Rinkodaros_išlaidų_nuokrypių[[#Headers],[Rgp]],Faktinių_rinkodaros_išlaidų[#Headers],0))","v":{"v":500,"d":"500.00 EUR"}},{"$f":"INDEX(Rinkodaros_išlaidų[],MATCH(INDEX(Rinkodaros_išlaidų_nuokrypių[],ROW()-ROW(Rinkodaros_išlaidų_nuokrypių[[#Headers],[Rgs]]),1),INDEX(Rinkodaros_išlaidų[],,1),0),MATCH(Rinkodaros_išlaidų_nuokrypių[[#Headers],[Rgs]],Rinkodaros_išlaidų[#Headers],0))-INDEX(Faktinių_rinkodaros_išlaidų[],MATCH(INDEX(Rinkodaros_išlaidų_nuokrypių[],ROW()-ROW(Rinkodaros_išlaidų_nuokrypių[[#Headers],[Rgs]]),1),INDEX(Rinkodaros_išlaidų[],,1),0),MATCH(Rinkodaros_išlaidų_nuokrypių[[#Headers],[Rgs]],Faktinių_rinkodaros_išlaidų[#Headers],0))","v":{"v":500,"d":"500.00 EUR"}},{"$f":"INDEX(Rinkodaros_išlaidų[],MATCH(INDEX(Rinkodaros_išlaidų_nuokrypių[],ROW()-ROW(Rinkodaros_išlaidų_nuokrypių[[#Headers],[Spl]]),1),INDEX(Rinkodaros_išlaidų[],,1),0),MATCH(Rinkodaros_išlaidų_nuokrypių[[#Headers],[Spl]],Rinkodaros_išlaidų[#Headers],0))-INDEX(Faktinių_rinkodaros_išlaidų[],MATCH(INDEX(Rinkodaros_išlaidų_nuokrypių[],ROW()-ROW(Rinkodaros_išlaidų_nuokrypių[[#Headers],[Spl]]),1),INDEX(Rinkodaros_išlaidų[],,1),0),MATCH(Rinkodaros_išlaidų_nuokrypių[[#Headers],[Spl]],Faktinių_rinkodaros_išlaidų[#Headers],0))","v":{"v":500,"d":"500.00 EUR"}},{"$f":"INDEX(Rinkodaros_išlaidų[],MATCH(INDEX(Rinkodaros_išlaidų_nuokrypių[],ROW()-ROW(Rinkodaros_išlaidų_nuokrypių[[#Headers],[Lap]]),1),INDEX(Rinkodaros_išlaidų[],,1),0),MATCH(Rinkodaros_išlaidų_nuokrypių[[#Headers],[Lap]],Rinkodaros_išlaidų[#Headers],0))-INDEX(Faktinių_rinkodaros_išlaidų[],MATCH(INDEX(Rinkodaros_išlaidų_nuokrypių[],ROW()-ROW(Rinkodaros_išlaidų_nuokrypių[[#Headers],[Lap]]),1),INDEX(Rinkodaros_išlaidų[],,1),0),MATCH(Rinkodaros_išlaidų_nuokrypių[[#Headers],[Lap]],Faktinių_rinkodaros_išlaidų[#Headers],0))","v":{"v":500,"d":"500.00 EUR"}},{"$f":"INDEX(Rinkodaros_išlaidų[],MATCH(INDEX(Rinkodaros_išlaidų_nuokrypių[],ROW()-ROW(Rinkodaros_išlaidų_nuokrypių[[#Headers],[Grd]]),1),INDEX(Rinkodaros_išlaidų[],,1),0),MATCH(Rinkodaros_išlaidų_nuokrypių[[#Headers],[Grd]],Rinkodaros_išlaidų[#Headers],0))-INDEX(Faktinių_rinkodaros_išlaidų[],MATCH(INDEX(Rinkodaros_išlaidų_nuokrypių[],ROW()-ROW(Rinkodaros_išlaidų_nuokrypių[[#Headers],[Grd]]),1),INDEX(Rinkodaros_išlaidų[],,1),0),MATCH(Rinkodaros_išlaidų_nuokrypių[[#Headers],[Grd]],Faktinių_rinkodaros_išlaidų[#Headers],0))","v":{"v":500,"d":"500.00 EUR"}},{"$f":"SUM(Rinkodaros_išlaidų_nuokrypių[[#This Row],[Sau]:[Grd]])","v":{"v":3000,"d":"3,000.00 EUR"}}]
[null,"Svetainės naujinimai",{"$f":"INDEX(Rinkodaros_išlaidų[],MATCH(INDEX(Rinkodaros_išlaidų_nuokrypių[],ROW()-ROW(Rinkodaros_išlaidų_nuokrypių[[#Headers],[Sau]]),1),INDEX(Rinkodaros_išlaidų[],,1),0),MATCH(Rinkodaros_išlaidų_nuokrypių[[#Headers],[Sau]],Rinkodaros_išlaidų[#Headers],0))-INDEX(Faktinių_rinkodaros_išlaidų[],MATCH(INDEX(Rinkodaros_išlaidų_nuokrypių[],ROW()-ROW(Rinkodaros_išlaidų_nuokrypių[[#Headers],[Sau]]),1),INDEX(Rinkodaros_išlaidų[],,1),0),MATCH(Rinkodaros_išlaidų_nuokrypių[[#Headers],[Sau]],Faktinių_rinkodaros_išlaidų[#Headers],0))","v":{"v":0,"d":"0.00 EUR"}},{"$f":"INDEX(Rinkodaros_išlaidų[],MATCH(INDEX(Rinkodaros_išlaidų_nuokrypių[],ROW()-ROW(Rinkodaros_išlaidų_nuokrypių[[#Headers],[Vas]]),1),INDEX(Rinkodaros_išlaidų[],,1),0),MATCH(Rinkodaros_išlaidų_nuokrypių[[#Headers],[Vas]],Rinkodaros_išlaidų[#Headers],0))-INDEX(Faktinių_rinkodaros_išlaidų[],MATCH(INDEX(Rinkodaros_išlaidų_nuokrypių[],ROW()-ROW(Rinkodaros_išlaidų_nuokrypių[[#Headers],[Vas]]),1),INDEX(Rinkodaros_išlaidų[],,1),0),MATCH(Rinkodaros_išlaidų_nuokrypių[[#Headers],[Vas]],Faktinių_rinkodaros_išlaidų[#Headers],0))","v":{"v":0,"d":"0.00 EUR"}},{"$f":"INDEX(Rinkodaros_išlaidų[],MATCH(INDEX(Rinkodaros_išlaidų_nuokrypių[],ROW()-ROW(Rinkodaros_išlaidų_nuokrypių[[#Headers],[Kov]]),1),INDEX(Rinkodaros_išlaidų[],,1),0),MATCH(Rinkodaros_išlaidų_nuokrypių[[#Headers],[Kov]],Rinkodaros_išlaidų[#Headers],0))-INDEX(Faktinių_rinkodaros_išlaidų[],MATCH(INDEX(Rinkodaros_išlaidų_nuokrypių[],ROW()-ROW(Rinkodaros_išlaidų_nuokrypių[[#Headers],[Kov]]),1),INDEX(Rinkodaros_išlaidų[],,1),0),MATCH(Rinkodaros_išlaidų_nuokrypių[[#Headers],[Kov]],Faktinių_rinkodaros_išlaidų[#Headers],0))","v":{"v":0,"d":"0.00 EUR"}},{"$f":"INDEX(Rinkodaros_išlaidų[],MATCH(INDEX(Rinkodaros_išlaidų_nuokrypių[],ROW()-ROW(Rinkodaros_išlaidų_nuokrypių[[#Headers],[Bal]]),1),INDEX(Rinkodaros_išlaidų[],,1),0),MATCH(Rinkodaros_išlaidų_nuokrypių[[#Headers],[Bal]],Rinkodaros_išlaidų[#Headers],0))-INDEX(Faktinių_rinkodaros_išlaidų[],MATCH(INDEX(Rinkodaros_išlaidų_nuokrypių[],ROW()-ROW(Rinkodaros_išlaidų_nuokrypių[[#Headers],[Bal]]),1),INDEX(Rinkodaros_išlaidų[],,1),0),MATCH(Rinkodaros_išlaidų_nuokrypių[[#Headers],[Bal]],Faktinių_rinkodaros_išlaidų[#Headers],0))","v":{"v":0,"d":"0.00 EUR"}},{"$f":"INDEX(Rinkodaros_išlaidų[],MATCH(INDEX(Rinkodaros_išlaidų_nuokrypių[],ROW()-ROW(Rinkodaros_išlaidų_nuokrypių[[#Headers],[Geg]]),1),INDEX(Rinkodaros_išlaidų[],,1),0),MATCH(Rinkodaros_išlaidų_nuokrypių[[#Headers],[Geg]],Rinkodaros_išlaidų[#Headers],0))-INDEX(Faktinių_rinkodaros_išlaidų[],MATCH(INDEX(Rinkodaros_išlaidų_nuokrypių[],ROW()-ROW(Rinkodaros_išlaidų_nuokrypių[[#Headers],[Geg]]),1),INDEX(Rinkodaros_išlaidų[],,1),0),MATCH(Rinkodaros_išlaidų_nuokrypių[[#Headers],[Geg]],Faktinių_rinkodaros_išlaidų[#Headers],0))","v":{"v":0,"d":"0.00 EUR"}},{"$f":"INDEX(Rinkodaros_išlaidų[],MATCH(INDEX(Rinkodaros_išlaidų_nuokrypių[],ROW()-ROW(Rinkodaros_išlaidų_nuokrypių[[#Headers],[Bir]]),1),INDEX(Rinkodaros_išlaidų[],,1),0),MATCH(Rinkodaros_išlaidų_nuokrypių[[#Headers],[Bir]],Rinkodaros_išlaidų[#Headers],0))-INDEX(Faktinių_rinkodaros_išlaidų[],MATCH(INDEX(Rinkodaros_išlaidų_nuokrypių[],ROW()-ROW(Rinkodaros_išlaidų_nuokrypių[[#Headers],[Bir]]),1),INDEX(Rinkodaros_išlaidų[],,1),0),MATCH(Rinkodaros_išlaidų_nuokrypių[[#Headers],[Bir]],Faktinių_rinkodaros_išlaidų[#Headers],0))","v":{"v":-500,"d":"-500.00 EUR"}},{"$f":"INDEX(Rinkodaros_išlaidų[],MATCH(INDEX(Rinkodaros_išlaidų_nuokrypių[],ROW()-ROW(Rinkodaros_išlaidų_nuokrypių[[#Headers],[Lie]]),1),INDEX(Rinkodaros_išlaidų[],,1),0),MATCH(Rinkodaros_išlaidų_nuokrypių[[#Headers],[Lie]],Rinkodaros_išlaidų[#Headers],0))-INDEX(Faktinių_rinkodaros_išlaidų[],MATCH(INDEX(Rinkodaros_išlaidų_nuokrypių[],ROW()-ROW(Rinkodaros_išlaidų_nuokrypių[[#Headers],[Lie]]),1),INDEX(Rinkodaros_išlaidų[],,1),0),MATCH(Rinkodaros_išlaidų_nuokrypių[[#Headers],[Lie]],Faktinių_rinkodaros_išlaidų[#Headers],0))","v":{"v":200,"d":"200.00 EUR"}},{"$f":"INDEX(Rinkodaros_išlaidų[],MATCH(INDEX(Rinkodaros_išlaidų_nuokrypių[],ROW()-ROW(Rinkodaros_išlaidų_nuokrypių[[#Headers],[Rgp]]),1),INDEX(Rinkodaros_išlaidų[],,1),0),MATCH(Rinkodaros_išlaidų_nuokrypių[[#Headers],[Rgp]],Rinkodaros_išlaidų[#Headers],0))-INDEX(Faktinių_rinkodaros_išlaidų[],MATCH(INDEX(Rinkodaros_išlaidų_nuokrypių[],ROW()-ROW(Rinkodaros_išlaidų_nuokrypių[[#Headers],[Rgp]]),1),INDEX(Rinkodaros_išlaidų[],,1),0),MATCH(Rinkodaros_išlaidų_nuokrypių[[#Headers],[Rgp]],Faktinių_rinkodaros_išlaidų[#Headers],0))","v":{"v":200,"d":"200.00 EUR"}},{"$f":"INDEX(Rinkodaros_išlaidų[],MATCH(INDEX(Rinkodaros_išlaidų_nuokrypių[],ROW()-ROW(Rinkodaros_išlaidų_nuokrypių[[#Headers],[Rgs]]),1),INDEX(Rinkodaros_išlaidų[],,1),0),MATCH(Rinkodaros_išlaidų_nuokrypių[[#Headers],[Rgs]],Rinkodaros_išlaidų[#Headers],0))-INDEX(Faktinių_rinkodaros_išlaidų[],MATCH(INDEX(Rinkodaros_išlaidų_nuokrypių[],ROW()-ROW(Rinkodaros_išlaidų_nuokrypių[[#Headers],[Rgs]]),1),INDEX(Rinkodaros_išlaidų[],,1),0),MATCH(Rinkodaros_išlaidų_nuokrypių[[#Headers],[Rgs]],Faktinių_rinkodaros_išlaidų[#Headers],0))","v":{"v":200,"d":"200.00 EUR"}},{"$f":"INDEX(Rinkodaros_išlaidų[],MATCH(INDEX(Rinkodaros_išlaidų_nuokrypių[],ROW()-ROW(Rinkodaros_išlaidų_nuokrypių[[#Headers],[Spl]]),1),INDEX(Rinkodaros_išlaidų[],,1),0),MATCH(Rinkodaros_išlaidų_nuokrypių[[#Headers],[Spl]],Rinkodaros_išlaidų[#Headers],0))-INDEX(Faktinių_rinkodaros_išlaidų[],MATCH(INDEX(Rinkodaros_išlaidų_nuokrypių[],ROW()-ROW(Rinkodaros_išlaidų_nuokrypių[[#Headers],[Spl]]),1),INDEX(Rinkodaros_išlaidų[],,1),0),MATCH(Rinkodaros_išlaidų_nuokrypių[[#Headers],[Spl]],Faktinių_rinkodaros_išlaidų[#Headers],0))","v":{"v":200,"d":"200.00 EUR"}},{"$f":"INDEX(Rinkodaros_išlaidų[],MATCH(INDEX(Rinkodaros_išlaidų_nuokrypių[],ROW()-ROW(Rinkodaros_išlaidų_nuokrypių[[#Headers],[Lap]]),1),INDEX(Rinkodaros_išlaidų[],,1),0),MATCH(Rinkodaros_išlaidų_nuokrypių[[#Headers],[Lap]],Rinkodaros_išlaidų[#Headers],0))-INDEX(Faktinių_rinkodaros_išlaidų[],MATCH(INDEX(Rinkodaros_išlaidų_nuokrypių[],ROW()-ROW(Rinkodaros_išlaidų_nuokrypių[[#Headers],[Lap]]),1),INDEX(Rinkodaros_išlaidų[],,1),0),MATCH(Rinkodaros_išlaidų_nuokrypių[[#Headers],[Lap]],Faktinių_rinkodaros_išlaidų[#Headers],0))","v":{"v":200,"d":"200.00 EUR"}},{"$f":"INDEX(Rinkodaros_išlaidų[],MATCH(INDEX(Rinkodaros_išlaidų_nuokrypių[],ROW()-ROW(Rinkodaros_išlaidų_nuokrypių[[#Headers],[Grd]]),1),INDEX(Rinkodaros_išlaidų[],,1),0),MATCH(Rinkodaros_išlaidų_nuokrypių[[#Headers],[Grd]],Rinkodaros_išlaidų[#Headers],0))-INDEX(Faktinių_rinkodaros_išlaidų[],MATCH(INDEX(Rinkodaros_išlaidų_nuokrypių[],ROW()-ROW(Rinkodaros_išlaidų_nuokrypių[[#Headers],[Grd]]),1),INDEX(Rinkodaros_išlaidų[],,1),0),MATCH(Rinkodaros_išlaidų_nuokrypių[[#Headers],[Grd]],Faktinių_rinkodaros_išlaidų[#Headers],0))","v":{"v":1000,"d":"1,000.00 EUR"}},{"$f":"SUM(Rinkodaros_išlaidų_nuokrypių[[#This Row],[Sau]:[Grd]])","v":{"v":1500,"d":"1,500.00 EUR"}}]
[null,"Dokumentų parengimas",{"$f":"INDEX(Rinkodaros_išlaidų[],MATCH(INDEX(Rinkodaros_išlaidų_nuokrypių[],ROW()-ROW(Rinkodaros_išlaidų_nuokrypių[[#Headers],[Sau]]),1),INDEX(Rinkodaros_išlaidų[],,1),0),MATCH(Rinkodaros_išlaidų_nuokrypių[[#Headers],[Sau]],Rinkodaros_išlaidų[#Headers],0))-INDEX(Faktinių_rinkodaros_išlaidų[],MATCH(INDEX(Rinkodaros_išlaidų_nuokrypių[],ROW()-ROW(Rinkodaros_išlaidų_nuokrypių[[#Headers],[Sau]]),1),INDEX(Rinkodaros_išlaidų[],,1),0),MATCH(Rinkodaros_išlaidų_nuokrypių[[#Headers],[Sau]],Faktinių_rinkodaros_išlaidų[#Headers],0))","v":{"v":200,"d":"200.00 EUR"}},{"$f":"INDEX(Rinkodaros_išlaidų[],MATCH(INDEX(Rinkodaros_išlaidų_nuokrypių[],ROW()-ROW(Rinkodaros_išlaidų_nuokrypių[[#Headers],[Vas]]),1),INDEX(Rinkodaros_išlaidų[],,1),0),MATCH(Rinkodaros_išlaidų_nuokrypių[[#Headers],[Vas]],Rinkodaros_išlaidų[#Headers],0))-INDEX(Faktinių_rinkodaros_išlaidų[],MATCH(INDEX(Rinkodaros_išlaidų_nuokrypių[],ROW()-ROW(Rinkodaros_išlaidų_nuokrypių[[#Headers],[Vas]]),1),INDEX(Rinkodaros_išlaidų[],,1),0),MATCH(Rinkodaros_išlaidų_nuokrypių[[#Headers],[Vas]],Faktinių_rinkodaros_išlaidų[#Headers],0))","v":{"v":0,"d":"0.00 EUR"}},{"$f":"INDEX(Rinkodaros_išlaidų[],MATCH(INDEX(Rinkodaros_išlaidų_nuokrypių[],ROW()-ROW(Rinkodaros_išlaidų_nuokrypių[[#Headers],[Kov]]),1),INDEX(Rinkodaros_išlaidų[],,1),0),MATCH(Rinkodaros_išlaidų_nuokrypių[[#Headers],[Kov]],Rinkodaros_išlaidų[#Headers],0))-INDEX(Faktinių_rinkodaros_išlaidų[],MATCH(INDEX(Rinkodaros_išlaidų_nuokrypių[],ROW()-ROW(Rinkodaros_išlaidų_nuokrypių[[#Headers],[Kov]]),1),INDEX(Rinkodaros_išlaidų[],,1),0),MATCH(Rinkodaros_išlaidų_nuokrypių[[#Headers],[Kov]],Faktinių_rinkodaros_išlaidų[#Headers],0))","v":{"v":0,"d":"0.00 EUR"}},{"$f":"INDEX(Rinkodaros_išlaidų[],MATCH(INDEX(Rinkodaros_išlaidų_nuokrypių[],ROW()-ROW(Rinkodaros_išlaidų_nuokrypių[[#Headers],[Bal]]),1),INDEX(Rinkodaros_išlaidų[],,1),0),MATCH(Rinkodaros_išlaidų_nuokrypių[[#Headers],[Bal]],Rinkodaros_išlaidų[#Headers],0))-INDEX(Faktinių_rinkodaros_išlaidų[],MATCH(INDEX(Rinkodaros_išlaidų_nuokrypių[],ROW()-ROW(Rinkodaros_išlaidų_nuokrypių[[#Headers],[Bal]]),1),INDEX(Rinkodaros_išlaidų[],,1),0),MATCH(Rinkodaros_išlaidų_nuokrypių[[#Headers],[Bal]],Faktinių_rinkodaros_išlaidų[#Headers],0))","v":{"v":-500,"d":"-500.00 EUR"}},{"$f":"INDEX(Rinkodaros_išlaidų[],MATCH(INDEX(Rinkodaros_išlaidų_nuokrypių[],ROW()-ROW(Rinkodaros_išlaidų_nuokrypių[[#Headers],[Geg]]),1),INDEX(Rinkodaros_išlaidų[],,1),0),MATCH(Rinkodaros_išlaidų_nuokrypių[[#Headers],[Geg]],Rinkodaros_išlaidų[#Headers],0))-INDEX(Faktinių_rinkodaros_išlaidų[],MATCH(INDEX(Rinkodaros_išlaidų_nuokrypių[],ROW()-ROW(Rinkodaros_išlaidų_nuokrypių[[#Headers],[Geg]]),1),INDEX(Rinkodaros_išlaidų[],,1),0),MATCH(Rinkodaros_išlaidų_nuokrypių[[#Headers],[Geg]],Faktinių_rinkodaros_išlaidų[#Headers],0))","v":{"v":0,"d":"0.00 EUR"}},{"$f":"INDEX(Rinkodaros_išlaidų[],MATCH(INDEX(Rinkodaros_išlaidų_nuokrypių[],ROW()-ROW(Rinkodaros_išlaidų_nuokrypių[[#Headers],[Bir]]),1),INDEX(Rinkodaros_išlaidų[],,1),0),MATCH(Rinkodaros_išlaidų_nuokrypių[[#Headers],[Bir]],Rinkodaros_išlaidų[#Headers],0))-INDEX(Faktinių_rinkodaros_išlaidų[],MATCH(INDEX(Rinkodaros_išlaidų_nuokrypių[],ROW()-ROW(Rinkodaros_išlaidų_nuokrypių[[#Headers],[Bir]]),1),INDEX(Rinkodaros_išlaidų[],,1),0),MATCH(Rinkodaros_išlaidų_nuokrypių[[#Headers],[Bir]],Faktinių_rinkodaros_išlaidų[#Headers],0))","v":{"v":0,"d":"0.00 EUR"}},{"$f":"INDEX(Rinkodaros_išlaidų[],MATCH(INDEX(Rinkodaros_išlaidų_nuokrypių[],ROW()-ROW(Rinkodaros_išlaidų_nuokrypių[[#Headers],[Lie]]),1),INDEX(Rinkodaros_išlaidų[],,1),0),MATCH(Rinkodaros_išlaidų_nuokrypių[[#Headers],[Lie]],Rinkodaros_išlaidų[#Headers],0))-INDEX(Faktinių_rinkodaros_išlaidų[],MATCH(INDEX(Rinkodaros_išlaidų_nuokrypių[],ROW()-ROW(Rinkodaros_išlaidų_nuokrypių[[#Headers],[Lie]]),1),INDEX(Rinkodaros_išlaidų[],,1),0),MATCH(Rinkodaros_išlaidų_nuokrypių[[#Headers],[Lie]],Faktinių_rinkodaros_išlaidų[#Headers],0))","v":{"v":5000,"d":"5,000.00 EUR"}},{"$f":"INDEX(Rinkodaros_išlaidų[],MATCH(INDEX(Rinkodaros_išlaidų_nuokrypių[],ROW()-ROW(Rinkodaros_išlaidų_nuokrypių[[#Headers],[Rgp]]),1),INDEX(Rinkodaros_išlaidų[],,1),0),MATCH(Rinkodaros_išlaidų_nuokrypių[[#Headers],[Rgp]],Rinkodaros_išlaidų[#Headers],0))-INDEX(Faktinių_rinkodaros_išlaidų[],MATCH(INDEX(Rinkodaros_išlaidų_nuokrypių[],ROW()-ROW(Rinkodaros_išlaidų_nuokrypių[[#Headers],[Rgp]]),1),INDEX(Rinkodaros_išlaidų[],,1),0),MATCH(Rinkodaros_išlaidų_nuokrypių[[#Headers],[Rgp]],Faktinių_rinkodaros_išlaidų[#Headers],0))","v":{"v":0,"d":"0.00 EUR"}},{"$f":"INDEX(Rinkodaros_išlaidų[],MATCH(INDEX(Rinkodaros_išlaidų_nuokrypių[],ROW()-ROW(Rinkodaros_išlaidų_nuokrypių[[#Headers],[Rgs]]),1),INDEX(Rinkodaros_išlaidų[],,1),0),MATCH(Rinkodaros_išlaidų_nuokrypių[[#Headers],[Rgs]],Rinkodaros_išlaidų[#Headers],0))-INDEX(Faktinių_rinkodaros_išlaidų[],MATCH(INDEX(Rinkodaros_išlaidų_nuokrypių[],ROW()-ROW(Rinkodaros_išlaidų_nuokrypių[[#Headers],[Rgs]]),1),INDEX(Rinkodaros_išlaidų[],,1),0),MATCH(Rinkodaros_išlaidų_nuokrypių[[#Headers],[Rgs]],Faktinių_rinkodaros_išlaidų[#Headers],0))","v":{"v":0,"d":"0.00 EUR"}},{"$f":"INDEX(Rinkodaros_išlaidų[],MATCH(INDEX(Rinkodaros_išlaidų_nuokrypių[],ROW()-ROW(Rinkodaros_išlaidų_nuokrypių[[#Headers],[Spl]]),1),INDEX(Rinkodaros_išlaidų[],,1),0),MATCH(Rinkodaros_išlaidų_nuokrypių[[#Headers],[Spl]],Rinkodaros_išlaidų[#Headers],0))-INDEX(Faktinių_rinkodaros_išlaidų[],MATCH(INDEX(Rinkodaros_išlaidų_nuokrypių[],ROW()-ROW(Rinkodaros_išlaidų_nuokrypių[[#Headers],[Spl]]),1),INDEX(Rinkodaros_išlaidų[],,1),0),MATCH(Rinkodaros_išlaidų_nuokrypių[[#Headers],[Spl]],Faktinių_rinkodaros_išlaidų[#Headers],0))","v":{"v":5000,"d":"5,000.00 EUR"}},{"$f":"INDEX(Rinkodaros_išlaidų[],MATCH(INDEX(Rinkodaros_išlaidų_nuokrypių[],ROW()-ROW(Rinkodaros_išlaidų_nuokrypių[[#Headers],[Lap]]),1),INDEX(Rinkodaros_išlaidų[],,1),0),MATCH(Rinkodaros_išlaidų_nuokrypių[[#Headers],[Lap]],Rinkodaros_išlaidų[#Headers],0))-INDEX(Faktinių_rinkodaros_išlaidų[],MATCH(INDEX(Rinkodaros_išlaidų_nuokrypių[],ROW()-ROW(Rinkodaros_išlaidų_nuokrypių[[#Headers],[Lap]]),1),INDEX(Rinkodaros_išlaidų[],,1),0),MATCH(Rinkodaros_išlaidų_nuokrypių[[#Headers],[Lap]],Faktinių_rinkodaros_išlaidų[#Headers],0))","v":{"v":0,"d":"0.00 EUR"}},{"$f":"INDEX(Rinkodaros_išlaidų[],MATCH(INDEX(Rinkodaros_išlaidų_nuokrypių[],ROW()-ROW(Rinkodaros_išlaidų_nuokrypių[[#Headers],[Grd]]),1),INDEX(Rinkodaros_išlaidų[],,1),0),MATCH(Rinkodaros_išlaidų_nuokrypių[[#Headers],[Grd]],Rinkodaros_išlaidų[#Headers],0))-INDEX(Faktinių_rinkodaros_išlaidų[],MATCH(INDEX(Rinkodaros_išlaidų_nuokrypių[],ROW()-ROW(Rinkodaros_išlaidų_nuokrypių[[#Headers],[Grd]]),1),INDEX(Rinkodaros_išlaidų[],,1),0),MATCH(Rinkodaros_išlaidų_nuokrypių[[#Headers],[Grd]],Faktinių_rinkodaros_išlaidų[#Headers],0))","v":{"v":0,"d":"0.00 EUR"}},{"$f":"SUM(Rinkodaros_išlaidų_nuokrypių[[#This Row],[Sau]:[Grd]])","v":{"v":9700,"d":"9,700.00 EUR"}}]
[null,"Dokumentų spausdinimas",{"$f":"INDEX(Rinkodaros_išlaidų[],MATCH(INDEX(Rinkodaros_išlaidų_nuokrypių[],ROW()-ROW(Rinkodaros_išlaidų_nuokrypių[[#Headers],[Sau]]),1),INDEX(Rinkodaros_išlaidų[],,1),0),MATCH(Rinkodaros_išlaidų_nuokrypių[[#Headers],[Sau]],Rinkodaros_išlaidų[#Headers],0))-INDEX(Faktinių_rinkodaros_išlaidų[],MATCH(INDEX(Rinkodaros_išlaidų_nuokrypių[],ROW()-ROW(Rinkodaros_išlaidų_nuokrypių[[#Headers],[Sau]]),1),INDEX(Rinkodaros_išlaidų[],,1),0),MATCH(Rinkodaros_išlaidų_nuokrypių[[#Headers],[Sau]],Faktinių_rinkodaros_išlaidų[#Headers],0))","v":{"v":100,"d":"100.00 EUR"}},{"$f":"INDEX(Rinkodaros_išlaidų[],MATCH(INDEX(Rinkodaros_išlaidų_nuokrypių[],ROW()-ROW(Rinkodaros_išlaidų_nuokrypių[[#Headers],[Vas]]),1),INDEX(Rinkodaros_išlaidų[],,1),0),MATCH(Rinkodaros_išlaidų_nuokrypių[[#Headers],[Vas]],Rinkodaros_išlaidų[#Headers],0))-INDEX(Faktinių_rinkodaros_išlaidų[],MATCH(INDEX(Rinkodaros_išlaidų_nuokrypių[],ROW()-ROW(Rinkodaros_išlaidų_nuokrypių[[#Headers],[Vas]]),1),INDEX(Rinkodaros_išlaidų[],,1),0),MATCH(Rinkodaros_išlaidų_nuokrypių[[#Headers],[Vas]],Faktinių_rinkodaros_išlaidų[#Headers],0))","v":{"v":-300,"d":"-300.00 EUR"}},{"$f":"INDEX(Rinkodaros_išlaidų[],MATCH(INDEX(Rinkodaros_išlaidų_nuokrypių[],ROW()-ROW(Rinkodaros_išlaidų_nuokrypių[[#Headers],[Kov]]),1),INDEX(Rinkodaros_išlaidų[],,1),0),MATCH(Rinkodaros_išlaidų_nuokrypių[[#Headers],[Kov]],Rinkodaros_išlaidų[#Headers],0))-INDEX(Faktinių_rinkodaros_išlaidų[],MATCH(INDEX(Rinkodaros_išlaidų_nuokrypių[],ROW()-ROW(Rinkodaros_išlaidų_nuokrypių[[#Headers],[Kov]]),1),INDEX(Rinkodaros_išlaidų[],,1),0),MATCH(Rinkodaros_išlaidų_nuokrypių[[#Headers],[Kov]],Faktinių_rinkodaros_išlaidų[#Headers],0))","v":{"v":100,"d":"100.00 EUR"}},{"$f":"INDEX(Rinkodaros_išlaidų[],MATCH(INDEX(Rinkodaros_išlaidų_nuokrypių[],ROW()-ROW(Rinkodaros_išlaidų_nuokrypių[[#Headers],[Bal]]),1),INDEX(Rinkodaros_išlaidų[],,1),0),MATCH(Rinkodaros_išlaidų_nuokrypių[[#Headers],[Bal]],Rinkodaros_išlaidų[#Headers],0))-INDEX(Faktinių_rinkodaros_išlaidų[],MATCH(INDEX(Rinkodaros_išlaidų_nuokrypių[],ROW()-ROW(Rinkodaros_išlaidų_nuokrypių[[#Headers],[Bal]]),1),INDEX(Rinkodaros_išlaidų[],,1),0),MATCH(Rinkodaros_išlaidų_nuokrypių[[#Headers],[Bal]],Faktinių_rinkodaros_išlaidų[#Headers],0))","v":{"v":100,"d":"100.00 EUR"}},{"$f":"INDEX(Rinkodaros_išlaidų[],MATCH(INDEX(Rinkodaros_išlaidų_nuokrypių[],ROW()-ROW(Rinkodaros_išlaidų_nuokrypių[[#Headers],[Geg]]),1),INDEX(Rinkodaros_išlaidų[],,1),0),MATCH(Rinkodaros_išlaidų_nuokrypių[[#Headers],[Geg]],Rinkodaros_išlaidų[#Headers],0))-INDEX(Faktinių_rinkodaros_išlaidų[],MATCH(INDEX(Rinkodaros_išlaidų_nuokrypių[],ROW()-ROW(Rinkodaros_išlaidų_nuokrypių[[#Headers],[Geg]]),1),INDEX(Rinkodaros_išlaidų[],,1),0),MATCH(Rinkodaros_išlaidų_nuokrypių[[#Headers],[Geg]],Faktinių_rinkodaros_išlaidų[#Headers],0))","v":{"v":-400,"d":"-400.00 EUR"}},{"$f":"INDEX(Rinkodaros_išlaidų[],MATCH(INDEX(Rinkodaros_išlaidų_nuokrypių[],ROW()-ROW(Rinkodaros_išlaidų_nuokrypių[[#Headers],[Bir]]),1),INDEX(Rinkodaros_išlaidų[],,1),0),MATCH(Rinkodaros_išlaidų_nuokrypių[[#Headers],[Bir]],Rinkodaros_išlaidų[#Headers],0))-INDEX(Faktinių_rinkodaros_išlaidų[],MATCH(INDEX(Rinkodaros_išlaidų_nuokrypių[],ROW()-ROW(Rinkodaros_išlaidų_nuokrypių[[#Headers],[Bir]]),1),INDEX(Rinkodaros_išlaidų[],,1),0),MATCH(Rinkodaros_išlaidų_nuokrypių[[#Headers],[Bir]],Faktinių_rinkodaros_išlaidų[#Headers],0))","v":{"v":20,"d":"20.00 EUR"}},{"$f":"INDEX(Rinkodaros_išlaidų[],MATCH(INDEX(Rinkodaros_išlaidų_nuokrypių[],ROW()-ROW(Rinkodaros_išlaidų_nuokrypių[[#Headers],[Lie]]),1),INDEX(Rinkodaros_išlaidų[],,1),0),MATCH(Rinkodaros_išlaidų_nuokrypių[[#Headers],[Lie]],Rinkodaros_išlaidų[#Headers],0))-INDEX(Faktinių_rinkodaros_išlaidų[],MATCH(INDEX(Rinkodaros_išlaidų_nuokrypių[],ROW()-ROW(Rinkodaros_išlaidų_nuokrypių[[#Headers],[Lie]]),1),INDEX(Rinkodaros_išlaidų[],,1),0),MATCH(Rinkodaros_išlaidų_nuokrypių[[#Headers],[Lie]],Faktinių_rinkodaros_išlaidų[#Headers],0))","v":{"v":200,"d":"200.00 EUR"}},{"$f":"INDEX(Rinkodaros_išlaidų[],MATCH(INDEX(Rinkodaros_išlaidų_nuokrypių[],ROW()-ROW(Rinkodaros_išlaidų_nuokrypių[[#Headers],[Rgp]]),1),INDEX(Rinkodaros_išlaidų[],,1),0),MATCH(Rinkodaros_išlaidų_nuokrypių[[#Headers],[Rgp]],Rinkodaros_išlaidų[#Headers],0))-INDEX(Faktinių_rinkodaros_išlaidų[],MATCH(INDEX(Rinkodaros_išlaidų_nuokrypių[],ROW()-ROW(Rinkodaros_išlaidų_nuokrypių[[#Headers],[Rgp]]),1),INDEX(Rinkodaros_išlaidų[],,1),0),MATCH(Rinkodaros_išlaidų_nuokrypių[[#Headers],[Rgp]],Faktinių_rinkodaros_išlaidų[#Headers],0))","v":{"v":200,"d":"200.00 EUR"}},{"$f":"INDEX(Rinkodaros_išlaidų[],MATCH(INDEX(Rinkodaros_išlaidų_nuokrypių[],ROW()-ROW(Rinkodaros_išlaidų_nuokrypių[[#Headers],[Rgs]]),1),INDEX(Rinkodaros_išlaidų[],,1),0),MATCH(Rinkodaros_išlaidų_nuokrypių[[#Headers],[Rgs]],Rinkodaros_išlaidų[#Headers],0))-INDEX(Faktinių_rinkodaros_išlaidų[],MATCH(INDEX(Rinkodaros_išlaidų_nuokrypių[],ROW()-ROW(Rinkodaros_išlaidų_nuokrypių[[#Headers],[Rgs]]),1),INDEX(Rinkodaros_išlaidų[],,1),0),MATCH(Rinkodaros_išlaidų_nuokrypių[[#Headers],[Rgs]],Faktinių_rinkodaros_išlaidų[#Headers],0))","v":{"v":200,"d":"200.00 EUR"}},{"$f":"INDEX(Rinkodaros_išlaidų[],MATCH(INDEX(Rinkodaros_išlaidų_nuokrypių[],ROW()-ROW(Rinkodaros_išlaidų_nuokrypių[[#Headers],[Spl]]),1),INDEX(Rinkodaros_išlaidų[],,1),0),MATCH(Rinkodaros_išlaidų_nuokrypių[[#Headers],[Spl]],Rinkodaros_išlaidų[#Headers],0))-INDEX(Faktinių_rinkodaros_išlaidų[],MATCH(INDEX(Rinkodaros_išlaidų_nuokrypių[],ROW()-ROW(Rinkodaros_išlaidų_nuokrypių[[#Headers],[Spl]]),1),INDEX(Rinkodaros_išlaidų[],,1),0),MATCH(Rinkodaros_išlaidų_nuokrypių[[#Headers],[Spl]],Faktinių_rinkodaros_išlaidų[#Headers],0))","v":{"v":200,"d":"200.00 EUR"}},{"$f":"INDEX(Rinkodaros_išlaidų[],MATCH(INDEX(Rinkodaros_išlaidų_nuokrypių[],ROW()-ROW(Rinkodaros_išlaidų_nuokrypių[[#Headers],[Lap]]),1),INDEX(Rinkodaros_išlaidų[],,1),0),MATCH(Rinkodaros_išlaidų_nuokrypių[[#Headers],[Lap]],Rinkodaros_išlaidų[#Headers],0))-INDEX(Faktinių_rinkodaros_išlaidų[],MATCH(INDEX(Rinkodaros_išlaidų_nuokrypių[],ROW()-ROW(Rinkodaros_išlaidų_nuokrypių[[#Headers],[Lap]]),1),INDEX(Rinkodaros_išlaidų[],,1),0),MATCH(Rinkodaros_išlaidų_nuokrypių[[#Headers],[Lap]],Faktinių_rinkodaros_išlaidų[#Headers],0))","v":{"v":200,"d":"200.00 EUR"}},{"$f":"INDEX(Rinkodaros_išlaidų[],MATCH(INDEX(Rinkodaros_išlaidų_nuokrypių[],ROW()-ROW(Rinkodaros_išlaidų_nuokrypių[[#Headers],[Grd]]),1),INDEX(Rinkodaros_išlaidų[],,1),0),MATCH(Rinkodaros_išlaidų_nuokrypių[[#Headers],[Grd]],Rinkodaros_išlaidų[#Headers],0))-INDEX(Faktinių_rinkodaros_išlaidų[],MATCH(INDEX(Rinkodaros_išlaidų_nuokrypių[],ROW()-ROW(Rinkodaros_išlaidų_nuokrypių[[#Headers],[Grd]]),1),INDEX(Rinkodaros_išlaidų[],,1),0),MATCH(Rinkodaros_išlaidų_nuokrypių[[#Headers],[Grd]],Faktinių_rinkodaros_išlaidų[#Headers],0))","v":{"v":200,"d":"200.00 EUR"}},{"$f":"SUM(Rinkodaros_išlaidų_nuokrypių[[#This Row],[Sau]:[Grd]])","v":{"v":820,"d":"820.00 EUR"}}]
[null,"Rinkodaros įvykiai",{"$f":"INDEX(Rinkodaros_išlaidų[],MATCH(INDEX(Rinkodaros_išlaidų_nuokrypių[],ROW()-ROW(Rinkodaros_išlaidų_nuokrypių[[#Headers],[Sau]]),1),INDEX(Rinkodaros_išlaidų[],,1),0),MATCH(Rinkodaros_išlaidų_nuokrypių[[#Headers],[Sau]],Rinkodaros_išlaidų[#Headers],0))-INDEX(Faktinių_rinkodaros_išlaidų[],MATCH(INDEX(Rinkodaros_išlaidų_nuokrypių[],ROW()-ROW(Rinkodaros_išlaidų_nuokrypių[[#Headers],[Sau]]),1),INDEX(Rinkodaros_išlaidų[],,1),0),MATCH(Rinkodaros_išlaidų_nuokrypių[[#Headers],[Sau]],Faktinių_rinkodaros_išlaidų[#Headers],0))","v":{"v":200,"d":"200.00 EUR"}},{"$f":"INDEX(Rinkodaros_išlaidų[],MATCH(INDEX(Rinkodaros_išlaidų_nuokrypių[],ROW()-ROW(Rinkodaros_išlaidų_nuokrypių[[#Headers],[Vas]]),1),INDEX(Rinkodaros_išlaidų[],,1),0),MATCH(Rinkodaros_išlaidų_nuokrypių[[#Headers],[Vas]],Rinkodaros_išlaidų[#Headers],0))-INDEX(Faktinių_rinkodaros_išlaidų[],MATCH(INDEX(Rinkodaros_išlaidų_nuokrypių[],ROW()-ROW(Rinkodaros_išlaidų_nuokrypių[[#Headers],[Vas]]),1),INDEX(Rinkodaros_išlaidų[],,1),0),MATCH(Rinkodaros_išlaidų_nuokrypių[[#Headers],[Vas]],Faktinių_rinkodaros_išlaidų[#Headers],0))","v":{"v":-200,"d":"-200.00 EUR"}},{"$f":"INDEX(Rinkodaros_išlaidų[],MATCH(INDEX(Rinkodaros_išlaidų_nuokrypių[],ROW()-ROW(Rinkodaros_išlaidų_nuokrypių[[#Headers],[Kov]]),1),INDEX(Rinkodaros_išlaidų[],,1),0),MATCH(Rinkodaros_išlaidų_nuokrypių[[#Headers],[Kov]],Rinkodaros_išlaidų[#Headers],0))-INDEX(Faktinių_rinkodaros_išlaidų[],MATCH(INDEX(Rinkodaros_išlaidų_nuokrypių[],ROW()-ROW(Rinkodaros_išlaidų_nuokrypių[[#Headers],[Kov]]),1),INDEX(Rinkodaros_išlaidų[],,1),0),MATCH(Rinkodaros_išlaidų_nuokrypių[[#Headers],[Kov]],Faktinių_rinkodaros_išlaidų[#Headers],0))","v":{"v":-200,"d":"-200.00 EUR"}},{"$f":"INDEX(Rinkodaros_išlaidų[],MATCH(INDEX(Rinkodaros_išlaidų_nuokrypių[],ROW()-ROW(Rinkodaros_išlaidų_nuokrypių[[#Headers],[Bal]]),1),INDEX(Rinkodaros_išlaidų[],,1),0),MATCH(Rinkodaros_išlaidų_nuokrypių[[#Headers],[Bal]],Rinkodaros_išlaidų[#Headers],0))-INDEX(Faktinių_rinkodaros_išlaidų[],MATCH(INDEX(Rinkodaros_išlaidų_nuokrypių[],ROW()-ROW(Rinkodaros_išlaidų_nuokrypių[[#Headers],[Bal]]),1),INDEX(Rinkodaros_išlaidų[],,1),0),MATCH(Rinkodaros_išlaidų_nuokrypių[[#Headers],[Bal]],Faktinių_rinkodaros_išlaidų[#Headers],0))","v":{"v":300,"d":"300.00 EUR"}},{"$f":"INDEX(Rinkodaros_išlaidų[],MATCH(INDEX(Rinkodaros_išlaidų_nuokrypių[],ROW()-ROW(Rinkodaros_išlaidų_nuokrypių[[#Headers],[Geg]]),1),INDEX(Rinkodaros_išlaidų[],,1),0),MATCH(Rinkodaros_išlaidų_nuokrypių[[#Headers],[Geg]],Rinkodaros_išlaidų[#Headers],0))-INDEX(Faktinių_rinkodaros_išlaidų[],MATCH(INDEX(Rinkodaros_išlaidų_nuokrypių[],ROW()-ROW(Rinkodaros_išlaidų_nuokrypių[[#Headers],[Geg]]),1),INDEX(Rinkodaros_išlaidų[],,1),0),MATCH(Rinkodaros_išlaidų_nuokrypių[[#Headers],[Geg]],Faktinių_rinkodaros_išlaidų[#Headers],0))","v":{"v":500,"d":"500.00 EUR"}},{"$f":"INDEX(Rinkodaros_išlaidų[],MATCH(INDEX(Rinkodaros_išlaidų_nuokrypių[],ROW()-ROW(Rinkodaros_išlaidų_nuokrypių[[#Headers],[Bir]]),1),INDEX(Rinkodaros_išlaidų[],,1),0),MATCH(Rinkodaros_išlaidų_nuokrypių[[#Headers],[Bir]],Rinkodaros_išlaidų[#Headers],0))-INDEX(Faktinių_rinkodaros_išlaidų[],MATCH(INDEX(Rinkodaros_išlaidų_nuokrypių[],ROW()-ROW(Rinkodaros_išlaidų_nuokrypių[[#Headers],[Bir]]),1),INDEX(Rinkodaros_išlaidų[],,1),0),MATCH(Rinkodaros_išlaidų_nuokrypių[[#Headers],[Bir]],Faktinių_rinkodaros_išlaidų[#Headers],0))","v":{"v":-300,"d":"-300.00 EUR"}},{"$f":"INDEX(Rinkodaros_išlaidų[],MATCH(INDEX(Rinkodaros_išlaidų_nuokrypių[],ROW()-ROW(Rinkodaros_išlaidų_nuokrypių[[#Headers],[Lie]]),1),INDEX(Rinkodaros_išlaidų[],,1),0),MATCH(Rinkodaros_išlaidų_nuokrypių[[#Headers],[Lie]],Rinkodaros_išlaidų[#Headers],0))-INDEX(Faktinių_rinkodaros_išlaidų[],MATCH(INDEX(Rinkodaros_išlaidų_nuokrypių[],ROW()-ROW(Rinkodaros_išlaidų_nuokrypių[[#Headers],[Lie]]),1),INDEX(Rinkodaros_išlaidų[],,1),0),MATCH(Rinkodaros_išlaidų_nuokrypių[[#Headers],[Lie]],Faktinių_rinkodaros_išlaidų[#Headers],0))","v":{"v":2000,"d":"2,000.00 EUR"}},{"$f":"INDEX(Rinkodaros_išlaidų[],MATCH(INDEX(Rinkodaros_išlaidų_nuokrypių[],ROW()-ROW(Rinkodaros_išlaidų_nuokrypių[[#Headers],[Rgp]]),1),INDEX(Rinkodaros_išlaidų[],,1),0),MATCH(Rinkodaros_išlaidų_nuokrypių[[#Headers],[Rgp]],Rinkodaros_išlaidų[#Headers],0))-INDEX(Faktinių_rinkodaros_išlaidų[],MATCH(INDEX(Rinkodaros_išlaidų_nuokrypių[],ROW()-ROW(Rinkodaros_išlaidų_nuokrypių[[#Headers],[Rgp]]),1),INDEX(Rinkodaros_išlaidų[],,1),0),MATCH(Rinkodaros_išlaidų_nuokrypių[[#Headers],[Rgp]],Faktinių_rinkodaros_išlaidų[#Headers],0))","v":{"v":5000,"d":"5,000.00 EUR"}},{"$f":"INDEX(Rinkodaros_išlaidų[],MATCH(INDEX(Rinkodaros_išlaidų_nuokrypių[],ROW()-ROW(Rinkodaros_išlaidų_nuokrypių[[#Headers],[Rgs]]),1),INDEX(Rinkodaros_išlaidų[],,1),0),MATCH(Rinkodaros_išlaidų_nuokrypių[[#Headers],[Rgs]],Rinkodaros_išlaidų[#Headers],0))-INDEX(Faktinių_rinkodaros_išlaidų[],MATCH(INDEX(Rinkodaros_išlaidų_nuokrypių[],ROW()-ROW(Rinkodaros_išlaidų_nuokrypių[[#Headers],[Rgs]]),1),INDEX(Rinkodaros_išlaidų[],,1),0),MATCH(Rinkodaros_išlaidų_nuokrypių[[#Headers],[Rgs]],Faktinių_rinkodaros_išlaidų[#Headers],0))","v":{"v":2000,"d":"2,000.00 EUR"}},{"$f":"INDEX(Rinkodaros_išlaidų[],MATCH(INDEX(Rinkodaros_išlaidų_nuokrypių[],ROW()-ROW(Rinkodaros_išlaidų_nuokrypių[[#Headers],[Spl]]),1),INDEX(Rinkodaros_išlaidų[],,1),0),MATCH(Rinkodaros_išlaidų_nuokrypių[[#Headers],[Spl]],Rinkodaros_išlaidų[#Headers],0))-INDEX(Faktinių_rinkodaros_išlaidų[],MATCH(INDEX(Rinkodaros_išlaidų_nuokrypių[],ROW()-ROW(Rinkodaros_išlaidų_nuokrypių[[#Headers],[Spl]]),1),INDEX(Rinkodaros_išlaidų[],,1),0),MATCH(Rinkodaros_išlaidų_nuokrypių[[#Headers],[Spl]],Faktinių_rinkodaros_išlaidų[#Headers],0))","v":{"v":2000,"d":"2,000.00 EUR"}},{"$f":"INDEX(Rinkodaros_išlaidų[],MATCH(INDEX(Rinkodaros_išlaidų_nuokrypių[],ROW()-ROW(Rinkodaros_išlaidų_nuokrypių[[#Headers],[Lap]]),1),INDEX(Rinkodaros_išlaidų[],,1),0),MATCH(Rinkodaros_išlaidų_nuokrypių[[#Headers],[Lap]],Rinkodaros_išlaidų[#Headers],0))-INDEX(Faktinių_rinkodaros_išlaidų[],MATCH(INDEX(Rinkodaros_išlaidų_nuokrypių[],ROW()-ROW(Rinkodaros_išlaidų_nuokrypių[[#Headers],[Lap]]),1),INDEX(Rinkodaros_išlaidų[],,1),0),MATCH(Rinkodaros_išlaidų_nuokrypių[[#Headers],[Lap]],Faktinių_rinkodaros_išlaidų[#Headers],0))","v":{"v":2000,"d":"2,000.00 EUR"}},{"$f":"INDEX(Rinkodaros_išlaidų[],MATCH(INDEX(Rinkodaros_išlaidų_nuokrypių[],ROW()-ROW(Rinkodaros_išlaidų_nuokrypių[[#Headers],[Grd]]),1),INDEX(Rinkodaros_išlaidų[],,1),0),MATCH(Rinkodaros_išlaidų_nuokrypių[[#Headers],[Grd]],Rinkodaros_išlaidų[#Headers],0))-INDEX(Faktinių_rinkodaros_išlaidų[],MATCH(INDEX(Rinkodaros_išlaidų_nuokrypių[],ROW()-ROW(Rinkodaros_išlaidų_nuokrypių[[#Headers],[Grd]]),1),INDEX(Rinkodaros_išlaidų[],,1),0),MATCH(Rinkodaros_išlaidų_nuokrypių[[#Headers],[Grd]],Faktinių_rinkodaros_išlaidų[#Headers],0))","v":{"v":5000,"d":"5,000.00 EUR"}},{"$f":"SUM(Rinkodaros_išlaidų_nuokrypių[[#This Row],[Sau]:[Grd]])","v":{"v":18300,"d":"18,300.00 EUR"}}]
[null,"Įvairios išlaidos",{"$f":"INDEX(Rinkodaros_išlaidų[],MATCH(INDEX(Rinkodaros_išlaidų_nuokrypių[],ROW()-ROW(Rinkodaros_išlaidų_nuokrypių[[#Headers],[Sau]]),1),INDEX(Rinkodaros_išlaidų[],,1),0),MATCH(Rinkodaros_išlaidų_nuokrypių[[#Headers],[Sau]],Rinkodaros_išlaidų[#Headers],0))-INDEX(Faktinių_rinkodaros_išlaidų[],MATCH(INDEX(Rinkodaros_išlaidų_nuokrypių[],ROW()-ROW(Rinkodaros_išlaidų_nuokrypių[[#Headers],[Sau]]),1),INDEX(Rinkodaros_išlaidų[],,1),0),MATCH(Rinkodaros_išlaidų_nuokrypių[[#Headers],[Sau]],Faktinių_rinkodaros_išlaidų[#Headers],0))","v":{"v":55,"d":"55.00 EUR"}},{"$f":"INDEX(Rinkodaros_išlaidų[],MATCH(INDEX(Rinkodaros_išlaidų_nuokrypių[],ROW()-ROW(Rinkodaros_išlaidų_nuokrypių[[#Headers],[Vas]]),1),INDEX(Rinkodaros_išlaidų[],,1),0),MATCH(Rinkodaros_išlaidų_nuokrypių[[#Headers],[Vas]],Rinkodaros_išlaidų[#Headers],0))-INDEX(Faktinių_rinkodaros_išlaidų[],MATCH(INDEX(Rinkodaros_išlaidų_nuokrypių[],ROW()-ROW(Rinkodaros_išlaidų_nuokrypių[[#Headers],[Vas]]),1),INDEX(Rinkodaros_išlaidų[],,1),0),MATCH(Rinkodaros_išlaidų_nuokrypių[[#Headers],[Vas]],Faktinių_rinkodaros_išlaidų[#Headers],0))","v":{"v":44,"d":"44.00 EUR"}},{"$f":"INDEX(Rinkodaros_išlaidų[],MATCH(INDEX(Rinkodaros_išlaidų_nuokrypių[],ROW()-ROW(Rinkodaros_išlaidų_nuokrypių[[#Headers],[Kov]]),1),INDEX(Rinkodaros_išlaidų[],,1),0),MATCH(Rinkodaros_išlaidų_nuokrypių[[#Headers],[Kov]],Rinkodaros_išlaidų[#Headers],0))-INDEX(Faktinių_rinkodaros_išlaidų[],MATCH(INDEX(Rinkodaros_išlaidų_nuokrypių[],ROW()-ROW(Rinkodaros_išlaidų_nuokrypių[[#Headers],[Kov]]),1),INDEX(Rinkodaros_išlaidų[],,1),0),MATCH(Rinkodaros_išlaidų_nuokrypių[[#Headers],[Kov]],Faktinių_rinkodaros_išlaidų[#Headers],0))","v":{"v":77,"d":"77.00 EUR"}},{"$f":"INDEX(Rinkodaros_išlaidų[],MATCH(INDEX(Rinkodaros_išlaidų_nuokrypių[],ROW()-ROW(Rinkodaros_išlaidų_nuokrypių[[#Headers],[Bal]]),1),INDEX(Rinkodaros_išlaidų[],,1),0),MATCH(Rinkodaros_išlaidų_nuokrypių[[#Headers],[Bal]],Rinkodaros_išlaidų[#Headers],0))-INDEX(Faktinių_rinkodaros_išlaidų[],MATCH(INDEX(Rinkodaros_išlaidų_nuokrypių[],ROW()-ROW(Rinkodaros_išlaidų_nuokrypių[[#Headers],[Bal]]),1),INDEX(Rinkodaros_išlaidų[],,1),0),MATCH(Rinkodaros_išlaidų_nuokrypių[[#Headers],[Bal]],Faktinių_rinkodaros_išlaidų[#Headers],0))","v":{"v":-23,"d":"-23.00 EUR"}},{"$f":"INDEX(Rinkodaros_išlaidų[],MATCH(INDEX(Rinkodaros_išlaidų_nuokrypių[],ROW()-ROW(Rinkodaros_išlaidų_nuokrypių[[#Headers],[Geg]]),1),INDEX(Rinkodaros_išlaidų[],,1),0),MATCH(Rinkodaros_išlaidų_nuokrypių[[#Headers],[Geg]],Rinkodaros_išlaidų[#Headers],0))-INDEX(Faktinių_rinkodaros_išlaidų[],MATCH(INDEX(Rinkodaros_išlaidų_nuokrypių[],ROW()-ROW(Rinkodaros_išlaidų_nuokrypių[[#Headers],[Geg]]),1),INDEX(Rinkodaros_išlaidų[],,1),0),MATCH(Rinkodaros_išlaidų_nuokrypių[[#Headers],[Geg]],Faktinių_rinkodaros_išlaidų[#Headers],0))","v":{"v":13,"d":"13.00 EUR"}},{"$f":"INDEX(Rinkodaros_išlaidų[],MATCH(INDEX(Rinkodaros_išlaidų_nuokrypių[],ROW()-ROW(Rinkodaros_išlaidų_nuokrypių[[#Headers],[Bir]]),1),INDEX(Rinkodaros_išlaidų[],,1),0),MATCH(Rinkodaros_išlaidų_nuokrypių[[#Headers],[Bir]],Rinkodaros_išlaidų[#Headers],0))-INDEX(Faktinių_rinkodaros_išlaidų[],MATCH(INDEX(Rinkodaros_išlaidų_nuokrypių[],ROW()-ROW(Rinkodaros_išlaidų_nuokrypių[[#Headers],[Bir]]),1),INDEX(Rinkodaros_išlaidų[],,1),0),MATCH(Rinkodaros_išlaidų_nuokrypių[[#Headers],[Bir]],Faktinių_rinkodaros_išlaidų[#Headers],0))","v":{"v":-45,"d":"-45.00 EUR"}},{"$f":"INDEX(Rinkodaros_išlaidų[],MATCH(INDEX(Rinkodaros_išlaidų_nuokrypių[],ROW()-ROW(Rinkodaros_išlaidų_nuokrypių[[#Headers],[Lie]]),1),INDEX(Rinkodaros_išlaidų[],,1),0),MATCH(Rinkodaros_išlaidų_nuokrypių[[#Headers],[Lie]],Rinkodaros_išlaidų[#Headers],0))-INDEX(Faktinių_rinkodaros_išlaidų[],MATCH(INDEX(Rinkodaros_išlaidų_nuokrypių[],ROW()-ROW(Rinkodaros_išlaidų_nuokrypių[[#Headers],[Lie]]),1),INDEX(Rinkodaros_išlaidų[],,1),0),MATCH(Rinkodaros_išlaidų_nuokrypių[[#Headers],[Lie]],Faktinių_rinkodaros_išlaidų[#Headers],0))","v":{"v":200,"d":"200.00 EUR"}},{"$f":"INDEX(Rinkodaros_išlaidų[],MATCH(INDEX(Rinkodaros_išlaidų_nuokrypių[],ROW()-ROW(Rinkodaros_išlaidų_nuokrypių[[#Headers],[Rgp]]),1),INDEX(Rinkodaros_išlaidų[],,1),0),MATCH(Rinkodaros_išlaidų_nuokrypių[[#Headers],[Rgp]],Rinkodaros_išlaidų[#Headers],0))-INDEX(Faktinių_rinkodaros_išlaidų[],MATCH(INDEX(Rinkodaros_išlaidų_nuokrypių[],ROW()-ROW(Rinkodaros_išlaidų_nuokrypių[[#Headers],[Rgp]]),1),INDEX(Rinkodaros_išlaidų[],,1),0),MATCH(Rinkodaros_išlaidų_nuokrypių[[#Headers],[Rgp]],Faktinių_rinkodaros_išlaidų[#Headers],0))","v":{"v":200,"d":"200.00 EUR"}},{"$f":"INDEX(Rinkodaros_išlaidų[],MATCH(INDEX(Rinkodaros_išlaidų_nuokrypių[],ROW()-ROW(Rinkodaros_išlaidų_nuokrypių[[#Headers],[Rgs]]),1),INDEX(Rinkodaros_išlaidų[],,1),0),MATCH(Rinkodaros_išlaidų_nuokrypių[[#Headers],[Rgs]],Rinkodaros_išlaidų[#Headers],0))-INDEX(Faktinių_rinkodaros_išlaidų[],MATCH(INDEX(Rinkodaros_išlaidų_nuokrypių[],ROW()-ROW(Rinkodaros_išlaidų_nuokrypių[[#Headers],[Rgs]]),1),INDEX(Rinkodaros_išlaidų[],,1),0),MATCH(Rinkodaros_išlaidų_nuokrypių[[#Headers],[Rgs]],Faktinių_rinkodaros_išlaidų[#Headers],0))","v":{"v":200,"d":"200.00 EUR"}},{"$f":"INDEX(Rinkodaros_išlaidų[],MATCH(INDEX(Rinkodaros_išlaidų_nuokrypių[],ROW()-ROW(Rinkodaros_išlaidų_nuokrypių[[#Headers],[Spl]]),1),INDEX(Rinkodaros_išlaidų[],,1),0),MATCH(Rinkodaros_išlaidų_nuokrypių[[#Headers],[Spl]],Rinkodaros_išlaidų[#Headers],0))-INDEX(Faktinių_rinkodaros_išlaidų[],MATCH(INDEX(Rinkodaros_išlaidų_nuokrypių[],ROW()-ROW(Rinkodaros_išlaidų_nuokrypių[[#Headers],[Spl]]),1),INDEX(Rinkodaros_išlaidų[],,1),0),MATCH(Rinkodaros_išlaidų_nuokrypių[[#Headers],[Spl]],Faktinių_rinkodaros_išlaidų[#Headers],0))","v":{"v":200,"d":"200.00 EUR"}},{"$f":"INDEX(Rinkodaros_išlaidų[],MATCH(INDEX(Rinkodaros_išlaidų_nuokrypių[],ROW()-ROW(Rinkodaros_išlaidų_nuokrypių[[#Headers],[Lap]]),1),INDEX(Rinkodaros_išlaidų[],,1),0),MATCH(Rinkodaros_išlaidų_nuokrypių[[#Headers],[Lap]],Rinkodaros_išlaidų[#Headers],0))-INDEX(Faktinių_rinkodaros_išlaidų[],MATCH(INDEX(Rinkodaros_išlaidų_nuokrypių[],ROW()-ROW(Rinkodaros_išlaidų_nuokrypių[[#Headers],[Lap]]),1),INDEX(Rinkodaros_išlaidų[],,1),0),MATCH(Rinkodaros_išlaidų_nuokrypių[[#Headers],[Lap]],Faktinių_rinkodaros_išlaidų[#Headers],0))","v":{"v":200,"d":"200.00 EUR"}},{"$f":"INDEX(Rinkodaros_išlaidų[],MATCH(INDEX(Rinkodaros_išlaidų_nuokrypių[],ROW()-ROW(Rinkodaros_išlaidų_nuokrypių[[#Headers],[Grd]]),1),INDEX(Rinkodaros_išlaidų[],,1),0),MATCH(Rinkodaros_išlaidų_nuokrypių[[#Headers],[Grd]],Rinkodaros_išlaidų[#Headers],0))-INDEX(Faktinių_rinkodaros_išlaidų[],MATCH(INDEX(Rinkodaros_išlaidų_nuokrypių[],ROW()-ROW(Rinkodaros_išlaidų_nuokrypių[[#Headers],[Grd]]),1),INDEX(Rinkodaros_išlaidų[],,1),0),MATCH(Rinkodaros_išlaidų_nuokrypių[[#Headers],[Grd]],Faktinių_rinkodaros_išlaidų[#Headers],0))","v":{"v":200,"d":"200.00 EUR"}},{"$f":"SUM(Rinkodaros_išlaidų_nuokrypių[[#This Row],[Sau]:[Grd]])","v":{"v":1321,"d":"1,321.00 EUR"}}]
[null,"Tarpinė suma",{"$f":"SUBTOTAL(109,Rinkodaros_išlaidų_nuokrypių[Sau])","v":{"v":555,"d":"555.00 EUR"}},{"$f":"SUBTOTAL(109,Rinkodaros_išlaidų_nuokrypių[Vas])","v":{"v":-456,"d":"-456.00 EUR"}},{"$f":"SUBTOTAL(109,Rinkodaros_išlaidų_nuokrypių[Kov])","v":{"v":-23,"d":"-23.00 EUR"}},{"$f":"SUBTOTAL(109,Rinkodaros_išlaidų_nuokrypių[Bal])","v":{"v":-123,"d":"-123.00 EUR"}},{"$f":"SUBTOTAL(109,Rinkodaros_išlaidų_nuokrypių[Geg])","v":{"v":113,"d":"113.00 EUR"}},{"$f":"SUBTOTAL(109,Rinkodaros_išlaidų_nuokrypių[Bir])","v":{"v":-825,"d":"-825.00 EUR"}},{"$f":"SUBTOTAL(109,Rinkodaros_išlaidų_nuokrypių[Lie])","v":{"v":8100,"d":"8,100.00 EUR"}},{"$f":"SUBTOTAL(109,Rinkodaros_išlaidų_nuokrypių[Rgp])","v":{"v":6100,"d":"6,100.00 EUR"}},{"$f":"SUBTOTAL(109,Rinkodaros_išlaidų_nuokrypių[Rgs])","v":{"v":3100,"d":"3,100.00 EUR"}},{"$f":"SUBTOTAL(109,Rinkodaros_išlaidų_nuokrypių[Spl])","v":{"v":8100,"d":"8,100.00 EUR"}},{"$f":"SUBTOTAL(109,Rinkodaros_išlaidų_nuokrypių[Lap])","v":{"v":3100,"d":"3,100.00 EUR"}},{"$f":"SUBTOTAL(109,Rinkodaros_išlaidų_nuokrypių[Grd])","v":{"v":6900,"d":"6,900.00 EUR"}},{"$f":"SUBTOTAL(109,Rinkodaros_išlaidų_nuokrypių[METAI])","v":{"v":34641,"d":"34,641.00 EUR"}}]
[]
["Mokymo arba kelionių išlaidų nuokrypis automatiškai apskaičiuojamas mokymo ir kelionių išlaidų nuokrypių lentelėje, pradedant langeliu dešinėje. Kitas nurodymas yra A35 langelyje.","Mokymas / kelionės","Sau","Vas","Kov","Bal","Geg","Bir","Lie","Rgp","Rgs","Spl","Lap","Grd","METAI"]
[null,"Mokymo klasės",{"$f":"INDEX(Kelionių_išlaidų[],MATCH(INDEX(Kelionių_išlaidų_nuokrypių[],ROW()-ROW(Kelionių_išlaidų_nuokrypių[[#Headers],[Sau]]),1),INDEX(Kelionių_išlaidų[],,1),0),MATCH(Kelionių_išlaidų_nuokrypių[[#Headers],[Sau]],Kelionių_išlaidų[#Headers],0))-INDEX(Faktinių_mokymo_ir_kelionių_išlaidų[],MATCH(INDEX(Kelionių_išlaidų_nuokrypių[],ROW()-ROW(Kelionių_išlaidų_nuokrypių[[#Headers],[Sau]]),1),INDEX(Kelionių_išlaidų[],,1),0),MATCH(Kelionių_išlaidų_nuokrypių[[#Headers],[Sau]],Faktinių_mokymo_ir_kelionių_išlaidų[#Headers],0))","v":{"v":400,"d":"400.00 EUR"}},{"$f":"INDEX(Kelionių_išlaidų[],MATCH(INDEX(Kelionių_išlaidų_nuokrypių[],ROW()-ROW(Kelionių_išlaidų_nuokrypių[[#Headers],[Vas]]),1),INDEX(Kelionių_išlaidų[],,1),0),MATCH(Kelionių_išlaidų_nuokrypių[[#Headers],[Vas]],Kelionių_išlaidų[#Headers],0))-INDEX(Faktinių_mokymo_ir_kelionių_išlaidų[],MATCH(INDEX(Kelionių_išlaidų_nuokrypių[],ROW()-ROW(Kelionių_išlaidų_nuokrypių[[#Headers],[Vas]]),1),INDEX(Kelionių_išlaidų[],,1),0),MATCH(Kelionių_išlaidų_nuokrypių[[#Headers],[Vas]],Faktinių_mokymo_ir_kelionių_išlaidų[#Headers],0))","v":{"v":-400,"d":"-400.00 EUR"}},{"$f":"INDEX(Kelionių_išlaidų[],MATCH(INDEX(Kelionių_išlaidų_nuokrypių[],ROW()-ROW(Kelionių_išlaidų_nuokrypių[[#Headers],[Kov]]),1),INDEX(Kelionių_išlaidų[],,1),0),MATCH(Kelionių_išlaidų_nuokrypių[[#Headers],[Kov]],Kelionių_išlaidų[#Headers],0))-INDEX(Faktinių_mokymo_ir_kelionių_išlaidų[],MATCH(INDEX(Kelionių_išlaidų_nuokrypių[],ROW()-ROW(Kelionių_išlaidų_nuokrypių[[#Headers],[Kov]]),1),INDEX(Kelionių_išlaidų[],,1),0),MATCH(Kelionių_išlaidų_nuokrypių[[#Headers],[Kov]],Faktinių_mokymo_ir_kelionių_išlaidų[#Headers],0))","v":{"v":600,"d":"600.00 EUR"}},{"$f":"INDEX(Kelionių_išlaidų[],MATCH(INDEX(Kelionių_išlaidų_nuokrypių[],ROW()-ROW(Kelionių_išlaidų_nuokrypių[[#Headers],[Bal]]),1),INDEX(Kelionių_išlaidų[],,1),0),MATCH(Kelionių_išlaidų_nuokrypių[[#Headers],[Bal]],Kelionių_išlaidų[#Headers],0))-INDEX(Faktinių_mokymo_ir_kelionių_išlaidų[],MATCH(INDEX(Kelionių_išlaidų_nuokrypių[],ROW()-ROW(Kelionių_išlaidų_nuokrypių[[#Headers],[Bal]]),1),INDEX(Kelionių_išlaidų[],,1),0),MATCH(Kelionių_išlaidų_nuokrypių[[#Headers],[Bal]],Faktinių_mokymo_ir_kelionių_išlaidų[#Headers],0))","v":{"v":400,"d":"400.00 EUR"}},{"$f":"INDEX(Kelionių_išlaidų[],MATCH(INDEX(Kelionių_išlaidų_nuokrypių[],ROW()-ROW(Kelionių_išlaidų_nuokrypių[[#Headers],[Geg]]),1),INDEX(Kelionių_išlaidų[],,1),0),MATCH(Kelionių_išlaidų_nuokrypių[[#Headers],[Geg]],Kelionių_išlaidų[#Headers],0))-INDEX(Faktinių_mokymo_ir_kelionių_išlaidų[],MATCH(INDEX(Kelionių_išlaidų_nuokrypių[],ROW()-ROW(Kelionių_išlaidų_nuokrypių[[#Headers],[Geg]]),1),INDEX(Kelionių_išlaidų[],,1),0),MATCH(Kelionių_išlaidų_nuokrypių[[#Headers],[Geg]],Faktinių_mokymo_ir_kelionių_išlaidų[#Headers],0))","v":{"v":800,"d":"800.00 EUR"}},{"$f":"INDEX(Kelionių_išlaidų[],MATCH(INDEX(Kelionių_išlaidų_nuokrypių[],ROW()-ROW(Kelionių_išlaidų_nuokrypių[[#Headers],[Bir]]),1),INDEX(Kelionių_išlaidų[],,1),0),MATCH(Kelionių_išlaidų_nuokrypių[[#Headers],[Bir]],Kelionių_išlaidų[#Headers],0))-INDEX(Faktinių_mokymo_ir_kelionių_išlaidų[],MATCH(INDEX(Kelionių_išlaidų_nuokrypių[],ROW()-ROW(Kelionių_išlaidų_nuokrypių[[#Headers],[Bir]]),1),INDEX(Kelionių_išlaidų[],,1),0),MATCH(Kelionių_išlaidų_nuokrypių[[#Headers],[Bir]],Faktinių_mokymo_ir_kelionių_išlaidų[#Headers],0))","v":{"v":-800,"d":"-800.00 EUR"}},{"$f":"INDEX(Kelionių_išlaidų[],MATCH(INDEX(Kelionių_išlaidų_nuokrypių[],ROW()-ROW(Kelionių_išlaidų_nuokrypių[[#Headers],[Lie]]),1),INDEX(Kelionių_išlaidų[],,1),0),MATCH(Kelionių_išlaidų_nuokrypių[[#Headers],[Lie]],Kelionių_išlaidų[#Headers],0))-INDEX(Faktinių_mokymo_ir_kelionių_išlaidų[],MATCH(INDEX(Kelionių_išlaidų_nuokrypių[],ROW()-ROW(Kelionių_išlaidų_nuokrypių[[#Headers],[Lie]]),1),INDEX(Kelionių_išlaidų[],,1),0),MATCH(Kelionių_išlaidų_nuokrypių[[#Headers],[Lie]],Faktinių_mokymo_ir_kelionių_išlaidų[#Headers],0))","v":{"v":2000,"d":"2,000.00 EUR"}},{"$f":"INDEX(Kelionių_išlaidų[],MATCH(INDEX(Kelionių_išlaidų_nuokrypių[],ROW()-ROW(Kelionių_išlaidų_nuokrypių[[#Headers],[Rgp]]),1),INDEX(Kelionių_išlaidų[],,1),0),MATCH(Kelionių_išlaidų_nuokrypių[[#Headers],[Rgp]],Kelionių_išlaidų[#Headers],0))-INDEX(Faktinių_mokymo_ir_kelionių_išlaidų[],MATCH(INDEX(Kelionių_išlaidų_nuokrypių[],ROW()-ROW(Kelionių_išlaidų_nuokrypių[[#Headers],[Rgp]]),1),INDEX(Kelionių_išlaidų[],,1),0),MATCH(Kelionių_išlaidų_nuokrypių[[#Headers],[Rgp]],Faktinių_mokymo_ir_kelionių_išlaidų[#Headers],0))","v":{"v":2000,"d":"2,000.00 EUR"}},{"$f":"INDEX(Kelionių_išlaidų[],MATCH(INDEX(Kelionių_išlaidų_nuokrypių[],ROW()-ROW(Kelionių_išlaidų_nuokrypių[[#Headers],[Rgs]]),1),INDEX(Kelionių_išlaidų[],,1),0),MATCH(Kelionių_išlaidų_nuokrypių[[#Headers],[Rgs]],Kelionių_išlaidų[#Headers],0))-INDEX(Faktinių_mokymo_ir_kelionių_išlaidų[],MATCH(INDEX(Kelionių_išlaidų_nuokrypių[],ROW()-ROW(Kelionių_išlaidų_nuokrypių[[#Headers],[Rgs]]),1),INDEX(Kelionių_išlaidų[],,1),0),MATCH(Kelionių_išlaidų_nuokrypių[[#Headers],[Rgs]],Faktinių_mokymo_ir_kelionių_išlaidų[#Headers],0))","v":{"v":2000,"d":"2,000.00 EUR"}},{"$f":"INDEX(Kelionių_išlaidų[],MATCH(INDEX(Kelionių_išlaidų_nuokrypių[],ROW()-ROW(Kelionių_išlaidų_nuokrypių[[#Headers],[Spl]]),1),INDEX(Kelionių_išlaidų[],,1),0),MATCH(Kelionių_išlaidų_nuokrypių[[#Headers],[Spl]],Kelionių_išlaidų[#Headers],0))-INDEX(Faktinių_mokymo_ir_kelionių_išlaidų[],MATCH(INDEX(Kelionių_išlaidų_nuokrypių[],ROW()-ROW(Kelionių_išlaidų_nuokrypių[[#Headers],[Spl]]),1),INDEX(Kelionių_išlaidų[],,1),0),MATCH(Kelionių_išlaidų_nuokrypių[[#Headers],[Spl]],Faktinių_mokymo_ir_kelionių_išlaidų[#Headers],0))","v":{"v":2000,"d":"2,000.00 EUR"}},{"$f":"INDEX(Kelionių_išlaidų[],MATCH(INDEX(Kelionių_išlaidų_nuokrypių[],ROW()-ROW(Kelionių_išlaidų_nuokrypių[[#Headers],[Lap]]),1),INDEX(Kelionių_išlaidų[],,1),0),MATCH(Kelionių_išlaidų_nuokrypių[[#Headers],[Lap]],Kelionių_išlaidų[#Headers],0))-INDEX(Faktinių_mokymo_ir_kelionių_išlaidų[],MATCH(INDEX(Kelionių_išlaidų_nuokrypių[],ROW()-ROW(Kelionių_išlaidų_nuokrypių[[#Headers],[Lap]]),1),INDEX(Kelionių_išlaidų[],,1),0),MATCH(Kelionių_išlaidų_nuokrypių[[#Headers],[Lap]],Faktinių_mokymo_ir_kelionių_išlaidų[#Headers],0))","v":{"v":2000,"d":"2,000.00 EUR"}},{"$f":"INDEX(Kelionių_išlaidų[],MATCH(INDEX(Kelionių_išlaidų_nuokrypių[],ROW()-ROW(Kelionių_išlaidų_nuokrypių[[#Headers],[Grd]]),1),INDEX(Kelionių_išlaidų[],,1),0),MATCH(Kelionių_išlaidų_nuokrypių[[#Headers],[Grd]],Kelionių_išlaidų[#Headers],0))-INDEX(Faktinių_mokymo_ir_kelionių_išlaidų[],MATCH(INDEX(Kelionių_išlaidų_nuokrypių[],ROW()-ROW(Kelionių_išlaidų_nuokrypių[[#Headers],[Grd]]),1),INDEX(Kelionių_išlaidų[],,1),0),MATCH(Kelionių_išlaidų_nuokrypių[[#Headers],[Grd]],Faktinių_mokymo_ir_kelionių_išlaidų[#Headers],0))","v":{"v":2000,"d":"2,000.00 EUR"}},{"$f":"SUM(Kelionių_išlaidų_nuokrypių[[#This Row],[Sau]:[Grd]])","v":{"v":13000,"d":"13,000.00 EUR"}}]
[null,"Su mokymu susijusios kelionių išlaidos",{"$f":"INDEX(Kelionių_išlaidų[],MATCH(INDEX(Kelionių_išlaidų_nuokrypių[],ROW()-ROW(Kelionių_išlaidų_nuokrypių[[#Headers],[Sau]]),1),INDEX(Kelionių_išlaidų[],,1),0),MATCH(Kelionių_išlaidų_nuokrypių[[#Headers],[Sau]],Kelionių_išlaidų[#Headers],0))-INDEX(Faktinių_mokymo_ir_kelionių_išlaidų[],MATCH(INDEX(Kelionių_išlaidų_nuokrypių[],ROW()-ROW(Kelionių_išlaidų_nuokrypių[[#Headers],[Sau]]),1),INDEX(Kelionių_išlaidų[],,1),0),MATCH(Kelionių_išlaidų_nuokrypių[[#Headers],[Sau]],Faktinių_mokymo_ir_kelionių_išlaidų[#Headers],0))","v":{"v":800,"d":"800.00 EUR"}},{"$f":"INDEX(Kelionių_išlaidų[],MATCH(INDEX(Kelionių_išlaidų_nuokrypių[],ROW()-ROW(Kelionių_išlaidų_nuokrypių[[#Headers],[Vas]]),1),INDEX(Kelionių_išlaidų[],,1),0),MATCH(Kelionių_išlaidų_nuokrypių[[#Headers],[Vas]],Kelionių_išlaidų[#Headers],0))-INDEX(Faktinių_mokymo_ir_kelionių_išlaidų[],MATCH(INDEX(Kelionių_išlaidų_nuokrypių[],ROW()-ROW(Kelionių_išlaidų_nuokrypių[[#Headers],[Vas]]),1),INDEX(Kelionių_išlaidų[],,1),0),MATCH(Kelionių_išlaidų_nuokrypių[[#Headers],[Vas]],Faktinių_mokymo_ir_kelionių_išlaidų[#Headers],0))","v":{"v":-200,"d":"-200.00 EUR"}},{"$f":"INDEX(Kelionių_išlaidų[],MATCH(INDEX(Kelionių_išlaidų_nuokrypių[],ROW()-ROW(Kelionių_išlaidų_nuokrypių[[#Headers],[Kov]]),1),INDEX(Kelionių_išlaidų[],,1),0),MATCH(Kelionių_išlaidų_nuokrypių[[#Headers],[Kov]],Kelionių_išlaidų[#Headers],0))-INDEX(Faktinių_mokymo_ir_kelionių_išlaidų[],MATCH(INDEX(Kelionių_išlaidų_nuokrypių[],ROW()-ROW(Kelionių_išlaidų_nuokrypių[[#Headers],[Kov]]),1),INDEX(Kelionių_išlaidų[],,1),0),MATCH(Kelionių_išlaidų_nuokrypių[[#Headers],[Kov]],Faktinių_mokymo_ir_kelionių_išlaidų[#Headers],0))","v":{"v":600,"d":"600.00 EUR"}},{"$f":"INDEX(Kelionių_išlaidų[],MATCH(INDEX(Kelionių_išlaidų_nuokrypių[],ROW()-ROW(Kelionių_išlaidų_nuokrypių[[#Headers],[Bal]]),1),INDEX(Kelionių_išlaidų[],,1),0),MATCH(Kelionių_išlaidų_nuokrypių[[#Headers],[Bal]],Kelionių_išlaidų[#Headers],0))-INDEX(Faktinių_mokymo_ir_kelionių_išlaidų[],MATCH(INDEX(Kelionių_išlaidų_nuokrypių[],ROW()-ROW(Kelionių_išlaidų_nuokrypių[[#Headers],[Bal]]),1),INDEX(Kelionių_išlaidų[],,1),0),MATCH(Kelionių_išlaidų_nuokrypių[[#Headers],[Bal]],Faktinių_mokymo_ir_kelionių_išlaidų[#Headers],0))","v":{"v":800,"d":"800.00 EUR"}},{"$f":"INDEX(Kelionių_išlaidų[],MATCH(INDEX(Kelionių_išlaidų_nuokrypių[],ROW()-ROW(Kelionių_išlaidų_nuokrypių[[#Headers],[Geg]]),1),INDEX(Kelionių_išlaidų[],,1),0),MATCH(Kelionių_išlaidų_nuokrypių[[#Headers],[Geg]],Kelionių_išlaidų[#Headers],0))-INDEX(Faktinių_mokymo_ir_kelionių_išlaidų[],MATCH(INDEX(Kelionių_išlaidų_nuokrypių[],ROW()-ROW(Kelionių_išlaidų_nuokrypių[[#Headers],[Geg]]),1),INDEX(Kelionių_išlaidų[],,1),0),MATCH(Kelionių_išlaidų_nuokrypių[[#Headers],[Geg]],Faktinių_mokymo_ir_kelionių_išlaidų[#Headers],0))","v":{"v":1200,"d":"1,200.00 EUR"}},{"$f":"INDEX(Kelionių_išlaidų[],MATCH(INDEX(Kelionių_išlaidų_nuokrypių[],ROW()-ROW(Kelionių_išlaidų_nuokrypių[[#Headers],[Bir]]),1),INDEX(Kelionių_išlaidų[],,1),0),MATCH(Kelionių_išlaidų_nuokrypių[[#Headers],[Bir]],Kelionių_išlaidų[#Headers],0))-INDEX(Faktinių_mokymo_ir_kelionių_išlaidų[],MATCH(INDEX(Kelionių_išlaidų_nuokrypių[],ROW()-ROW(Kelionių_išlaidų_nuokrypių[[#Headers],[Bir]]),1),INDEX(Kelionių_išlaidų[],,1),0),MATCH(Kelionių_išlaidų_nuokrypių[[#Headers],[Bir]],Faktinių_mokymo_ir_kelionių_išlaidų[#Headers],0))","v":{"v":-1500,"d":"-1,500.00 EUR"}},{"$f":"INDEX(Kelionių_išlaidų[],MATCH(INDEX(Kelionių_išlaidų_nuokrypių[],ROW()-ROW(Kelionių_išlaidų_nuokrypių[[#Headers],[Lie]]),1),INDEX(Kelionių_išlaidų[],,1),0),MATCH(Kelionių_išlaidų_nuokrypių[[#Headers],[Lie]],Kelionių_išlaidų[#Headers],0))-INDEX(Faktinių_mokymo_ir_kelionių_išlaidų[],MATCH(INDEX(Kelionių_išlaidų_nuokrypių[],ROW()-ROW(Kelionių_išlaidų_nuokrypių[[#Headers],[Lie]]),1),INDEX(Kelionių_išlaidų[],,1),0),MATCH(Kelionių_išlaidų_nuokrypių[[#Headers],[Lie]],Faktinių_mokymo_ir_kelionių_išlaidų[#Headers],0))","v":{"v":2000,"d":"2,000.00 EUR"}},{"$f":"INDEX(Kelionių_išlaidų[],MATCH(INDEX(Kelionių_išlaidų_nuokrypių[],ROW()-ROW(Kelionių_išlaidų_nuokrypių[[#Headers],[Rgp]]),1),INDEX(Kelionių_išlaidų[],,1),0),MATCH(Kelionių_išlaidų_nuokrypių[[#Headers],[Rgp]],Kelionių_išlaidų[#Headers],0))-INDEX(Faktinių_mokymo_ir_kelionių_išlaidų[],MATCH(INDEX(Kelionių_išlaidų_nuokrypių[],ROW()-ROW(Kelionių_išlaidų_nuokrypių[[#Headers],[Rgp]]),1),INDEX(Kelionių_išlaidų[],,1),0),MATCH(Kelionių_išlaidų_nuokrypių[[#Headers],[Rgp]],Faktinių_mokymo_ir_kelionių_išlaidų[#Headers],0))","v":{"v":2000,"d":"2,000.00 EUR"}},{"$f":"INDEX(Kelionių_išlaidų[],MATCH(INDEX(Kelionių_išlaidų_nuokrypių[],ROW()-ROW(Kelionių_išlaidų_nuokrypių[[#Headers],[Rgs]]),1),INDEX(Kelionių_išlaidų[],,1),0),MATCH(Kelionių_išlaidų_nuokrypių[[#Headers],[Rgs]],Kelionių_išlaidų[#Headers],0))-INDEX(Faktinių_mokymo_ir_kelionių_išlaidų[],MATCH(INDEX(Kelionių_išlaidų_nuokrypių[],ROW()-ROW(Kelionių_išlaidų_nuokrypių[[#Headers],[Rgs]]),1),INDEX(Kelionių_išlaidų[],,1),0),MATCH(Kelionių_išlaidų_nuokrypių[[#Headers],[Rgs]],Faktinių_mokymo_ir_kelionių_išlaidų[#Headers],0))","v":{"v":2000,"d":"2,000.00 EUR"}},{"$f":"INDEX(Kelionių_išlaidų[],MATCH(INDEX(Kelionių_išlaidų_nuokrypių[],ROW()-ROW(Kelionių_išlaidų_nuokrypių[[#Headers],[Spl]]),1),INDEX(Kelionių_išlaidų[],,1),0),MATCH(Kelionių_išlaidų_nuokrypių[[#Headers],[Spl]],Kelionių_išlaidų[#Headers],0))-INDEX(Faktinių_mokymo_ir_kelionių_išlaidų[],MATCH(INDEX(Kelionių_išlaidų_nuokrypių[],ROW()-ROW(Kelionių_išlaidų_nuokrypių[[#Headers],[Spl]]),1),INDEX(Kelionių_išlaidų[],,1),0),MATCH(Kelionių_išlaidų_nuokrypių[[#Headers],[Spl]],Faktinių_mokymo_ir_kelionių_išlaidų[#Headers],0))","v":{"v":2000,"d":"2,000.00 EUR"}},{"$f":"INDEX(Kelionių_išlaidų[],MATCH(INDEX(Kelionių_išlaidų_nuokrypių[],ROW()-ROW(Kelionių_išlaidų_nuokrypių[[#Headers],[Lap]]),1),INDEX(Kelionių_išlaidų[],,1),0),MATCH(Kelionių_išlaidų_nuokrypių[[#Headers],[Lap]],Kelionių_išlaidų[#Headers],0))-INDEX(Faktinių_mokymo_ir_kelionių_išlaidų[],MATCH(INDEX(Kelionių_išlaidų_nuokrypių[],ROW()-ROW(Kelionių_išlaidų_nuokrypių[[#Headers],[Lap]]),1),INDEX(Kelionių_išlaidų[],,1),0),MATCH(Kelionių_išlaidų_nuokrypių[[#Headers],[Lap]],Faktinių_mokymo_ir_kelionių_išlaidų[#Headers],0))","v":{"v":2000,"d":"2,000.00 EUR"}},{"$f":"INDEX(Kelionių_išlaidų[],MATCH(INDEX(Kelionių_išlaidų_nuokrypių[],ROW()-ROW(Kelionių_išlaidų_nuokrypių[[#Headers],[Grd]]),1),INDEX(Kelionių_išlaidų[],,1),0),MATCH(Kelionių_išlaidų_nuokrypių[[#Headers],[Grd]],Kelionių_išlaidų[#Headers],0))-INDEX(Faktinių_mokymo_ir_kelionių_išlaidų[],MATCH(INDEX(Kelionių_išlaidų_nuokrypių[],ROW()-ROW(Kelionių_išlaidų_nuokrypių[[#Headers],[Grd]]),1),INDEX(Kelionių_išlaidų[],,1),0),MATCH(Kelionių_išlaidų_nuokrypių[[#Headers],[Grd]],Faktinių_mokymo_ir_kelionių_išlaidų[#Headers],0))","v":{"v":2000,"d":"2,000.00 EUR"}},{"$f":"SUM(Kelionių_išlaidų_nuokrypių[[#This Row],[Sau]:[Grd]])","v":{"v":13700,"d":"13,700.00 EUR"}}]
[null,"Tarpinė suma",{"$f":"SUBTOTAL(109,Kelionių_išlaidų_nuokrypių[Sau])","v":{"v":1200,"d":"1,200.00 EUR"}},{"$f":"SUBTOTAL(109,Kelionių_išlaidų_nuokrypių[Vas])","v":{"v":-600,"d":"-600.00 EUR"}},{"$f":"SUBTOTAL(109,Kelionių_išlaidų_nuokrypių[Kov])","v":{"v":1200,"d":"1,200.00 EUR"}},{"$f":"SUBTOTAL(109,Kelionių_išlaidų_nuokrypių[Bal])","v":{"v":1200,"d":"1,200.00 EUR"}},{"$f":"SUBTOTAL(109,Kelionių_išlaidų_nuokrypių[Geg])","v":{"v":2000,"d":"2,000.00 EUR"}},{"$f":"SUBTOTAL(109,Kelionių_išlaidų_nuokrypių[Bir])","v":{"v":-2300,"d":"-2,300.00 EUR"}},{"$f":"SUBTOTAL(109,Kelionių_išlaidų_nuokrypių[Lie])","v":{"v":4000,"d":"4,000.00 EUR"}},{"$f":"SUBTOTAL(109,Kelionių_išlaidų_nuokrypių[Rgp])","v":{"v":4000,"d":"4,000.00 EUR"}},{"$f":"SUBTOTAL(109,Kelionių_išlaidų_nuokrypių[Rgs])","v":{"v":4000,"d":"4,000.00 EUR"}},{"$f":"SUBTOTAL(109,Kelionių_išlaidų_nuokrypių[Spl])","v":{"v":4000,"d":"4,000.00 EUR"}},{"$f":"SUBTOTAL(109,Kelionių_išlaidų_nuokrypių[Lap])","v":{"v":4000,"d":"4,000.00 EUR"}},{"$f":"SUBTOTAL(109,Kelionių_išlaidų_nuokrypių[Grd])","v":{"v":4000,"d":"4,000.00 EUR"}},{"$f":"SUBTOTAL(109,Kelionių_išlaidų_nuokrypių[METAI])","v":{"v":26700,"d":"26,700.00 EUR"}}]
[]
["Išlaidų nuokrypiai automatiškai apskaičiuojami išlaidų nuokrypio bendrųjų sumų lentelėje, pradedant langeliu dešinėje.","BENDROSIOS SUMOS","Sau","Vas","Kov","Bal","Geg","Bir","Lie","Rgp","Rgs","Spl","Lap","Grd","Metai"]
[null,"Faktinės mėnesio išlaidos",{"$f":"Kelionių_išlaidų_nuokrypių[[#Totals],[Sau]]+Rinkodaros_išlaidų_nuokrypių[[#Totals],[Sau]]+Biuro_išlaidų_nuokrypių[[#Totals],[Sau]]+Darbuotojų_išlaidų_nuokrypių[[#Totals],[Sau]]","v":{"v":1738,"d":"1,738.00 EUR"}},{"$f":"Kelionių_išlaidų_nuokrypių[[#Totals],[Vas]]+Rinkodaros_išlaidų_nuokrypių[[#Totals],[Vas]]+Biuro_išlaidų_nuokrypių[[#Totals],[Vas]]+Darbuotojų_išlaidų_nuokrypių[[#Totals],[Vas]]","v":{"v":-984,"d":"-984.00 EUR"}},{"$f":"Kelionių_išlaidų_nuokrypių[[#Totals],[Kov]]+Rinkodaros_išlaidų_nuokrypių[[#Totals],[Kov]]+Biuro_išlaidų_nuokrypių[[#Totals],[Kov]]+Darbuotojų_išlaidų_nuokrypių[[#Totals],[Kov]]","v":{"v":1255,"d":"1,255.00 EUR"}},{"$f":"Kelionių_išlaidų_nuokrypių[[#Totals],[Bal]]+Rinkodaros_išlaidų_nuokrypių[[#Totals],[Bal]]+Biuro_išlaidų_nuokrypių[[#Totals],[Bal]]+Darbuotojų_išlaidų_nuokrypių[[#Totals],[Bal]]","v":{"v":301,"d":"301.00 EUR"}},{"$f":"Kelionių_išlaidų_nuokrypių[[#Totals],[Geg]]+Rinkodaros_išlaidų_nuokrypių[[#Totals],[Geg]]+Biuro_išlaidų_nuokrypių[[#Totals],[Geg]]+Darbuotojų_išlaidų_nuokrypių[[#Totals],[Geg]]","v":{"v":1440,"d":"1,440.00 EUR"}},{"$f":"Kelionių_išlaidų_nuokrypių[[#Totals],[Bir]]+Rinkodaros_išlaidų_nuokrypių[[#Totals],[Bir]]+Biuro_išlaidų_nuokrypių[[#Totals],[Bir]]+Darbuotojų_išlaidų_nuokrypių[[#Totals],[Bir]]","v":{"v":-3744,"d":"-3,744.00 EUR"}},{"$f":"Kelionių_išlaidų_nuokrypių[[#Totals],[Lie]]+Rinkodaros_išlaidų_nuokrypių[[#Totals],[Lie]]+Biuro_išlaidų_nuokrypių[[#Totals],[Lie]]+Darbuotojų_išlaidų_nuokrypių[[#Totals],[Lie]]","v":{"v":134695,"d":"134,695.00 EUR"}},{"$f":"Kelionių_išlaidų_nuokrypių[[#Totals],[Rgp]]+Rinkodaros_išlaidų_nuokrypių[[#Totals],[Rgp]]+Biuro_išlaidų_nuokrypių[[#Totals],[Rgp]]+Darbuotojų_išlaidų_nuokrypių[[#Totals],[Rgp]]","v":{"v":138918,"d":"138,918.00 EUR"}},{"$f":"Kelionių_išlaidų_nuokrypių[[#Totals],[Rgs]]+Rinkodaros_išlaidų_nuokrypių[[#Totals],[Rgs]]+Biuro_išlaidų_nuokrypių[[#Totals],[Rgs]]+Darbuotojų_išlaidų_nuokrypių[[#Totals],[Rgs]]","v":{"v":135918,"d":"135,918.00 EUR"}},{"$f":"Kelionių_išlaidų_nuokrypių[[#Totals],[Spl]]+Rinkodaros_išlaidų_nuokrypių[[#Totals],[Spl]]+Biuro_išlaidų_nuokrypių[[#Totals],[Spl]]+Darbuotojų_išlaidų_nuokrypių[[#Totals],[Spl]]","v":{"v":140918,"d":"140,918.00 EUR"}},{"$f":"Kelionių_išlaidų_nuokrypių[[#Totals],[Lap]]+Rinkodaros_išlaidų_nuokrypių[[#Totals],[Lap]]+Biuro_išlaidų_nuokrypių[[#Totals],[Lap]]+Darbuotojų_išlaidų_nuokrypių[[#Totals],[Lap]]","v":{"v":136218,"d":"136,218.00 EUR"}},{"$f":"Kelionių_išlaidų_nuokrypių[[#Totals],[Grd]]+Rinkodaros_išlaidų_nuokrypių[[#Totals],[Grd]]+Biuro_išlaidų_nuokrypių[[#Totals],[Grd]]+Darbuotojų_išlaidų_nuokrypių[[#Totals],[Grd]]","v":{"v":140018,"d":"140,018.00 EUR"}},{"$f":"Kelionių_išlaidų_nuokrypių[[#Totals],[METAI]]+Rinkodaros_išlaidų_nuokrypių[[#Totals],[METAI]]+Biuro_išlaidų_nuokrypių[[#Totals],[METAI]]+Darbuotojų_išlaidų_nuokrypių[[#Totals],[METAI]]","v":{"v":826691,"d":"826,691.00 EUR"}}]
[null,"Faktinių išlaidų BENDROJI SUMA",{"$f":"SUM($C$36:C36)","v":{"v":1738,"d":"1,738.00 EUR"}},{"$f":"SUM($C$36:D36)","v":{"v":754,"d":"754.00 EUR"}},{"$f":"SUM($C$36:E36)","v":{"v":2009,"d":"2,009.00 EUR"}},{"$f":"SUM($C$36:F36)","v":{"v":2310,"d":"2,310.00 EUR"}},{"$f":"SUM($C$36:G36)","v":{"v":3750,"d":"3,750.00 EUR"}},{"$f":"SUM($C$36:H36)","v":{"v":6,"d":"6.00 EUR"}},{"$f":"SUM($C$36:I36)","v":{"v":134701,"d":"134,701.00 EUR"}},{"$f":"SUM($C$36:J36)","v":{"v":273619,"d":"273,619.00 EUR"}},{"$f":"SUM($C$36:K36)","v":{"v":409537,"d":"409,537.00 EUR"}},{"$f":"SUM($C$36:L36)","v":{"v":550455,"d":"550,455.00 EUR"}},{"$f":"SUM($C$36:M36)","v":{"v":686673,"d":"686,673.00 EUR"}},{"$f":"SUM($C$36:N36)","v":{"v":826691,"d":"826,691.00 EUR"}}]

{"sheet":"IŠLAIDŲ ANALIZĖ","index":4,"n_rows":14,"n_cols":16,"rows_kept":14,"merged":[[1,1,2,3],[1,5,1,6],[2,4,2,6],[11,1,11,2],[11,3,11,5],[13,1,36,5]]}
["Metinės suplanuotos ir faktinės išlaidos, išlaidų nuokrypiai ir nuokrypio procentai automatiškai atnaujinami kiekvienoje išlaidų kategorijoje šiame darbalapyje. Naudingos instrukcijos, kaip naudoti šį darbalapį, pateiktos šio stulpelio langeliuose. Paspauskite rodyklę žemyn, kad pradėtumėte. ",{"$nulls":5}," ",{"$nulls":8}," "]
["Įmonės pavadinimas automatiškai atnaujinamas langelyje dešinėje. Įveskite logotipą langelyje F2.",{"$f":"'SUPLANUOTOS IŠLAIDOS'!B2:D3","v":"Įmonės pavadinimas"},{"$nulls":3},"Šiame langelyje yra logotipo vietos rezervavimo ženklas."]
["Šio darbalapio pavadinimas yra langelyje E3. Kitas nurodymas yra A5 langelyje.",{"$nulls":3},{"$f":"darbalapio_pavadinimas","v":"Išsamios apskaičiuotos išlaidos"}]
[]
["Suplanuotos išlaidos, faktinės išlaidos, Išlaidų nuokrypiai ir nuokrypio procentai automatiškai apskaičiuojami analizės lentelėje, pradedant langeliu dešinėje. Kitas nurodymas yra A12 langelyje.","Išlaidų kategorija","Suplanuotos išlaidos","Faktinės išlaidos","Išlaidų nuokrypiai","Nuokrypio procentai"]
[null,"Darbuotojų išlaidos",{"$f":"Darbuotojų_išlaidų[[#Totals],[METAI]]","v":{"v":1355090,"d":"1,355,090.00 EUR"}},{"$f":"Darbuotojų_faktinių_išlaidų[[#Totals],[METAI]]","v":{"v":659130,"d":"659,130.00 EUR"}},{"$f":"C6-D6","v":{"v":695960,"d":"695,960.00 EUR"}},{"$f":"E6/C6","v":{"v":0.5135895032802249,"d":"51%"}}]
[null,{"$f":"'SUPLANUOTOS IŠLAIDOS'!B10","v":"Biuro išlaidos"},{"$f":"Biuro_išlaidų[[#Totals],[METAI]]","v":{"v":138740,"d":"138,740.00 EUR"}},{"$f":"Biuro_faktinių_išlaidų[[#Totals],[METAI]]","v":{"v":69350,"d":"69,350.00 EUR"}},{"$f":"C7-D7","v":{"v":69390,"d":"69,390.00 EUR"}},{"$f":"E7/C7","v":{"v":0.5001441545336601,"d":"50%"}}]
[null,{"$f":"'SUPLANUOTOS IŠLAIDOS'!B21","v":"Rinkodaros išlaidos"},{"$f":"Rinkodaros_išlaidų[[#Totals],[METAI]]","v":{"v":67800,"d":"67,800.00 EUR"}},{"$f":"Faktinių_rinkodaros_išlaidų[[#Totals],[METAI]]","v":{"v":33159,"d":"33,159.00 EUR"}},{"$f":"C8-D8","v":{"v":34641,"d":"34,641.00 EUR"}},{"$f":"E8/C8","v":{"v":0.510929203539823,"d":"51%"}}]
[null,{"$f":"'SUPLANUOTOS IŠLAIDOS'!B30","v":"Mokymas / kelionės"},{"$f":"Kelionių_išlaidų[[#Totals],[METAI]]","v":{"v":48000,"d":"48,000.00 EUR"}},{"$f":"Faktinių_mokymo_ir_kelionių_išlaidų[[#Totals],[METAI]]","v":{"v":21300,"d":"21,300.00 EUR"}},{"$f":"C9-D9","v":{"v":26700,"d":"26,700.00 EUR"}},{"$f":"E9/C9","v":{"v":0.55625,"d":"56%"}}]
[null,{"$f":"'SUPLANUOTOS IŠLAIDOS'!B35","v":"BENDROSIOS SUMOS"},{"$f":"'SUPLANUOTOS IŠLAIDOS'!O36","v":{"v":1609630,"d":"1,609,630.00 EUR"}},{"$f":"'FAKTINĖS IŠLAIDOS'!O36","v":{"v":782939,"d":"782,939.00 EUR"}},{"$f":"C10-D10","v":{"v":826691,"d":"826,691.00 EUR"}},{"$f":"E10/C10","v":{"v":0.5135907009685455,"d":"51%"}}]
[]
["Suplanuotos išlaidos skritulinė diagrama yra langelyje dešinėje, o faktinės išlaidos skritulinė diagrama – langelyje D12. Kitas nurodymas yra A14 langelyje.","Skritulinė diagrama, vaizduojanti suplanuotas įvairių kategorijų išlaidas, yra šiame langelyje.",null,"Skritulinė diagrama, vaizduojanti faktines įvairių kategorijų išlaidas, yra šiame langelyje."]
[]
["Diagrama, vaizduojanti mėnesio suplanuotos išlaidas, Faktinės išlaidas ir išlaidų nuokrypis, yra langelyje dešinėje."]